Workbook

Sheet general
A2: number of nodes | D2: 33
A3: number of lines | D3: 50
A4: number of zones | D4: 6
B6: physical
B7: commercial
B9: 11 | C9: A | K9: F
D11: 0 | E11: ='AAF + CP'!D4 -> 342.7013244 | H11: 0 | I11: ='AAF + CP'!D5 -> 363.8535103
C12: B | D12: 0 | E12: =-E11 -> -342.7013244 | G12: C | H12: 0 | I12: =-I11 -> -363.8535103
F13: ='AAF + CP'!#REF! ->  | G13: =-F13 -> 
F14: ='AAF + CP'!D6 -> -293.4055017 | G14: =-F14 -> 293.4055017
D15: 0 | E15: ='AAF + CP'!D7 -> 461.6119074 | H15: ='AAF + CP'!#REF! ->  | I15: ='AAF + CP'!D8 -> 550.4701586
C16: D | D16: 0 | E16: =-E15 -> -461.6119074 | G16: E | H16: =-H15 ->  | I16: =-I15 -> -550.4701586
F17: 0 | G17: 0 | J17: ='AAF + CP'!#REF! ->  | K17: =-J17 -> 
F18: ='AAF + CP'!D9 -> 68.1051124 | G18: =-F18 -> -68.1051124 | J18: ='AAF + CP'!D10 -> -486.5455443 | K18: =-J18 -> 486.5455443

Sheet nodes
A1: Nodes overview | K1: Reference
B2: generation | C2: load | D2: balance | E2: zone | G2: angle | K2: node | L2: generation [MW] | M2: load [MW] | N2: balance [MW] | O2: zone | P2: NP [MW] | Q2: G [MW] | R2: L [MW]
A3: 1 | B3: 80 | C3: 30 | D3: =B3-C3 -> 50 | E3: B | G3: 0.5656408125 | K3: 1 | L3: =B3 -> 80 | M3: =C3 -> 30 | N3: =D3 -> 50 | O3: B | P3: =SUM(N3:N8) -> 60 | Q3: =SUM(L3:L8) -> 780 | R3: =SUM(M3:M8) -> 720
A4: 2 | B4: 200 | C4: 40 | D4: =B4-C4 -> 160 | E4: B | G4: 0.5336589502 | K4: 2 | L4: =B4 -> 200 | M4: =C4 -> 40 | N4: =D4 -> 160 | O4: B
A5: 3 | B5: 0 | C5: 300 | D5: -300 | E5: B | G5: -3.935660276 | K5: 3 | L5: 0 | M5: 300 | N5: -300 | O5: B
A6: 4 | B6: 250 | C6: 50 | D6: 200 | E6: B | G6: -0.3786766463 | K6: 4 | L6: 250 | M6: 50 | N6: 200 | O6: B
A7: 5 | B7: 50 | C7: 200 | D7: -150 | E7: B | G7: -3.967408649 | K7: 5 | L7: 50 | M7: 200 | N7: -150 | O7: B
A8: 6 | B8: 200 | C8: 100 | D8: 100 | E8: B | G8: -2.109745852 | K8: 6 | L8: 200 | M8: 100 | N8: 100 | O8: B
A9: 7 | B9: 10 | C9: 50 | D9: -40 | E9: C | G9: -4.2250473 | K9: 7 | L9: 10 | M9: 50 | N9: -40 | O9: C | P9: =SUM(N9:N14) -> -20 | Q9: =SUM(L9:L14) -> 300 | R9: =SUM(M9:M14) -> 320
A10: 8 | B10: 5 | C10: 10 | D10: -5 | E10: C | G10: -5.083555008 | K10: 8 | L10: 5 | M10: 10 | N10: -5 | O10: C
A11: 9 | B11: 5 | C11: 40 | D11: -35 | E11: C | G11: -4.475458177 | K11: 9 | L11: 5 | M11: 40 | N11: -35 | O11: C
A12: 10 | B12: 75 | C12: 20 | D12: 55 | E12: C | G12: -2.356748418 | K12: 10 | L12: 75 | M12: 20 | N12: 55 | O12: C
A13: 11 | B13: 75 | C13: 150 | D13: -75 | E13: C | G13: -3.550630687 | K13: 11 | L13: 75 | M13: 150 | N13: -75 | O13: C
A14: 12 | B14: 130 | C14: 50 | D14: 80 | E14: C | G14: -2.452476702 | K14: 12 | L14: 130 | M14: 50 | N14: 80 | O14: C
A15: 13 | B15: 50 | C15: 175 | D15: -125 | E15: E | G15: -4.440301534 | K15: 13 | L15: 50 | M15: 175 | N15: -125 | O15: E | P15: =SUM(N15:N18) -> -160 | Q15: =SUM(L15:L18) -> 310 | R15: =SUM(M15:M18) -> 470
A16: 14 | B16: 80 | C16: 110 | D16: -30 | E16: E | G16: -2.152923302 | K16: 14 | L16: 80 | M16: 110 | N16: -30 | O16: E
A17: 15 | B17: 180 | C17: 65 | D17: 115 | E17: E | G17: -2.42784572 | K17: 15 | L17: 180 | M17: 65 | N17: 115 | O17: E
A18: 16 | B18: 0 | C18: 120 | D18: -120 | E18: E | G18: -4.934073627 | K18: 16 | L18: 0 | M18: 120 | N18: -120 | O18: E
A19: 17 | B19: 100 | C19: 80 | D19: 20 | E19: F | G19: -2.213690251 | K19: 17 | L19: 100 | M19: 80 | N19: 20 | O19: F | P19: =SUM(N19:N23) -> 120 | Q19: =SUM(L19:L23) -> 770 | R19: =SUM(M19:M23) -> 650
A20: 18 | B20: 100 | C20: 200 | D20: -100 | E20: F | G20: -2.43717266 | K20: 18 | L20: 100 | M20: 200 | N20: -100 | O20: F
A21: 19 | B21: 250 | C21: 140 | D21: 110 | E21: F | G21: -1.68521333 | K21: 19 | L21: 250 | M21: 140 | N21: 110 | O21: F
A22: 20 | B22: 250 | C22: 120 | D22: 130 | E22: F | G22: -1.469818931 | K22: 20 | L22: 250 | M22: 120 | N22: 130 | O22: F
A23: 21 | B23: 70 | C23: 110 | D23: -40 | E23: F | G23: -2.2178596 | K23: 21 | L23: 70 | M23: 110 | N23: -40 | O23: F
A24: 22 | B24: 200 | C24: 650 | D24: -450 | E24: A | G24: -6.531686115 | K24: 22 | L24: 200 | M24: 650 | N24: -450 | O24: A | P24: =SUM(N24:N29) -> 0 | Q24: =SUM(L24:L29) -> 1600 | R24: =SUM(M24:M29) -> 1600
A25: 23 | B25: 150 | C25: 400 | D25: -250 | E25: A | G25: -6.7139658 | K25: 23 | L25: 150 | M25: 400 | N25: -250 | O25: A
A26: 24 | B26: 200 | C26: 100 | D26: 100 | E26: A | G26: -4.151244903 | K26: 24 | L26: 200 | M26: 100 | N26: 100 | O26: A
A27: 25 | B27: 500 | C27: 150 | D27: 350 | E27: A | G27: -2.141144662 | K27: 25 | L27: 500 | M27: 150 | N27: 350 | O27: A
A28: 26 | B28: 300 | C28: 100 | D28: 200 | E28: A | G28: -4.593324462 | K28: 26 | L28: 300 | M28: 100 | N28: 200 | O28: A
A29: 27 | B29: 250 | C29: 200 | D29: 50 | E29: A | G29: -3.93425964 | K29: 27 | L29: 250 | M29: 200 | N29: 50 | O29: A
A30: 28 | B30: 200 | C30: 100 | D30: 100 | E30: D | G30: -0.4403643616 | K30: 28 | L30: 200 | M30: 100 | N30: 100 | O30: D | P30: =SUM(N30:N35) -> 0 | Q30: =SUM(L30:L35) -> 600 | R30: =SUM(M30:M35) -> 600
A31: 29 | B31: 75 | C31: 200 | D31: -125 | E31: D | G31: -2.743533683 | K31: 29 | L31: 75 | M31: 200 | N31: -125 | O31: D
A32: 30 | B32: 100 | C32: 150 | D32: -50 | E32: D | G32: -3.859246011 | K32: 30 | L32: 100 | M32: 150 | N32: -50 | O32: D
A33: 31 | B33: 25 | C33: 75 | D33: -50 | E33: D | G33: -2.616406915 | K33: 31 | L33: 25 | M33: 75 | N33: -50 | O33: D
A34: 32 | B34: 100 | C34: 40 | D34: 60 | E34: D | G34: -0.3721356384 | K34: 32 | L34: 100 | M34: 40 | N34: 60 | O34: D
A35: 33 | B35: 100 | C35: 35 | D35: 65 | E35: D | G35: 0 | K35: 33 | L35: 100 | M35: 35 | N35: 65 | O35: D

Sheet lines
A1: Lines overview | I1: B [S/km] | J1: 0.4 | L1: Output
A2: line | B2: start node | C2: end node | D2: B | E2: in operation | F2: CB | G2: length [km] | I2: flow | L2: Reference | M2: zone A | N2: zone B | O2: zone C | P2: zone D | Q2: zone E | R2: zone F
A3: A | B3: 1 | C3: 4 | D3: =G3*$J$1 -> 52 | E3: 1 | F3: 0 | G3: 130 | I3: 49.10450786 | L3: 49.10450786 | M3: 49.1787006 | N3: 49.59745595 | O3: 49.14871432 | P3: 49.11065494 | Q3: 49.13661758 | R3: 49.1383642
A4: B | B4: 1 | C4: 2 | D4: 28 | E4: 1 | F4: 0 | G4: 70 | I4: 0.895492143 | L4: 0.895492143 | M4: 0.8212994041 | N4: 0.802544049 | O4: 0.8512856777 | P4: 0.8893450617 | Q4: 0.8633824217 | R4: 0.8616357968
A5: C | B5: 2 | C5: 3 | D5: 36 | E5: 1 | F5: 0 | G5: 90 | I5: 160.8954921 | L5: 160.8954921 | M5: 160.8212994 | N5: 161.202544 | O5: 160.8512857 | P5: 160.8893451 | Q5: 160.8633824 | R5: 160.8616358
A6: D | B6: 3 | C6: 4 | D6: 40 | E6: 1 | F6: 0 | G6: 100 | I6: -142.2793452 | L6: -142.2793452 | M6: -142.0338478 | N6: -142.1085401 | O6: -142.1330698 | P6: -142.259005 | Q6: -142.1730969 | R6: -142.1673175
A7: E | B7: 3 | C7: 5 | D7: 100 | E7: 1 | F7: 0 | G7: 250 | I7: 3.174837329 | L7: 3.174837329 | M7: 2.855147249 | N7: 3.311084187 | O7: 2.984355503 | P7: 3.148350089 | Q7: 3.036479324 | R7: 3.028953268
A8: F | B8: 5 | C8: 6 | D8: 52 | E8: 1 | F8: 0 | G8: 130 | I8: -96.59846546 | L8: -96.59846546 | M8: -96.27132701 | N8: -96.3865328 | O8: -96.53473906 | P8: -96.60628457 | Q8: -96.58226819 | R8: -96.57383627
A9: G | B9: 5 | C9: 26 | D9: 20 | E9: 1 | F9: 1 | G9: 50 | I9: 12.51831625 | L9: 12.51831625 | M9: 12.30516512 | N9: 12.53657256 | O9: 12.47662296 | P9: 12.51528769 | Q9: 12.49123585 | R9: 12.48806731
A10: H | B10: 5 | C10: 25 | D10: 40 | E10: 1 | F10: 1 | G10: 100 | I10: -73.0505595 | L10: -73.0505595 | M10: -73.42958125 | N10: -73.01928374 | O10: -73.1219863 | P10: -73.05574787 | Q10: -73.09695226 | R10: -73.10238044
A11: I | B11: 5 | C11: 7 | D11: 40 | E11: 1 | F11: 1 | G11: 100 | I11: 10.30554604 | L11: 10.30554604 | M11: 10.25089039 | N11: 10.38032816 | O11: 10.16445791 | P11: 10.29509483 | Q11: 10.22446393 | R11: 10.21710267
A12: J | B12: 7 | C12: 12 | D12: 40 | E12: 1 | F12: 0 | G12: 100 | I12: -70.90282395 | L12: -70.90282395 | M12: -70.70611914 | N12: -70.82416939 | O12: -70.91711899 | P12: -70.9115722 | Q12: -70.95383551 | R12: -70.95512746
A13: K | B13: 7 | C13: 8 | D13: 48 | E13: 1 | F13: 0 | G13: 120 | I13: 41.20836999 | L13: 41.20836999 | M13: 40.95700953 | N13: 41.20449755 | O13: 41.1815769 | P13: 41.20666703 | Q13: 41.17829944 | R13: 41.17223014
A14: L | B14: 8 | C14: 24 | D14: 40 | E14: 1 | F14: 1 | G14: 100 | I14: -37.29240421 | L14: -37.29240421 | M14: -37.45572047 | N14: -37.31102692 | O14: -37.24987415 | P14: -37.28931487 | Q14: -37.26478031 | R14: -37.26154818
A15: M | B15: 4 | C15: 28 | D15: 48 | E15: 1 | F15: 1 | G15: 120 | I15: 2.961010335 | L15: 2.961010335 | M15: 3.463293031 | N15: 3.554685246 | O15: 3.41166384 | P15: 3.0429222 | Q15: 3.323066415 | R15: 3.334048103
A16: N | B16: 4 | C16: 6 | D16: 60 | E16: 1 | F16: 0 | G16: 150 | I16: 103.8641523 | L16: 103.8641523 | M16: 103.6815597 | N16: 103.9342306 | O16: 103.6039807 | P16: 103.8087277 | Q16: 103.6404543 | R16: 103.6369986
A17: O | B17: 6 | C17: 29 | D17: 32 | E17: 1 | F17: 1 | G17: 80 | I17: 20.28121059 | L17: 20.28121059 | M17: 20.56189742 | N17: 20.52344948 | O17: 20.55301126 | P17: 20.26657404 | Q17: 20.45809843 | R17: 20.46936254
A18: P | B18: 6 | C18: 11 | D18: 48 | E18: 1 | F18: 1 | G18: 120 | I18: 69.1624721 | L18: 69.1624721 | M18: 69.16880565 | N18: 69.21470908 | O18: 68.95995068 | P18: 69.13100512 | Q18: 68.9660025 | R18: 68.97939578
A19: Q | B19: 11 | C19: 13 | D19: 28 | E19: 1 | F19: 1 | G19: 70 | I19: 24.91078371 | L19: 24.91078371 | M19: 24.99752889 | N19: 25.00020417 | O19: 25.03320722 | P19: 24.87019031 | Q19: 24.70089401 | R19: 24.73269755
A20: R | B20: 6 | C20: 12 | D20: 52 | E20: 1 | F20: 1 | G20: 130 | I20: 17.82200419 | L20: 17.82200419 | M20: 17.67952963 | N20: 17.8095392 | O20: 17.55627965 | P20: 17.80486399 | Q20: 17.63408514 | R20: 17.61440404
A21: S | B21: 11 | C21: 12 | D21: 28 | E21: 1 | F21: 0 | G21: 70 | I21: -30.7483116 | L21: -30.7483116 | M21: -30.82872324 | N21: -30.78549508 | O21: -30.77325654 | P21: -30.7391852 | Q21: -30.73489151 | R21: -30.75330177
A22: T | B22: 10 | C22: 12 | D22: 40 | E22: 1 | F22: 0 | G22: 100 | I22: 3.829131364 | L22: 3.829131364 | M22: 3.855312751 | N22: 3.800125269 | O22: 3.934095888 | P22: 3.845893404 | Q22: 4.054641881 | R22: 4.094025189
A23: U | B23: 10 | C23: 14 | D23: 40 | E23: 1 | F23: 1 | G23: 100 | I23: -8.153004626 | L23: -8.153004626 | M23: -8.022719349 | N23: -8.078338896 | O23: -7.997882326 | P23: -8.179686553 | Q23: -8.482058852 | R23: -8.53610819
A24: V | B24: 9 | C24: 10 | D24: 28 | E24: 1 | F24: 0 | G24: 70 | I24: -59.32387326 | L24: -59.32387326 | M24: -59.1674066 | N24: -59.27821363 | O24: -59.36378644 | P24: -59.33379315 | Q24: -59.42741697 | R24: -59.442083
A25: W | B25: 8 | C25: 9 | D25: 40 | E25: 1 | F25: 0 | G25: 100 | I25: -24.32387326 | L25: -24.32387326 | M25: -24.1674066 | N25: -24.27821363 | O25: -24.36378644 | P25: -24.33379315 | Q25: -24.42741697 | R25: -24.442083
A26: X | B26: 8 | C26: 23 | D26: 60 | E26: 1 | F26: 1 | G26: 150 | I26: 97.82464747 | L26: 97.82464747 | M26: 97.5801366 | N26: 97.7937381 | O26: 97.89523749 | P26: 97.82977505 | Q26: 97.87049672 | R26: 97.87586131
A27: Y | B27: 23 | C27: 24 | D27: 48 | E27: 1 | F27: 0 | G27: 120 | I27: -123.010603 | L27: -123.010603 | M27: -123.0109739 | N27: -123.0082228 | O27: -123.016039 | P27: -123.0109979 | Q27: -123.0141338 | R27: -123.0145469
A28: Z | B28: 24 | C28: 25 | D28: 30 | E28: 1 | F28: 0 | G28: 75 | I28: -60.30300724 | L28: -60.30300724 | M28: -60.26669432 | N28: -60.31924971 | O28: -60.26591311 | P28: -60.30031276 | Q28: -60.27891406 | R28: -60.27609504
A29: AA | B29: 22 | C29: 23 | D29: 160 | E29: 1 | F29: 0 | G29: 400 | I29: 29.16474951 | L29: 29.16474951 | M29: 29.20888955 | N29: 29.19803911 | O29: 29.08872354 | P29: 29.15922706 | Q29: 29.11536953 | R29: 29.10959182
A30: AB | B30: 22 | C30: 27 | D30: 80 | E30: 1 | F30: 0 | G30: 200 | I30: -207.794118 | L30: -207.794118 | M30: -207.7797775 | N30: -207.8060092 | O30: -207.7669612 | P30: -207.7921454 | Q30: -207.7764793 | R30: -207.7744155
A31: AC | B31: 22 | C31: 26 | D31: 140 | E31: 1 | F31: 0 | G31: 350 | I31: -271.3706315 | L31: -271.3706315 | M31: -271.329112 | N31: -271.3920299 | O31: -271.3217623 | P31: -271.3670817 | Q31: -271.3388902 | R31: -271.3351763
A32: AD | B32: 25 | C32: 26 | D32: 24 | E32: 1 | F32: 0 | G32: 60 | I32: 58.8523152 | L32: 58.8523152 | M32: 58.82394689 | N32: 58.85545731 | O32: 58.84513933 | P32: 58.85179396 | Q32: 58.84765437 | R32: 58.84710903
A33: AE | B33: 25 | C33: 27 | D33: 88 | E33: 1 | F33: 0 | G33: 220 | I33: 157.794118 | L33: 157.794118 | M33: 157.6797775 | N33: 157.8060092 | O33: 157.7669612 | P33: 157.7921454 | Q33: 157.7764793 | R33: 157.7744155
A34: AF | B34: 28 | C34: 33 | D34: 80 | E34: 1 | F34: 0 | G34: 200 | I34: -35.22914893 | L34: -35.22914893 | M34: -34.44270807 | N34: -34.41765655 | O34: -34.46463314 | P34: -34.76197909 | Q34: -34.52248938 | R34: -34.51544516
A35: AG | B35: 32 | C35: 33 | D35: =G35*$J$1 -> 80 | E35: 1 | F35: 0 | G35: 200 | I35: -29.77085107 | L35: -29.77085107 | M35: -29.55729193 | N35: -29.58234345 | O35: -29.53536686 | P35: -29.33802091 | Q35: -29.47751062 | R35: -29.48455484
A36: AH | B36: 31 | C36: 32 | D36: 40 | E36: 1 | F36: 0 | G36: 100 | I36: -89.77085107 | L36: -89.77085107 | M36: -89.55729193 | N36: -89.58234345 | O36: -89.53536686 | P36: -89.53802091 | Q36: -89.47751062 | R36: -89.48455484
A37: AI | B37: 30 | C37: 31 | D37: 32 | E37: 1 | F37: 0 | G37: 80 | I37: -39.77085107 | L37: -39.77085107 | M37: -39.55729193 | N37: -39.58234345 | O37: -39.53536686 | P37: -39.73802091 | Q37: -39.47751062 | R37: -39.48455484
A38: AJ | B38: 13 | C38: 30 | D38: 40 | E38: 1 | F38: 1 | G38: 100 | I38: -23.24222092 | L38: -23.24222092 | M38: -23.02519046 | N38: -23.07813473 | O38: -22.9646751 | P38: -23.30949624 | Q38: -22.78116484 | R38: -22.80341064
A39: AK | B39: 29 | C39: 30 | D39: 30 | E39: 1 | F39: 0 | G39: 75 | I39: 33.47136985 | L39: 33.47136985 | M39: 33.46789853 | N39: 33.49579127 | O39: 33.42930824 | P39: 33.37147533 | Q39: 33.30365423 | R39: 33.3188558
A40: AL | B40: 28 | C40: 29 | D40: 60 | E40: 1 | F40: 0 | G40: 150 | I40: 138.1901593 | L40: 138.1901593 | M40: 137.9060011 | N40: 137.9723418 | O40: 137.876297 | P40: 138.0049013 | Q40: 137.8455558 | R40: 137.8494933
A41: AM | B41: 13 | C41: 15 | D41: 48 | E41: 1 | F41: 0 | G41: 120 | I41: -96.59787909 | L41: -96.59787909 | M41: -96.68984517 | N41: -96.65058431 | O41: -96.70737718 | P41: -96.57904479 | Q41: -96.78913493 | R41: -97.0333354
A42: AN | B42: 14 | C42: 15 | D42: 60 | E42: 1 | F42: 0 | G42: 150 | I42: 16.49534507 | L42: 16.49534507 | M42: 16.58242484 | N42: 16.54524997 | O42: 16.59902535 | P42: 16.47751147 | Q42: 16.6096014 | R42: 16.55210079
A43: AO | B43: 14 | C43: 20 | D43: 80 | E43: 1 | F43: 1 | G43: 200 | I43: -54.64834969 | L43: -54.64834969 | M43: -54.60514418 | N43: -54.62358887 | O43: -54.59690767 | P43: -54.65719802 | Q43: -54.59166025 | R43: -55.08820898
A44: AP | B44: 15 | C44: 19 | D44: 88 | E44: 1 | F44: 1 | G44: 220 | I44: -65.35165031 | L44: -65.35165031 | M44: -65.39485582 | N44: -65.37641113 | O44: -65.40309233 | P44: -65.34280198 | Q44: -65.40833975 | R44: -65.91179102
A45: AQ | B45: 15 | C45: 16 | D45: 40 | E45: 1 | F45: 0 | G45: 100 | I45: 100.2491163 | L45: 100.2491163 | M45: 100.2874355 | N45: 100.2710768 | O45: 100.2947405 | P45: 100.2412687 | Q45: 100.3288062 | R45: 100.4305564
A46: AR | B46: 13 | C46: 16 | D46: 40 | E46: 1 | F46: 0 | G46: 100 | I46: 19.75088371 | L46: 19.75088371 | M46: 19.71256451 | N46: 19.7289232 | O46: 19.70525951 | P46: 19.75873134 | Q46: 19.67119378 | R46: 19.56944359
A47: AS | B47: 20 | C47: 21 | D47: 80 | E47: 1 | F47: 0 | G47: 200 | I47: 59.84325356 | L47: 59.84325356 | M47: 59.85619828 | N47: 59.8506721 | O47: 59.858666 | P47: 59.84060254 | Q47: 59.86023817 | R47: 59.597711
A48: AT | B48: 17 | C48: 21 | D48: 80 | E48: 1 | F48: 0 | G48: 200 | I48: 0.3335479598 | L48: 0.3335479598 | M48: 0.3294969829 | N48: 0.3312263686 | O48: 0.3287247221 | P48: 0.3343775844 | Q48: 0.3282327208 | R48: 0.4111003989
A49: AU | B49: 17 | C49: 18 | D49: 88 | E49: 1 | F49: 0 | G49: 220 | I49: 19.66645204 | L49: 19.66645204 | M49: 19.67050302 | N49: 19.66877363 | O49: 19.67127528 | P49: 19.66562242 | Q49: 19.67176728 | R49: 19.6388996
A50: AV | B50: 18 | C50: 19 | D50: 80 | E50: 1 | F50: 0 | G50: 200 | I50: -60.15674644 | L50: -60.15674644 | M50: -60.14380172 | N50: -60.1493279 | O50: -60.141334 | P50: -60.15939746 | Q50: -60.13976183 | R50: -59.802289
A51: AW | B51: 18 | C51: 21 | D51: 92 | E51: 1 | F51: 0 | G51: 230 | I51: -20.17680152 | L51: -20.17680152 | M51: -20.18569526 | N51: -20.18189847 | O51: -20.18739072 | P51: -20.17498012 | Q51: -20.18847089 | R51: -20.0588114
A52: AX | B52: 19 | C52: 20 | D52: 72 | E52: 1 | F52: 0 | G52: 180 | I52: -15.50839674 | L52: -15.50839674 | M52: -15.53865754 | N52: -15.52573903 | O52: -15.54442633 | P52: -15.50219944 | Q52: -15.54810158 | R52: -15.51408002

Sheet GSK
A1: GSK | B1: 0
A2: zone A | C2: zone B | E2: zone C | G2: zone D | I2: zone E | K2: zone F | R2: before | S2: after
A3: node | B3: value | C3: node | D3: value | E3: node | F3: value | G3: node | H3: value | I3: node | J3: value | K3: node | L3: value | Q3: node | R3: generation [MW] | S3: generation [MW]
A4: sum | B4: =SUM(B5:B10) -> 1 | C4: sum | D4: =SUM(D5:D10) -> 1 | E4: sum | F4: =SUM(F5:F10) -> 1 | G4: sum | H4: =SUM(H5:H10) -> 1 | I4: sum | J4: =SUM(J5:J10) -> 1 | K4: sum | L4: =SUM(L5:L10) -> 1 | Q4: N1 | R4: 5 | S4: 5.2
A5: 22 | B5: 0.1 | C5: 1 | D5: 0.4 | E5: 7 | F5: 0.1 | G5: 28 | H5: 0.2 | I5: 13 | J5: 0.4 | K5: 17 | L5: 0.05 | Q5: N2 | R5: 10 | S5: 10.2
A6: 23 | B6: 0.2 | C6: 2 | D6: 0.4 | E6: 8 | F6: 0.1 | G6: 29 | H6: 0.1 | I6: 14 | J6: 0.5 | K6: 18 | L6: 0.5 | Q6: N3 | R6: 3 | S6: 3
A7: 24 | B7: 0.2 | C7: 3 | D7: 0 | E7: 9 | F7: 0 | G7: 30 | H7: 0.2 | I7: 15 | J7: 0.1 | K7: 19 | L7: 0.2 | Q7: N4 | R7: 7 | S7: 7.3
A8: 25 | B8: 0.2 | C8: 4 | D8: 0 | E8: 10 | F8: 0.3 | G8: 31 | H8: 0.2 | I8: 16 | J8: 0 | K8: 20 | L8: 0.2 | Q8: N5 | R8: 5 | S8: 5.3
A9: 26 | B9: 0.2 | C9: 5 | D9: 0.2 | E9: 11 | F9: 0.3 | G9: 32 | H9: 0.2 | K9: 21 | L9: 0.05 | Q9: NP | R9: =SUM(R4:R8) -> 30 | S9: =SUM(S4:S8) -> 31
A10: 27 | B10: 0.1 | C10: 6 | D10: 0 | E10: 12 | F10: 0.2 | G10: 33 | H10: 0.1
A16: zone A | C16: zone B | E16: zone C
A17: hub | B17: value | C17: hub | D17: value | E17: hub | F17: value
A18: sum | B18: =SUM(B19:B24) -> 1 | C18: sum | D18: =SUM(D19:D24) -> 1 | E18: sum | F18: =SUM(F19:F24) -> 1
A19: 22 | B19: 0.1 | C19: 1 | D19: 0.4 | E19: 7 | F19: 0.1
A20: 23 | B20: 0.2 | C20: 2 | D20: 0.4 | E20: 8 | F20: 0.1
A21: 24 | B21: 0.2 | C21: 3 | D21: 0 | E21: 9 | F21: 0
A22: 25 | B22: 0.2 | C22: 4 | D22: 0 | E22: 10 | F22: 0.3
A23: 26 | B23: 0.2 | C23: 5 | D23: 0.2 | E23: 11 | F23: 0.3
A24: 27 | B24: 0.1 | C24: 6 | D24: 0 | E24: 12 | F24: 0.2
A26: zone D | C26: zone E | E26: zone F
A27: node | B27: value | C27: node | D27: value | E27: node | F27: value
A28: sum | B28: =SUM(B29:B34) -> 1 | C28: sum | D28: =SUM(D29:D34) -> 1 | E28: sum | F28: =SUM(F29:F34) -> 1
A29: 28 | B29: 0.2 | C29: 13 | D29: 0.4 | E29: 17 | F29: 0.05
A30: 29 | B30: 0.1 | C30: 14 | D30: 0.5 | E30: 18 | F30: 0.5
A31: 30 | B31: 0.2 | C31: 15 | D31: 0.1 | E31: 19 | F31: 0.2
A32: 31 | B32: 0.2 | C32: 16 | D32: 0 | E32: 20 | F32: 0.2
A33: 32 | B33: 0.2 | E33: 21 | F33: 0.05
A34: 33 | B34: 0.1

Sheet b-matrix
A1: B-Matrix
B2: 1 | C2: 2 | D2: 3 | E2: 4 | F2: 5 | G2: 6 | H2: 7 | I2: 8 | J2: 9 | K2: 10 | L2: 11 | M2: 12 | N2: 13 | O2: 14 | P2: 15 | Q2: 16 | R2: 17 | S2: 18 | T2: 19 | U2: 20 | V2: 21 | W2: 22 | X2: 23 | Y2: 24 | Z2: 25 | AA2: 26 | AB2: 27 | AC2: 28 | AD2: 29 | AE2: 30 | AF2: 31 | AG2: 32 | AH2: 33
A3: 1 | B3: 80 | C3: -28 | D3: 0 | E3: -52 | F3: 0 | G3: 0 | H3: 0 | I3: 0 | J3: 0 | K3: 0 | L3: 0 | M3: 0 | N3: 0 | O3: 0 | P3: 0 | Q3: 0 | R3: 0 | S3: 0 | T3: 0 | U3: 0 | V3: 0 | W3: 0 | X3: 0 | Y3: 0 | Z3: 0 | AA3: 0 | AB3: 0 | AC3: 0 | AD3: 0 | AE3: 0 | AF3: 0 | AG3: 0 | AH3: 0
A4: 2 | B4: -28 | C4: 64 | D4: -36 | E4: 0 | F4: 0 | G4: 0 | H4: 0 | I4: 0 | J4: 0 | K4: 0 | L4: 0 | M4: 0 | N4: 0 | O4: 0 | P4: 0 | Q4: 0 | R4: 0 | S4: 0 | T4: 0 | U4: 0 | V4: 0 | W4: 0 | X4: 0 | Y4: 0 | Z4: 0 | AA4: 0 | AB4: 0 | AC4: 0 | AD4: 0 | AE4: 0 | AF4: 0 | AG4: 0 | AH4: 0
A5: 3 | B5: 0 | C5: -36 | D5: 176 | E5: -40 | F5: -100 | G5: 0 | H5: 0 | I5: 0 | J5: 0 | K5: 0 | L5: 0 | M5: 0 | N5: 0 | O5: 0 | P5: 0 | Q5: 0 | R5: 0 | S5: 0 | T5: 0 | U5: 0 | V5: 0 | W5: 0 | X5: 0 | Y5: 0 | Z5: 0 | AA5: 0 | AB5: 0 | AC5: 0 | AD5: 0 | AE5: 0 | AF5: 0 | AG5: 0 | AH5: 0
A6: 4 | B6: -52 | C6: 0 | D6: -40 | E6: 200 | F6: 0 | G6: -60 | H6: 0 | I6: 0 | J6: 0 | K6: 0 | L6: 0 | M6: 0 | N6: 0 | O6: 0 | P6: 0 | Q6: 0 | R6: 0 | S6: 0 | T6: 0 | U6: 0 | V6: 0 | W6: 0 | X6: 0 | Y6: 0 | Z6: 0 | AA6: 0 | AB6: 0 | AC6: -48 | AD6: 0 | AE6: 0 | AF6: 0 | AG6: 0 | AH6: 0
A7: 5 | B7: 0 | C7: 0 | D7: -100 | E7: 0 | F7: 252 | G7: -52 | H7: -40 | I7: 0 | J7: 0 | K7: 0 | L7: 0 | M7: 0 | N7: 0 | O7: 0 | P7: 0 | Q7: 0 | R7: 0 | S7: 0 | T7: 0 | U7: 0 | V7: 0 | W7: 0 | X7: 0 | Y7: 0 | Z7: -40 | AA7: -20 | AB7: 0 | AC7: 0 | AD7: 0 | AE7: 0 | AF7: 0 | AG7: 0 | AH7: 0
A8: 6 | B8: 0 | C8: 0 | D8: 0 | E8: -60 | F8: -52 | G8: 244 | H8: 0 | I8: 0 | J8: 0 | K8: 0 | L8: -48 | M8: -52 | N8: 0 | O8: 0 | P8: 0 | Q8: 0 | R8: 0 | S8: 0 | T8: 0 | U8: 0 | V8: 0 | W8: 0 | X8: 0 | Y8: 0 | Z8: 0 | AA8: 0 | AB8: 0 | AC8: 0 | AD8: -32 | AE8: 0 | AF8: 0 | AG8: 0 | AH8: 0
A9: 7 | B9: 0 | C9: 0 | D9: 0 | E9: 0 | F9: -40 | G9: 0 | H9: 128 | I9: -48 | J9: 0 | K9: 0 | L9: 0 | M9: -40 | N9: 0 | O9: 0 | P9: 0 | Q9: 0 | R9: 0 | S9: 0 | T9: 0 | U9: 0 | V9: 0 | W9: 0 | X9: 0 | Y9: 0 | Z9: 0 | AA9: 0 | AB9: 0 | AC9: 0 | AD9: 0 | AE9: 0 | AF9: 0 | AG9: 0 | AH9: 0
A10: 8 | B10: 0 | C10: 0 | D10: 0 | E10: 0 | F10: 0 | G10: 0 | H10: -48 | I10: 188 | J10: -40 | K10: 0 | L10: 0 | M10: 0 | N10: 0 | O10: 0 | P10: 0 | Q10: 0 | R10: 0 | S10: 0 | T10: 0 | U10: 0 | V10: 0 | W10: 0 | X10: -60 | Y10: -40 | Z10: 0 | AA10: 0 | AB10: 0 | AC10: 0 | AD10: 0 | AE10: 0 | AF10: 0 | AG10: 0 | AH10: 0
A11: 9 | B11: 0 | C11: 0 | D11: 0 | E11: 0 | F11: 0 | G11: 0 | H11: 0 | I11: -40 | J11: 68 | K11: -28 | L11: 0 | M11: 0 | N11: 0 | O11: 0 | P11: 0 | Q11: 0 | R11: 0 | S11: 0 | T11: 0 | U11: 0 | V11: 0 | W11: 0 | X11: 0 | Y11: 0 | Z11: 0 | AA11: 0 | AB11: 0 | AC11: 0 | AD11: 0 | AE11: 0 | AF11: 0 | AG11: 0 | AH11: 0
A12: 10 | B12: 0 | C12: 0 | D12: 0 | E12: 0 | F12: 0 | G12: 0 | H12: 0 | I12: 0 | J12: -28 | K12: 108 | L12: 0 | M12: -40 | N12: 0 | O12: -40 | P12: 0 | Q12: 0 | R12: 0 | S12: 0 | T12: 0 | U12: 0 | V12: 0 | W12: 0 | X12: 0 | Y12: 0 | Z12: 0 | AA12: 0 | AB12: 0 | AC12: 0 | AD12: 0 | AE12: 0 | AF12: 0 | AG12: 0 | AH12: 0
A13: 11 | B13: 0 | C13: 0 | D13: 0 | E13: 0 | F13: 0 | G13: -48 | H13: 0 | I13: 0 | J13: 0 | K13: 0 | L13: 104 | M13: -28 | N13: -28 | O13: 0 | P13: 0 | Q13: 0 | R13: 0 | S13: 0 | T13: 0 | U13: 0 | V13: 0 | W13: 0 | X13: 0 | Y13: 0 | Z13: 0 | AA13: 0 | AB13: 0 | AC13: 0 | AD13: 0 | AE13: 0 | AF13: 0 | AG13: 0 | AH13: 0
A14: 12 | B14: 0 | C14: 0 | D14: 0 | E14: 0 | F14: 0 | G14: -52 | H14: -40 | I14: 0 | J14: 0 | K14: -40 | L14: -28 | M14: 160 | N14: 0 | O14: 0 | P14: 0 | Q14: 0 | R14: 0 | S14: 0 | T14: 0 | U14: 0 | V14: 0 | W14: 0 | X14: 0 | Y14: 0 | Z14: 0 | AA14: 0 | AB14: 0 | AC14: 0 | AD14: 0 | AE14: 0 | AF14: 0 | AG14: 0 | AH14: 0
A15: 13 | B15: 0 | C15: 0 | D15: 0 | E15: 0 | F15: 0 | G15: 0 | H15: 0 | I15: 0 | J15: 0 | K15: 0 | L15: -28 | M15: 0 | N15: 156 | O15: 0 | P15: -48 | Q15: -40 | R15: 0 | S15: 0 | T15: 0 | U15: 0 | V15: 0 | W15: 0 | X15: 0 | Y15: 0 | Z15: 0 | AA15: 0 | AB15: 0 | AC15: 0 | AD15: 0 | AE15: -40 | AF15: 0 | AG15: 0 | AH15: 0
A16: 14 | B16: 0 | C16: 0 | D16: 0 | E16: 0 | F16: 0 | G16: 0 | H16: 0 | I16: 0 | J16: 0 | K16: -40 | L16: 0 | M16: 0 | N16: 0 | O16: 180 | P16: -60 | Q16: 0 | R16: 0 | S16: 0 | T16: 0 | U16: -80 | V16: 0 | W16: 0 | X16: 0 | Y16: 0 | Z16: 0 | AA16: 0 | AB16: 0 | AC16: 0 | AD16: 0 | AE16: 0 | AF16: 0 | AG16: 0 | AH16: 0
A17: 15 | B17: 0 | C17: 0 | D17: 0 | E17: 0 | F17: 0 | G17: 0 | H17: 0 | I17: 0 | J17: 0 | K17: 0 | L17: 0 | M17: 0 | N17: -48 | O17: -60 | P17: 236 | Q17: -40 | R17: 0 | S17: 0 | T17: -88 | U17: 0 | V17: 0 | W17: 0 | X17: 0 | Y17: 0 | Z17: 0 | AA17: 0 | AB17: 0 | AC17: 0 | AD17: 0 | AE17: 0 | AF17: 0 | AG17: 0 | AH17: 0
A18: 16 | B18: 0 | C18: 0 | D18: 0 | E18: 0 | F18: 0 | G18: 0 | H18: 0 | I18: 0 | J18: 0 | K18: 0 | L18: 0 | M18: 0 | N18: -40 | O18: 0 | P18: -40 | Q18: 80 | R18: 0 | S18: 0 | T18: 0 | U18: 0 | V18: 0 | W18: 0 | X18: 0 | Y18: 0 | Z18: 0 | AA18: 0 | AB18: 0 | AC18: 0 | AD18: 0 | AE18: 0 | AF18: 0 | AG18: 0 | AH18: 0
A19: 17 | B19: 0 | C19: 0 | D19: 0 | E19: 0 | F19: 0 | G19: 0 | H19: 0 | I19: 0 | J19: 0 | K19: 0 | L19: 0 | M19: 0 | N19: 0 | O19: 0 | P19: 0 | Q19: 0 | R19: 168 | S19: -88 | T19: 0 | U19: 0 | V19: -80 | W19: 0 | X19: 0 | Y19: 0 | Z19: 0 | AA19: 0 | AB19: 0 | AC19: 0 | AD19: 0 | AE19: 0 | AF19: 0 | AG19: 0 | AH19: 0
A20: 18 | B20: 0 | C20: 0 | D20: 0 | E20: 0 | F20: 0 | G20: 0 | H20: 0 | I20: 0 | J20: 0 | K20: 0 | L20: 0 | M20: 0 | N20: 0 | O20: 0 | P20: 0 | Q20: 0 | R20: -88 | S20: 260 | T20: -80 | U20: 0 | V20: -92 | W20: 0 | X20: 0 | Y20: 0 | Z20: 0 | AA20: 0 | AB20: 0 | AC20: 0 | AD20: 0 | AE20: 0 | AF20: 0 | AG20: 0 | AH20: 0
A21: 19 | B21: 0 | C21: 0 | D21: 0 | E21: 0 | F21: 0 | G21: 0 | H21: 0 | I21: 0 | J21: 0 | K21: 0 | L21: 0 | M21: 0 | N21: 0 | O21: 0 | P21: -88 | Q21: 0 | R21: 0 | S21: -80 | T21: 240 | U21: -72 | V21: 0 | W21: 0 | X21: 0 | Y21: 0 | Z21: 0 | AA21: 0 | AB21: 0 | AC21: 0 | AD21: 0 | AE21: 0 | AF21: 0 | AG21: 0 | AH21: 0
A22: 20 | B22: 0 | C22: 0 | D22: 0 | E22: 0 | F22: 0 | G22: 0 | H22: 0 | I22: 0 | J22: 0 | K22: 0 | L22: 0 | M22: 0 | N22: 0 | O22: -80 | P22: 0 | Q22: 0 | R22: 0 | S22: 0 | T22: -72 | U22: 232 | V22: -80 | W22: 0 | X22: 0 | Y22: 0 | Z22: 0 | AA22: 0 | AB22: 0 | AC22: 0 | AD22: 0 | AE22: 0 | AF22: 0 | AG22: 0 | AH22: 0
A23: 21 | B23: 0 | C23: 0 | D23: 0 | E23: 0 | F23: 0 | G23: 0 | H23: 0 | I23: 0 | J23: 0 | K23: 0 | L23: 0 | M23: 0 | N23: 0 | O23: 0 | P23: 0 | Q23: 0 | R23: -80 | S23: -92 | T23: 0 | U23: -80 | V23: 252 | W23: 0 | X23: 0 | Y23: 0 | Z23: 0 | AA23: 0 | AB23: 0 | AC23: 0 | AD23: 0 | AE23: 0 | AF23: 0 | AG23: 0 | AH23: 0
A24: 22 | B24: 0 | C24: 0 | D24: 0 | E24: 0 | F24: 0 | G24: 0 | H24: 0 | I24: 0 | J24: 0 | K24: 0 | L24: 0 | M24: 0 | N24: 0 | O24: 0 | P24: 0 | Q24: 0 | R24: 0 | S24: 0 | T24: 0 | U24: 0 | V24: 0 | W24: 380 | X24: -160 | Y24: 0 | Z24: 0 | AA24: -140 | AB24: -80 | AC24: 0 | AD24: 0 | AE24: 0 | AF24: 0 | AG24: 0 | AH24: 0
A25: 23 | B25: 0 | C25: 0 | D25: 0 | E25: 0 | F25: 0 | G25: 0 | H25: 0 | I25: -60 | J25: 0 | K25: 0 | L25: 0 | M25: 0 | N25: 0 | O25: 0 | P25: 0 | Q25: 0 | R25: 0 | S25: 0 | T25: 0 | U25: 0 | V25: 0 | W25: -160 | X25: 268 | Y25: -48 | Z25: 0 | AA25: 0 | AB25: 0 | AC25: 0 | AD25: 0 | AE25: 0 | AF25: 0 | AG25: 0 | AH25: 0
A26: 24 | B26: 0 | C26: 0 | D26: 0 | E26: 0 | F26: 0 | G26: 0 | H26: 0 | I26: -40 | J26: 0 | K26: 0 | L26: 0 | M26: 0 | N26: 0 | O26: 0 | P26: 0 | Q26: 0 | R26: 0 | S26: 0 | T26: 0 | U26: 0 | V26: 0 | W26: 0 | X26: -48 | Y26: 118 | Z26: -30 | AA26: 0 | AB26: 0 | AC26: 0 | AD26: 0 | AE26: 0 | AF26: 0 | AG26: 0 | AH26: 0
A27: 25 | B27: 0 | C27: 0 | D27: 0 | E27: 0 | F27: -40 | G27: 0 | H27: 0 | I27: 0 | J27: 0 | K27: 0 | L27: 0 | M27: 0 | N27: 0 | O27: 0 | P27: 0 | Q27: 0 | R27: 0 | S27: 0 | T27: 0 | U27: 0 | V27: 0 | W27: 0 | X27: 0 | Y27: -30 | Z27: 182 | AA27: -24 | AB27: -88 | AC27: 0 | AD27: 0 | AE27: 0 | AF27: 0 | AG27: 0 | AH27: 0
A28: 26 | B28: 0 | C28: 0 | D28: 0 | E28: 0 | F28: -20 | G28: 0 | H28: 0 | I28: 0 | J28: 0 | K28: 0 | L28: 0 | M28: 0 | N28: 0 | O28: 0 | P28: 0 | Q28: 0 | R28: 0 | S28: 0 | T28: 0 | U28: 0 | V28: 0 | W28: -140 | X28: 0 | Y28: 0 | Z28: -24 | AA28: 184 | AB28: 0 | AC28: 0 | AD28: 0 | AE28: 0 | AF28: 0 | AG28: 0 | AH28: 0
A29: 27 | B29: 0 | C29: 0 | D29: 0 | E29: 0 | F29: 0 | G29: 0 | H29: 0 | I29: 0 | J29: 0 | K29: 0 | L29: 0 | M29: 0 | N29: 0 | O29: 0 | P29: 0 | Q29: 0 | R29: 0 | S29: 0 | T29: 0 | U29: 0 | V29: 0 | W29: -80 | X29: 0 | Y29: 0 | Z29: -88 | AA29: 0 | AB29: 168 | AC29: 0 | AD29: 0 | AE29: 0 | AF29: 0 | AG29: 0 | AH29: 0
A30: 28 | B30: 0 | C30: 0 | D30: 0 | E30: -48 | F30: 0 | G30: 0 | H30: 0 | I30: 0 | J30: 0 | K30: 0 | L30: 0 | M30: 0 | N30: 0 | O30: 0 | P30: 0 | Q30: 0 | R30: 0 | S30: 0 | T30: 0 | U30: 0 | V30: 0 | W30: 0 | X30: 0 | Y30: 0 | Z30: 0 | AA30: 0 | AB30: 0 | AC30: 188 | AD30: -60 | AE30: 0 | AF30: 0 | AG30: 0 | AH30: -80
A31: 29 | B31: 0 | C31: 0 | D31: 0 | E31: 0 | F31: 0 | G31: -32 | H31: 0 | I31: 0 | J31: 0 | K31: 0 | L31: 0 | M31: 0 | N31: 0 | O31: 0 | P31: 0 | Q31: 0 | R31: 0 | S31: 0 | T31: 0 | U31: 0 | V31: 0 | W31: 0 | X31: 0 | Y31: 0 | Z31: 0 | AA31: 0 | AB31: 0 | AC31: -60 | AD31: 122 | AE31: -30 | AF31: 0 | AG31: 0 | AH31: 0
A32: 30 | B32: 0 | C32: 0 | D32: 0 | E32: 0 | F32: 0 | G32: 0 | H32: 0 | I32: 0 | J32: 0 | K32: 0 | L32: 0 | M32: 0 | N32: -40 | O32: 0 | P32: 0 | Q32: 0 | R32: 0 | S32: 0 | T32: 0 | U32: 0 | V32: 0 | W32: 0 | X32: 0 | Y32: 0 | Z32: 0 | AA32: 0 | AB32: 0 | AC32: 0 | AD32: -30 | AE32: 102 | AF32: -32 | AG32: 0 | AH32: 0
A33: 31 | B33: 0 | C33: 0 | D33: 0 | E33: 0 | F33: 0 | G33: 0 | H33: 0 | I33: 0 | J33: 0 | K33: 0 | L33: 0 | M33: 0 | N33: 0 | O33: 0 | P33: 0 | Q33: 0 | R33: 0 | S33: 0 | T33: 0 | U33: 0 | V33: 0 | W33: 0 | X33: 0 | Y33: 0 | Z33: 0 | AA33: 0 | AB33: 0 | AC33: 0 | AD33: 0 | AE33: -32 | AF33: 72 | AG33: -40 | AH33: 0
A34: 32 | B34: 0 | C34: 0 | D34: 0 | E34: 0 | F34: 0 | G34: 0 | H34: 0 | I34: 0 | J34: 0 | K34: 0 | L34: 0 | M34: 0 | N34: 0 | O34: 0 | P34: 0 | Q34: 0 | R34: 0 | S34: 0 | T34: 0 | U34: 0 | V34: 0 | W34: 0 | X34: 0 | Y34: 0 | Z34: 0 | AA34: 0 | AB34: 0 | AC34: 0 | AD34: 0 | AE34: 0 | AF34: -40 | AG34: 120 | AH34: -80
A35: 33 | B35: 0 | C35: 0 | D35: 0 | E35: 0 | F35: 0 | G35: 0 | H35: 0 | I35: 0 | J35: 0 | K35: 0 | L35: 0 | M35: 0 | N35: 0 | O35: 0 | P35: 0 | Q35: 0 | R35: 0 | S35: 0 | T35: 0 | U35: 0 | V35: 0 | W35: 0 | X35: 0 | Y35: 0 | Z35: 0 | AA35: 0 | AB35: 0 | AC35: -80 | AD35: 0 | AE35: 0 | AF35: 0 | AG35: -80 | AH35: 160

Sheet b-inverse
A1: B-Matrix-inverse
B2: 1 | C2: 2 | D2: 3 | E2: 4 | F2: 5 | G2: 6 | H2: 7 | I2: 8 | J2: 9 | K2: 10 | L2: 11 | M2: 12 | N2: 13 | O2: 14 | P2: 15 | Q2: 16 | R2: 17 | S2: 18 | T2: 19 | U2: 20 | V2: 21 | W2: 22 | X2: 23 | Y2: 24 | Z2: 25 | AA2: 26 | AB2: 27 | AC2: 28 | AD2: 29 | AE2: 30 | AF2: 31 | AG2: 32
A3: 1 | B3: 0.03834855378 | C3: 0.03042827999 | D3: 0.02426806705 | E3: 0.02338254736 | F3: 0.02240459827 | G3: 0.02032670206 | H3: 0.02124772865 | I3: 0.02124812499 | J3: 0.02044806333 | K3: 0.0193051181 | L3: 0.01911996319 | M3: 0.02009038342 | N3: 0.01608084777 | O3: 0.01771979112 | P3: 0.01701339305 | Q3: 0.01654712041 | R3: 0.01735352339 | S3: 0.01733111758 | T3: 0.01725236117 | U3: 0.01745692619 | V3: 0.01737816978 | W3: 0.0217156697 | X3: 0.02158116305 | Y3: 0.02154910515 | Z3: 0.0218991194 | AA3: 0.02181448146 | AB3: 0.0218117624 | AC3: 0.01025124727 | AD3: 0.0134145369 | AE3: 0.01236814 | AF3: 0.00674625818 | AG3: 0.002248752727
A4: 2 | B4: 0.03042827999 | C4: 0.04513526359 | D4: 0.02879625083 | E4: 0.02250913498 | F4: 0.02542905258 | G4: 0.02134712112 | H4: 0.02355725086 | I4: 0.02363817993 | J4: 0.02249561178 | K4: 0.02086337157 | L4: 0.02025922454 | M4: 0.02158833427 | N4: 0.01706514924 | O4: 0.01899584071 | P4: 0.0181636968 | Q4: 0.01761442302 | R4: 0.0185643737 | S4: 0.01853797944 | T4: 0.01844520361 | U4: 0.01868618323 | V4: 0.01859340739 | W4: 0.02436220274 | X4: 0.02415391062 | Y4: 0.02410426692 | Z4: 0.02464628631 | AA4: 0.02451521906 | AB4: 0.02451100842 | AC4: 0.01014331533 | AD4: 0.01377508005 | AE4: 0.01296176568 | AF4: 0.007070054007 | AG4: 0.002356684669
A5: 3 | B5: 0.02426806705 | C5: 0.02879625083 | D5: 0.03231817155 | E5: 0.02182981425 | F5: 0.02778140593 | G5: 0.0221407804 | H5: 0.02535354592 | I5: 0.02549711155 | J5: 0.02408814946 | K5: 0.02207534648 | L5: 0.0211453167 | M5: 0.02275340715 | N5: 0.01783071705 | O5: 0.01998832373 | P5: 0.01905837749 | Q5: 0.01844454727 | R5: 0.01950614617 | S5: 0.01947664978 | T5: 0.01937296995 | U5: 0.01964227203 | V5: 0.0195385922 | W5: 0.02642061732 | X5: 0.0261549365 | Y5: 0.02609161495 | Z5: 0.02678297169 | AA5: 0.02661579274 | AB5: 0.02661042199 | AC5: 0.01005936826 | AD5: 0.0140555025 | AE5: 0.01342347455 | AF5: 0.007321895207 | AG5: 0.002440631736
A6: 4 | B6: 0.02338254736 | C6: 0.02250913498 | D6: 0.02182981425 | E6: 0.02385284633 | F6: 0.02077604595 | G6: 0.01977724564 | H6: 0.02000413976 | I6: 0.01996117233 | J6: 0.01934553724 | K6: 0.01846605854 | L6: 0.01850651478 | M6: 0.0192837945 | N6: 0.01555083928 | O6: 0.0170326875 | P6: 0.01639399872 | Q6: 0.015972419 | R6: 0.01670152707 | S6: 0.01668126889 | T6: 0.01661006139 | U6: 0.01679501856 | V6: 0.01672381106 | W6: 0.02029061344 | X6: 0.02019583744 | Y6: 0.02017324882 | Z6: 0.02041987568 | AA6: 0.02036023814 | AB6: 0.02035832224 | AC6: 0.01030936447 | AD6: 0.01322039829 | AE6: 0.0120484954 | AF6: 0.006571906581 | AG6: 0.002190635527
A7: 5 | B7: 0.02240459827 | C7: 0.02542905258 | D7: 0.02778140593 | E7: 0.02077604595 | F7: 0.03143039713 | G7: 0.02337191163 | H7: 0.0281399746 | I7: 0.02838070262 | J7: 0.02655850792 | K7: 0.02395537263 | L7: 0.02251983064 | M7: 0.02456067845 | N7: 0.01901827257 | O7: 0.02152787211 | P7: 0.02044621405 | Q7: 0.01973224331 | R7: 0.0209670319 | S7: 0.02093272345 | T7: 0.02081212925 | U7: 0.02112536539 | V7: 0.02100477119 | W7: 0.02961364813 | X7: 0.02925894545 | Y7: 0.0291744067 | Z7: 0.03009741682 | AA7: 0.02987422111 | AB7: 0.02986705078 | AC7: 0.009929148837 | AD7: 0.01449049627 | AE7: 0.0141396814 | AF7: 0.007712553489 | AG7: 0.002570851163
A8: 6 | B8: 0.02032670206 | C8: 0.02134712112 | D8: 0.0221407804 | E8: 0.01977724564 | F8: 0.02337191163 | G8: 0.02564448962 | H8: 0.02353519688 | I8: 0.02331440336 | J8: 0.0230096426 | K8: 0.02257427008 | L8: 0.02343776276 | M8: 0.02396343435 | N8: 0.01912913081 | O8: 0.02088034505 | P8: 0.0201255573 | Q8: 0.01962734406 | R8: 0.02048898725 | S8: 0.0204650466 | T8: 0.02038089522 | U8: 0.02059947335 | V8: 0.02051532196 | W8: 0.02333765309 | X8: 0.02333096444 | Y8: 0.02332937029 | Z8: 0.02334677554 | AA8: 0.02334256673 | AB8: 0.02334243152 | AC8: 0.009878333923 | AD8: 0.01513031644 | AE8: 0.01441916342 | AF8: 0.007864998231 | AG8: 0.002621666077
A9: 7 | B9: 0.02124772865 | C9: 0.02355725086 | D9: 0.02535354592 | E9: 0.02000413976 | F9: 0.0281399746 | G9: 0.02353519688 | H9: 0.03774577121 | I9: 0.03297438015 | J9: 0.030595197 | K9: 0.02719636393 | L9: 0.02395865334 | M9: 0.02807723711 | N9: 0.02056599491 | O9: 0.02393630761 | P9: 0.0224836751 | Q9: 0.02152483501 | R9: 0.02318311697 | S9: 0.02313704181 | T9: 0.02297508763 | U9: 0.02339575384 | V9: 0.02323379965 | W9: 0.03101990288 | X9: 0.03158218104 | Y9: 0.03171619268 | Z9: 0.03025302802 | AA9: 0.03060684004 | AB9: 0.03061820652 | AC9: 0.009785258601 | AD9: 0.01465716514 | AE9: 0.0149310777 | AF9: 0.008144224198 | AG9: 0.002714741399
A10: 8 | B10: 0.02124812499 | C10: 0.02363817993 | D10: 0.02549711155 | E10: 0.01996117233 | F10: 0.02838070262 | G10: 0.02331440336 | H10: 0.03297438015 | I10: 0.04167337097 | J10: 0.03631364915 | K10: 0.0286569037 | L10: 0.02368152358 | M10: 0.02712926868 | N10: 0.02086312742 | O10: 0.02482481689 | P10: 0.02311729612 | Q10: 0.02199021177 | R10: 0.02393946657 | S10: 0.02388530677 | T10: 0.02369493506 | U10: 0.02418941407 | V10: 0.02399904236 | W10: 0.03629934558 | X10: 0.03784538408 | Y10: 0.03821386213 | Z10: 0.03419074855 | AA10: 0.03516358912 | AB10: 0.03519484237 | AC10: 0.009762152127 | AD10: 0.01461913881 | AE10: 0.0150581633 | AF10: 0.008213543618 | AG10: 0.002737847873
A11: 9 | B11: 0.02044806333 | C11: 0.02249561178 | D11: 0.02408814946 | E11: 0.01934553724 | F11: 0.02655850792 | G11: 0.0230096426 | H11: 0.030595197 | I11: 0.03631364915 | J11: 0.04992852371 | K11: 0.03366405879 | L11: 0.0241531183 | M11: 0.0277697435 | N11: 0.02249673716 | O11: 0.02817324865 | P11: 0.02572662548 | Q11: 0.02411168132 | R11: 0.02690467338 | S11: 0.02682707044 | T11: 0.02655429611 | U11: 0.02726281095 | V11: 0.02699003662 | W11: 0.03236979264 | X11: 0.03350438981 | Y11: 0.0337748062 | Z11: 0.03082234849 | AA11: 0.03153629071 | AB11: 0.03155922666 | AC11: 0.009618825416 | AD11: 0.01466255651 | AE11: 0.01584646021 | AF11: 0.008643523753 | AG11: 0.002881174584
A12: 10 | B12: 0.0193051181 | C12: 0.02086337157 | D12: 0.02207534648 | E12: 0.01846605854 | F12: 0.02395537263 | G12: 0.02257427008 | H12: 0.02719636393 | I12: 0.0286569037 | J12: 0.03366405879 | K12: 0.0408171375 | L12: 0.02482682504 | M12: 0.02868470752 | N12: 0.02483046536 | O12: 0.03295672258 | P12: 0.02945423884 | Q12: 0.0271423521 | R12: 0.03114068312 | S12: 0.03102958998 | T12: 0.03063909762 | U12: 0.03165337793 | V12: 0.03126288556 | W12: 0.02675614557 | X12: 0.02730296942 | Y12: 0.02743329773 | Z12: 0.02601034841 | AA12: 0.02635443584 | AB12: 0.02636548991 | AC12: 0.009414072971 | AD12: 0.01472458181 | AE12: 0.01697259866 | AF12: 0.009257781088 | AG12: 0.003085927029
A13: 11 | B13: 0.01911996319 | C13: 0.02025922454 | D13: 0.0211453167 | E13: 0.01850651478 | F13: 0.02251983064 | G13: 0.02343776276 | H13: 0.02395865334 | I13: 0.02368152358 | J13: 0.0241531183 | K13: 0.02482682504 | L13: 0.03380793854 | M13: 0.02573003173 | N13: 0.02394900382 | O13: 0.02439521307 | P13: 0.02420289321 | Q13: 0.02407594852 | R13: 0.02429549514 | S13: 0.02428939506 | T13: 0.02426795329 | U13: 0.02432364699 | V13: 0.02430220522 | W13: 0.02321186864 | X13: 0.02334698237 | Y13: 0.02337918496 | Z13: 0.02302759095 | AA13: 0.0231126109 | AB13: 0.02311534223 | AC13: 0.009478884082 | AD13: 0.01489529164 | AE13: 0.01661613755 | AF13: 0.009063347754 | AG13: 0.003021115918
A14: 12 | B14: 0.02009038342 | C14: 0.02158833427 | D14: 0.02275340715 | E14: 0.0192837945 | F14: 0.02456067845 | G14: 0.02396343435 | H14: 0.02807723711 | I14: 0.02712926868 | J14: 0.0277697435 | K14: 0.02868470752 | L14: 0.02573003173 | M14: 0.03273135787 | N14: 0.02175715825 | O14: 0.02527853198 | P14: 0.02376079092 | Q14: 0.02275897459 | R14: 0.02449158253 | S14: 0.02444344223 | T14: 0.02427422908 | U14: 0.02471375 | V14: 0.02454453686 | W14: 0.02609082638 | X14: 0.02638957297 | Y14: 0.02646077531 | Z14: 0.02568337457 | AA14: 0.02587136006 | AB14: 0.02587739924 | AC14: 0.009669096132 | AD14: 0.01486946562 | AE14: 0.01556997127 | AF14: 0.008492711604 | AG14: 0.002830903868
A15: 13 | B15: 0.01608084777 | C15: 0.01706514924 | D15: 0.01783071705 | E15: 0.01555083928 | F15: 0.01901827257 | G15: 0.01912913081 | H15: 0.02056599491 | I15: 0.02086312742 | J15: 0.02249673716 | K15: 0.02483046536 | L15: 0.02394900382 | M15: 0.02175715825 | N15: 0.03440348883 | O15: 0.02953738221 | P15: 0.03163471421 | Q15: 0.03301910152 | R15: 0.03062484984 | S15: 0.03069137382 | T15: 0.03092520564 | U15: 0.03031784163 | V15: 0.03055167345 | W15: 0.02011728042 | X15: 0.02033185108 | Y15: 0.02038299119 | Z15: 0.01982463372 | AA15: 0.01995965174 | AB15: 0.01996398929 | AC15: 0.008603900876 | AD15: 0.01451821798 | AE15: 0.02142854518 | AF15: 0.01168829737 | AG15: 0.003896099124
A16: 14 | B16: 0.01771979112 | C16: 0.01899584071 | D16: 0.01998832373 | E16: 0.0170326875 | F16: 0.02152787211 | G16: 0.02088034505 | H16: 0.02393630761 | I16: 0.02482481689 | J16: 0.02817324865 | K16: 0.03295672258 | L16: 0.02439521307 | M16: 0.02527853198 | N16: 0.02953738221 | O16: 0.04398334494 | P16: 0.03775701611 | Q16: 0.03364719916 | R16: 0.04075499052 | S16: 0.04055750141 | T16: 0.0398633272 | U16: 0.04166640275 | V16: 0.04097222854 | W16: 0.02349191183 | X16: 0.0238753716 | Y16: 0.02396676422 | Z16: 0.02296892218 | AA16: 0.02321021321 | AB16: 0.02321796487 | AC16: 0.009015723098 | AD16: 0.01462311571 | AE16: 0.01916352296 | AF16: 0.01045283071 | AG16: 0.003484276902
A17: 15 | B17: 0.01701339305 | C17: 0.0181636968 | D17: 0.01905837749 | E17: 0.01639399872 | F17: 0.02044621405 | G17: 0.0201255573 | H17: 0.0224836751 | I17: 0.02311729612 | J17: 0.02572662548 | K17: 0.02945423884 | L17: 0.02420289321 | M17: 0.02376079092 | N17: 0.03163471421 | O17: 0.03775701611 | P17: 0.04145660993 | Q17: 0.03654566207 | R17: 0.03967525725 | S17: 0.0397926024 | T17: 0.04020507059 | U17: 0.03913370939 | V17: 0.03954617758 | W17: 0.02203741792 | X17: 0.02234808509 | Y17: 0.02242212855 | Z17: 0.02161370798 | AA17: 0.02180919446 | AB17: 0.02181547461 | AC17: 0.008838224331 | AD17: 0.01457790393 | AE17: 0.02013976618 | AF17: 0.01098532701 | AG17: 0.003661775669
A18: 16 | B18: 0.01654712041 | C18: 0.01761442302 | D18: 0.01844454727 | E18: 0.015972419 | F18: 0.01973224331 | G18: 0.01962734406 | H18: 0.02152483501 | I18: 0.02199021177 | J18: 0.02411168132 | K18: 0.0271423521 | L18: 0.02407594852 | M18: 0.02275897459 | N18: 0.03301910152 | O18: 0.03364719916 | P18: 0.03654566207 | Q18: 0.04728238179 | R18: 0.03515005354 | S18: 0.03524198811 | T18: 0.03556513812 | U18: 0.03472577551 | V18: 0.03504892552 | W18: 0.02107734917 | X18: 0.02133996808 | Y18: 0.02140255987 | Z18: 0.02071917085 | AA18: 0.0208844231 | AB18: 0.02088973195 | AC18: 0.008721062604 | AD18: 0.01454806095 | AE18: 0.02078415568 | AF18: 0.01133681219 | AG18: 0.003778937396
A19: 17 | B19: 0.01735352339 | C19: 0.0185643737 | D19: 0.01950614617 | E19: 0.01670152707 | F19: 0.0209670319 | G19: 0.02048898725 | H19: 0.02318311697 | I19: 0.02393946657 | J19: 0.02690467338 | K19: 0.03114068312 | L19: 0.02429549514 | M19: 0.02449158253 | N19: 0.03062484984 | O19: 0.04075499052 | P19: 0.03967525725 | Q19: 0.03515005354 | R19: 0.05835549269 | S19: 0.05242018359 | T19: 0.04593257211 | U19: 0.04637194418 | V19: 0.05238433269 | W19: 0.02273775605 | X19: 0.02308347283 | Y19: 0.0231658699 | Z19: 0.02226624298 | AA19: 0.02248378433 | AB19: 0.02249077301 | AC19: 0.008923689904 | AD19: 0.01459967338 | AE19: 0.01966970553 | AF19: 0.01072893029 | AG19: 0.003576310096
A20: 18 | B20: 0.01733111758 | C20: 0.01853797944 | D20: 0.01947664978 | E20: 0.01668126889 | F20: 0.02093272345 | G20: 0.0204650466 | H20: 0.02313704181 | I20: 0.02388530677 | J20: 0.02682707044 | K20: 0.03102958998 | L20: 0.02428939506 | M20: 0.02444344223 | N20: 0.03069137382 | O20: 0.04055750141 | P20: 0.0397926024 | Q20: 0.03524198811 | R20: 0.05242018359 | S20: 0.05383406272 | T20: 0.04630384787 | U20: 0.04589513139 | V20: 0.05086491654 | W20: 0.02269162185 | X20: 0.02303502976 | Y20: 0.02311687655 | Z20: 0.02222325777 | AA20: 0.02243934627 | AB20: 0.02244628828 | AC20: 0.008918059929 | AD20: 0.01459823933 | AE20: 0.01970067039 | AF20: 0.01074582021 | AG20: 0.003581940071
A21: 19 | B21: 0.01725236117 | C21: 0.01844520361 | D21: 0.01937296995 | E21: 0.01661006139 | F21: 0.02081212925 | G21: 0.02038089522 | H21: 0.02297508763 | I21: 0.02369493506 | J21: 0.02655429611 | K21: 0.03063909762 | L21: 0.02426795329 | M21: 0.02427422908 | N21: 0.03092520564 | O21: 0.0398633272 | P21: 0.04020507059 | Q21: 0.03556513812 | R21: 0.04593257211 | S21: 0.04630384787 | T21: 0.04760888218 | U21: 0.04421913446 | V21: 0.04552416877 | W21: 0.02252946014 | X21: 0.02286475239 | Y21: 0.02294466491 | Z21: 0.02207216476 | AA21: 0.02228314651 | AB21: 0.02228992446 | AC21: 0.008898270569 | AD21: 0.01459319867 | AE21: 0.01980951187 | AF21: 0.01080518829 | AG21: 0.003601729431
A22: 20 | B22: 0.01745692619 | C22: 0.01868618323 | D22: 0.01964227203 | E22: 0.01679501856 | F22: 0.02112536539 | G22: 0.02059947335 | H22: 0.02339575384 | I22: 0.02418941407 | J22: 0.02726281095 | K22: 0.03165337793 | L22: 0.02432364699 | M22: 0.02471375 | N22: 0.03031784163 | O22: 0.04166640275 | P22: 0.03913370939 | Q22: 0.03472577551 | R22: 0.04637194418 | S22: 0.04589513139 | T22: 0.04421913446 | U22: 0.04857243517 | V22: 0.04689643824 | W22: 0.02295066539 | X22: 0.02330703757 | Y22: 0.02339197422 | Z22: 0.02246461971 | AA22: 0.02268886595 | AB22: 0.02269607003 | AC22: 0.008949672236 | AD22: 0.01460629149 | AE22: 0.0195268027 | AF22: 0.01065098329 | AG22: 0.003550327764
A23: 21 | B23: 0.01737816978 | C23: 0.01859340739 | D23: 0.0195385922 | E23: 0.01672381106 | F23: 0.02100477119 | G23: 0.02051532196 | H23: 0.02323379965 | I23: 0.02399904236 | J23: 0.02699003662 | K23: 0.03126288556 | L23: 0.02430220522 | M23: 0.02454453686 | N23: 0.03055167345 | O23: 0.04097222854 | P23: 0.03954617758 | Q23: 0.03504892552 | R23: 0.05238433269 | S23: 0.05086491654 | T23: 0.04552416877 | U23: 0.04689643824 | V23: 0.05405569046 | W23: 0.02278850367 | X23: 0.0231367602 | Y23: 0.02321976258 | Z23: 0.02231352671 | AA23: 0.02253266619 | AB23: 0.02253970621 | AC23: 0.008929882876 | AD23: 0.01460125083 | AE23: 0.01963564418 | AF23: 0.01071035137 | AG23: 0.003570117124
A24: 22 | B24: 0.0217156697 | C24: 0.02436220274 | D24: 0.02642061732 | E24: 0.02029061344 | F24: 0.02961364813 | G24: 0.02333765309 | H24: 0.03101990288 | I24: 0.03629934558 | J24: 0.03236979264 | K24: 0.02675614557 | L24: 0.02321186864 | M24: 0.02609082638 | N24: 0.02011728042 | O24: 0.02349191183 | P24: 0.02203741792 | Q24: 0.02107734917 | R24: 0.02273775605 | S24: 0.02269162185 | T24: 0.02252946014 | U24: 0.02295066539 | V24: 0.02278850367 | W24: 0.04410038377 | X24: 0.0414195825 | Y24: 0.03888387439 | Z24: 0.03827277984 | AA24: 0.04176561634 | AB24: 0.04104782933 | AC24: 0.009829666379 | AD24: 0.01456713057 | AE24: 0.01468683491 | AF24: 0.008011000863 | AG24: 0.002670333621
A25: 23 | B25: 0.02158116305 | C25: 0.02415391062 | D25: 0.0261549365 | E25: 0.02019583744 | F25: 0.02925894545 | G25: 0.02333096444 | H25: 0.03158218104 | I25: 0.03784538408 | J25: 0.03350438981 | K25: 0.02730296942 | L25: 0.02334698237 | M25: 0.02638957297 | N25: 0.02033185108 | O25: 0.0238753716 | P25: 0.02234808509 | Q25: 0.02133996808 | R25: 0.02308347283 | S25: 0.02303502976 | T25: 0.02286475239 | U25: 0.02330703757 | V25: 0.0231367602 | W25: 0.0414195825 | X25: 0.04414244281 | Y25: 0.04025663391 | Z25: 0.03725433947 | AA25: 0.03955448155 | AB25: 0.03923778853 | AC25: 0.009810243391 | AD25: 0.01458209267 | AE25: 0.01479366135 | AF25: 0.008069269828 | AG25: 0.002689756609
A26: 24 | B26: 0.02154910515 | C26: 0.02410426692 | D26: 0.02609161495 | E26: 0.02017324882 | F26: 0.0291744067 | G26: 0.02332937029 | H26: 0.03171619268 | I26: 0.03821386213 | J26: 0.0337748062 | K26: 0.02743329773 | L26: 0.02337918496 | M26: 0.02646077531 | N26: 0.02038299119 | O26: 0.02396676422 | P26: 0.02242212855 | Q26: 0.02140255987 | R26: 0.0231658699 | S26: 0.02311687655 | T26: 0.02294466491 | U26: 0.02339197422 | V26: 0.02321976258 | W26: 0.03888387439 | X26: 0.04025663391 | Y26: 0.04738596373 | Z26: 0.03768902688 | AA26: 0.03767264779 | AB26: 0.03825800189 | AC26: 0.009805614176 | AD26: 0.01458565869 | AE26: 0.01481912203 | AF26: 0.008083157473 | AG26: 0.002694385824
A27: 25 | B27: 0.0218991194 | C27: 0.02464628631 | D27: 0.02678297169 | E27: 0.02041987568 | F27: 0.03009741682 | G27: 0.02334677554 | H27: 0.03025302802 | I27: 0.03419074855 | J27: 0.03082234849 | K27: 0.02601034841 | L27: 0.02302759095 | M27: 0.02568337457 | N27: 0.01982463372 | O27: 0.02296892218 | P27: 0.02161370798 | Q27: 0.02071917085 | R27: 0.02226624298 | S27: 0.02222325777 | T27: 0.02207216476 | U27: 0.02246461971 | V27: 0.02231352671 | W27: 0.03827277984 | X27: 0.03725433947 | Y27: 0.03768902688 | Z27: 0.04304889786 | AA27: 0.03800712534 | AB27: 0.04077455594 | AC27: 0.009856156829 | AD27: 0.01454672418 | AE27: 0.01454113744 | AF27: 0.007931529513 | AG27: 0.002643843171
A28: 26 | B28: 0.02181448146 | C28: 0.02451521906 | D28: 0.02661579274 | E28: 0.02036023814 | F28: 0.02987422111 | G28: 0.02334256673 | H28: 0.03060684004 | I28: 0.03516358912 | J28: 0.03153629071 | K28: 0.02635443584 | L28: 0.0231126109 | M28: 0.02587136006 | N28: 0.01995965174 | O28: 0.02321021321 | P28: 0.02180919446 | Q28: 0.0208844231 | R28: 0.02248378433 | S28: 0.02243934627 | T28: 0.02228314651 | U28: 0.02268886595 | V28: 0.02253266619 | W28: 0.04176561634 | X28: 0.03955448155 | Y28: 0.03767264779 | Z28: 0.03800712534 | AA28: 0.04541761803 | AB28: 0.03979688296 | AC28: 0.009843934966 | AD28: 0.01455613905 | AE28: 0.01460835769 | AF28: 0.007968195102 | AG28: 0.002656065034
A29: 27 | B29: 0.0218117624 | C29: 0.02451100842 | D29: 0.02661042199 | E29: 0.02035832224 | F29: 0.02986705078 | G29: 0.02334243152 | H29: 0.03061820652 | I29: 0.03519484237 | J29: 0.03155922666 | K29: 0.02636548991 | L29: 0.02311534223 | M29: 0.02587739924 | N29: 0.01996398929 | O29: 0.02321796487 | P29: 0.02181547461 | Q29: 0.02088973195 | R29: 0.02249077301 | S29: 0.02244628828 | T29: 0.02228992446 | U29: 0.02269607003 | V29: 0.02253970621 | W29: 0.04104782933 | X29: 0.03923778853 | Y29: 0.03825800189 | Z29: 0.04077455594 | AA29: 0.03979688296 | AB29: 0.04685706708 | AC29: 0.009843542329 | AD29: 0.01455644151 | AE29: 0.01461051719 | AF29: 0.007969373013 | AG29: 0.002656457671
A30: 28 | B30: 0.01025124727 | C30: 0.01014331533 | D30: 0.01005936826 | E30: 0.01030936447 | F30: 0.009929148837 | G30: 0.009878333923 | H30: 0.009785258601 | I30: 0.009762152127 | J30: 0.009618825416 | K30: 0.009414072971 | L30: 0.009478884082 | M30: 0.009669096132 | N30: 0.008603900876 | O30: 0.009015723098 | P30: 0.008838224331 | Q30: 0.008721062604 | R30: 0.008923689904 | S30: 0.008918059929 | T30: 0.008898270569 | U30: 0.008949672236 | V30: 0.008929882876 | W30: 0.009829666379 | X30: 0.009810243391 | Y30: 0.009805614176 | Z30: 0.009856156829 | AA30: 0.009843934966 | AB30: 0.009843542329 | AC30: 0.01111944313 | AD30: 0.009926763577 | AE30: 0.007593062759 | AF30: 0.004141670596 | AG30: 0.001380556865
A31: 29 | B31: 0.0134145369 | C31: 0.01377508005 | D31: 0.0140555025 | E31: 0.01322039829 | F31: 0.01449049627 | G31: 0.01513031644 | H31: 0.01465716514 | I31: 0.01461913881 | J31: 0.01466255651 | K31: 0.01472458181 | L31: 0.01489529164 | M31: 0.01486946562 | N31: 0.01451821798 | O31: 0.01462311571 | P31: 0.01457790393 | Q31: 0.01454806095 | R31: 0.01459967338 | S31: 0.01459823933 | T31: 0.01459319867 | U31: 0.01460629149 | V31: 0.01460125083 | W31: 0.01456713057 | X31: 0.01458209267 | Y31: 0.01458565869 | Z31: 0.01454672418 | AA31: 0.01455613905 | AB31: 0.01455644151 | AC31: 0.009926763577 | AD31: 0.02052754058 | AE31: 0.01415280033 | AF31: 0.007719709269 | AG31: 0.002573236423
A32: 30 | B32: 0.01236814 | C32: 0.01296176568 | D32: 0.01342347455 | E32: 0.0120484954 | F32: 0.0141396814 | G32: 0.01441916342 | H32: 0.0149310777 | I32: 0.0150581633 | J32: 0.01584646021 | K32: 0.01697259866 | L32: 0.01661613755 | M32: 0.01556997127 | N32: 0.02142854518 | O32: 0.01916352296 | P32: 0.02013976618 | Q32: 0.02078415568 | R32: 0.01966970553 | S32: 0.01970067039 | T32: 0.01980951187 | U32: 0.0195268027 | V32: 0.01963564418 | W32: 0.01468683491 | X32: 0.01479366135 | Y32: 0.01481912203 | Z32: 0.01454113744 | AA32: 0.01460835769 | AB32: 0.01461051719 | AC32: 0.007593062759 | AD32: 0.01415280033 | AE32: 0.02698815483 | AF32: 0.01472081172 | AG32: 0.004906937241
A33: 31 | B33: 0.00674625818 | C33: 0.007070054007 | D33: 0.007321895207 | E33: 0.006571906581 | F33: 0.007712553489 | G33: 0.007864998231 | H33: 0.008144224198 | I33: 0.008213543618 | J33: 0.008643523753 | K33: 0.009257781088 | L33: 0.009063347754 | M33: 0.008492711604 | N33: 0.01168829737 | O33: 0.01045283071 | P33: 0.01098532701 | Q33: 0.01133681219 | R33: 0.01072893029 | S33: 0.01074582021 | T33: 0.01080518829 | U33: 0.01065098329 | V33: 0.01071035137 | W33: 0.008011000863 | X33: 0.008069269828 | Y33: 0.008083157473 | Z33: 0.007931529513 | AA33: 0.007968195102 | AB33: 0.007969373013 | AC33: 0.004141670596 | AD33: 0.007719709269 | AE33: 0.01472081172 | AF33: 0.02507498821 | AG33: 0.008358329404
A34: 32 | B34: 0.002248752727 | C34: 0.002356684669 | D34: 0.002440631736 | E34: 0.002190635527 | F34: 0.002570851163 | G34: 0.002621666077 | H34: 0.002714741399 | I34: 0.002737847873 | J34: 0.002881174584 | K34: 0.003085927029 | L34: 0.003021115918 | M34: 0.002830903868 | N34: 0.003896099124 | O34: 0.003484276902 | P34: 0.003661775669 | Q34: 0.003778937396 | R34: 0.003576310096 | S34: 0.003581940071 | T34: 0.003601729431 | U34: 0.003550327764 | V34: 0.003570117124 | W34: 0.002670333621 | X34: 0.002689756609 | Y34: 0.002694385824 | Z34: 0.002643843171 | AA34: 0.002656065034 | AB34: 0.002656457671 | AC34: 0.001380556865 | AD34: 0.002573236423 | AE34: 0.004906937241 | AF34: 0.008358329404 | AG34: 0.01111944313

Sheet algorithm
A1: macro name | B1: shortcut | E1: algorithm
A2: flowComputation | B2: A | F2: D
A3: inputChange | B3: B | F3: A
A4: outputCopy | B4: C | F4: C
A5: referenceCopy | B5: D | E5: for all zones | F5: D
A6: ptdf | B6: E | F6: B (i)
F7: A
F8: C (i)
F9: E
A17: for right working of the computation the sheet "nodes" has to be renamed to "hubs"

Sheet map
B2: A | AU2: F
K3: 22 | M3: =nodes!B24 -> 200 | N3: =nodes!C24 -> 650
K4: ac | L4: ab | M4: aa | W4: 27 | X4: =nodes!B29 -> 250 | Y4: =nodes!C29 -> 200 | AL4: 23 | AN4: =nodes!B25 -> 150 | AO4: =nodes!C25 -> 400
W5: ab | X5: ae | AL5: aa | AM5: y | AN5: x
Z7: 25 | AC7: =nodes!B27 -> 500 | AD7: =nodes!C27 -> 150
Q8: 26 | S8: =nodes!B28 -> 300 | T8: =nodes!C28 -> 100 | Z8: ae | AA8: ad | AB8: h | AC8: z | AK8: 24 | AM8: =nodes!B26 -> 200 | AN8: =nodes!C26 -> 100 | AV8: 17 | AW8: =nodes!B19 -> 100 | AX8: =nodes!C19 -> 80
Q9: ac | R9: g | S9: ad | AK9: z | AL9: l | AM9: y | AV9: at | AW9: au
R11: =-PTDF!J3 -> 0 | S11: =-PTDF!J4 -> 0 | AL11: =-PTDF!J6 -> 0 | AQ11: =-PTDF!J13 -> 0
B12: B
G13: 2 | H13: =nodes!B4 -> 200 | I13: =nodes!C4 -> 40 | W13: =PTDF!J5 -> 0
G14: b | H14: c | P14: f | Q14: e | R14: g | S14: h | T14: i | Z14: j | AA14: i | AB14: k
P15: 5 | T15: =nodes!B7 -> 50 | U15: =nodes!C7 -> 200 | Z15: 7 | AB15: =nodes!B9 -> 10 | AC15: =nodes!C9 -> 50 | AJ15: k | AK15: l | AL15: x | AM15: w | AW15: 21 | AY15: =nodes!B23 -> 70 | AZ15: =nodes!C23 -> 110
C16: 1 | D16: =nodes!B3 -> 80 | E16: =nodes!C3 -> 30 | J16: d | K16: c | L16: e | AJ16: 8 | AM16: =nodes!B10 -> 5 | AN16: =nodes!C10 -> 10 | AW16: at | AX16: as | AY16: aw
C17: a | D17: b | J17: 3 | L17: =nodes!B5 -> 0 | M17: =nodes!C5 -> 300 | Z17: 12 | AC17: =nodes!B14 -> 130 | AD17: =nodes!C14 -> 50 | AP17: 9 | AQ17: =nodes!B11 -> 5 | AR17: =nodes!C11 -> 40
Z18: j | AA18: r | AB18: s | AC18: t | AP18: v | AQ18: w
F20: 4 | I20: =nodes!B6 -> 250 | J20: =nodes!C6 -> 50 | P20: 6 | T20: =nodes!B8 -> 200 | U20: =nodes!C8 -> 100 | BA20: 18 | BC20: =nodes!B20 -> 100 | BD20: =nodes!C20 -> 200
F21: d | G21: a | H21: m | I21: n | P21: f | Q21: n | R21: o | S21: p | T21: r | Z21: 11 | AB21: =nodes!B13 -> 75 | AC21: =nodes!C13 -> 150 | AL21: 10 | AN21: =nodes!B12 -> 75 | AO21: =nodes!C12 -> 20 | AS21: C | BA21: aw | BB21: av | BC21: au
W22: =PTDF!J11 -> 0 | Z22: p | AA22: q | AB22: s | AL22: t | AM22: u | AN22: v
H23: =PTDF!J7 -> 0 | R23: =PTDF!J8 -> 0 | W23: =PTDF!J9 -> 0 | AA23: =PTDF!J10 -> 0 | AM23: =PTDF!J12 -> 0
B24: D
AT25: =PTDF!J15 -> 0
F26: af | G26: m | H26: al | Q26: al | R26: o | S26: ak | W26: =-PTDF!J14 -> 0 | AW26: ao | AX26: as | AY26: ax
F27: 28 | H27: =nodes!B30 -> 200 | I27: =nodes!C30 -> 100 | Q27: 29 | S27: =nodes!B31 -> 75 | T27: =nodes!C31 -> 200 | AA27: ar | AB27: aj | AC27: q | AD27: am | AN27: an | AO27: u | AP27: ao | AW27: 20 | AY27: =nodes!B22 -> 250 | AZ27: =nodes!C22 -> 120
AA28: 13 | AD28: =nodes!B15 -> 50 | AE28: =nodes!C15 -> 175 | AN28: 14 | AP28: =nodes!B16 -> 80 | AQ28: =nodes!C16 -> 110
C30: 33 | D30: =nodes!B35 -> 100 | E30: =nodes!C35 -> 35 | R30: 30 | T30: =nodes!B32 -> 100 | U30: =nodes!C32 -> 150 | AF30: 15 | AI30: =nodes!B17 -> 180 | AJ30: =nodes!C17 -> 65
C31: ag | D31: af | R31: ak | S31: ai | T31: aj | AF31: aq | AG31: ap | AH31: an | AI31: am | AS31: E | AX31: 19 | AZ31: =nodes!B21 -> 250 | BA31: =nodes!C21 -> 140
AX32: ax | AY32: ap | AZ32: av
E33: 32 | F33: =nodes!B34 -> 100 | G33: =nodes!C34 -> 40 | O33: 31 | P33: =nodes!B33 -> 25 | Q33: =nodes!C33 -> 75 | Z33: 16 | AA33: =nodes!B18 -> 0 | AB33: =nodes!C18 -> 120
E34: ag | F34: ah | O34: ah | P34: ai | Z34: ar | AA34: aq
AT35: =PTDF!J16 -> 0

Sheet zones
A1: Net Positions
A2: Net Position [MW]
B3: zone A | C3: zone B | D3: zone C | E3: zone D | F3: zone E | G3: zone F | I3: balance check
A4: Base Case | B4: 4 | C4: 10 | D4: -5 | E4: -3 | F4: 2 | G4: -8 | I4: =IF(SUM(B4:G4)=0,"right","wrong") -> right
A5: 11 | B5: -706.5548348 | C5: 510.9077301 | D5: 1207.729171 | E5: -529.7170198 | F5: -968.9105905 | G5: 486.5455443 | I5: =IF(SUM(B5:G5)=0,"right","wrong") -> right
A6: 22 | B6: -706.5548542 | C6: 510.9077509 | D6: 1207.729164 | E6: -529.7170488 | F6: -968.9105636 | G6: 486.5455514 | I6: right
A7: 33 | B7: -317.422337 | C7: 1346.074784 | D7: -1113.931866 | E7: -381.0006032 | F7: 39.097394 | G7: 427.1826283 | I7: right
A8: 44 | B8: -480.9874967 | C8: -837.7969842 | D8: 1443.718438 | E8: 539.2378089 | F8: -1087.73355 | G8: 423.5617846 | I8: right
A9: 55 | B9: -706.5548326 | C9: 510.9077028 | D9: 1207.72916 | E9: -529.7169925 | F9: -968.9105658 | G9: 486.5455279 | I9: right
A10: 66 | B10: -706.5548186 | C10: -178.2984337 | D10: 1033.853252 | E10: 649.3471495 | F10: -1175.426213 | G10: 377.0790637 | I10: right
A11: 77 | B11: 706.5548497 | C11: 341.3127095 | D11: -155.8489567 | E11: -429.6074441 | F11: -36.56883539 | G11: -425.842323 | I11: right
A12: 88 | B12: -396.7355614 | C12: 1010.611921 | D12: -16.11110011 | E12: 268.3595944 | F12: -1219.723523 | G12: 353.5986695 | I12: right
A13: 00 | B13: -480.9874741 | C13: -837.7970129 | D13: 1443.718451 | E13: 539.2378021 | F13: -1087.733552 | G13: 423.5617862 | I13: right
B16: Base Case | C16: 11 | D16: 22 | E16: 33 | F16: 44 | G16: 55 | H16: 66 | I16: 77 | J16: 88 | K16: 00
A17: zone A | B17: =B4 -> 4 | C17: =B5 -> -706.5548348 | D17: =B6 -> -706.5548542 | E17: =B7 -> -317.422337 | F17: =+B8 -> -480.9874967 | G17: =+B9 -> -706.5548326 | H17: =+B10 -> -706.5548186 | I17: =+B11 -> 706.5548497 | J17: =+B12 -> -396.7355614 | K17: =+B13 -> -480.9874741
A18: zone B | B18: =C4 -> 10 | C18: =+C5 -> 510.9077301 | D18: =+C6 -> 510.9077509 | E18: =+C7 -> 1346.074784 | F18: =+C8 -> -837.7969842 | G18: =+C9 -> 510.9077028 | H18: =+C10 -> -178.2984337 | I18: =+C11 -> 341.3127095 | J18: =+C12 -> 1010.611921 | K18: =+C13 -> -837.7970129
A19: zone C | B19: =+D4 -> -5 | C19: =+D5 -> 1207.729171 | D19: =+D6 -> 1207.729164 | E19: =+D7 -> -1113.931866 | F19: =+D8 -> 1443.718438 | G19: =+D9 -> 1207.72916 | H19: =+D10 -> 1033.853252 | I19: =+D11 -> -155.8489567 | J19: =+D12 -> -16.11110011 | K19: =+D13 -> 1443.718451
A20: zone D | B20: =+E4 -> -3 | C20: =+E5 -> -529.7170198 | D20: =+E6 -> -529.7170488 | E20: =+E7 -> -381.0006032 | F20: =+E8 -> 539.2378089 | G20: =+E9 -> -529.7169925 | H20: =+E10 -> 649.3471495 | I20: =+E11 -> -429.6074441 | J20: =+E12 -> 268.3595944 | K20: =+E13 -> 539.2378021
A21: zone E | B21: =+F4 -> 2 | C21: =+F5 -> -968.9105905 | D21: =+F6 -> -968.9105636 | E21: =+F7 -> 39.097394 | F21: =+F8 -> -1087.73355 | G21: =+F9 -> -968.9105658 | H21: =+F10 -> -1175.426213 | I21: =+F11 -> -36.56883539 | J21: =+F12 -> -1219.723523 | K21: =+F13 -> -1087.733552
A22: zone F | B22: =+G4 -> -8 | C22: =+G5 -> 486.5455443 | D22: =+G6 -> 486.5455514 | E22: =+G7 -> 427.1826283 | F22: =+G8 -> 423.5617846 | G22: =+G9 -> 486.5455279 | H22: =+G10 -> 377.0790637 | I22: =+G11 -> -425.842323 | J22: =+G12 -> 353.5986695 | K22: =+G13 -> 423.5617862

Sheet PTDF
A1: PTDF matrix | W1: CB | X1: Power Flow [MW]
A2: CB | B2: zone A | C2: zone B | D2: zone C | E2: zone D | F2: zone E | G2: zone F | K2: PTDF flow | L2: 11 | M2: 22 | N2: 33 | O2: 44 | P2: 55 | Q2: 66 | R2: 77 | S2: 88 | T2: 00 | X2: 11 | Y2: 22 | Z2: 33 | AA2: 44 | AB2: 55 | AC2: 66 | AD2: 77 | AE2: 88 | AF2: 00
A3: G | B3: -0.2131511313 | C3: 0.01825630672 | D3: -0.04169329112 | E3: -0.003028557187 | F3: -0.02708040512 | G3: -0.03024894695 | K3: =SUMPRODUCT($B3:$G3,Calculations!$E$16:$J$16) -> -3.79084224 | L3: =SUMPRODUCT($B3:$G3,zones!$B$5:$G$5) -> 122.701326 | M3: =SUMPRODUCT($B3:$G3,zones!$B$6:$G$6) -> 122.7013299 | N3: =SUMPRODUCT($B3:$G3,zones!$B$7:$G$7) -> 125.8500541 | O3: =SUMPRODUCT($B3:$G3,zones!$B$8:$G$8) -> 42.04543197 | P3: =SUMPRODUCT($B3:$G3,zones!$B$9:$G$9) -> 122.7013252 | Q3: =SUMPRODUCT($B3:$G3,zones!$B$10:$G$10) -> 122.7013319 | R3: =SUMPRODUCT($B3:$G3,zones!$B$11:$G$11) -> -122.7013287 | S3: =SUMPRODUCT($B3:$G3,zones!$B$12:$G$12) -> 125.2082771 | T3: =SUMPRODUCT($B3:$G3,zones!$B$13:$G$13) -> 42.0454261 | W3: G | X3: =L3 -> 122.701326 | Y3: =M3 -> 122.7013299 | Z3: 125.8500541 | AA3: 42.04543197 | AB3: 122.7013252 | AC3: 122.7013319 | AD3: -122.7013287 | AE3: 125.2082771 | AF3: 42.0454261
A4: H | B4: -0.3790217433 | C4: 0.03127576455 | D4: -0.0714267993 | E4: -0.005188368215 | F4: -0.04639275552 | G4: -0.05182093822 | K4: =SUMPRODUCT($B4:$G4,Calculations!$E$16:$J$16) -> -6.203169481 | L4: =SUMPRODUCT($B4:$G4,zones!$B$5:$G$5) -> 219.9999985 | M4: =SUMPRODUCT($B4:$G4,zones!$B$6:$G$6) -> 220.0000055 | N4: =SUMPRODUCT($B4:$G4,zones!$B$7:$G$7) -> 220.0000043 | O4: =SUMPRODUCT($B4:$G4,zones!$B$8:$G$8) -> 78.69761447 | P4: =SUMPRODUCT($B4:$G4,zones!$B$9:$G$9) -> 219.9999971 | Q4: =SUMPRODUCT($B4:$G4,zones!$B$10:$G$10) -> 220.0000084 | R4: =SUMPRODUCT($B4:$G4,zones!$B$11:$G$11) -> -220.0000034 | S4: =SUMPRODUCT($B4:$G4,zones!$B$12:$G$12) -> 220.0000009 | T4: =SUMPRODUCT($B4:$G4,zones!$B$13:$G$13) -> 78.6976041 | W4: H | X4: =L4 -> 219.9999985 | Y4: 220.0000055 | Z4: 220.0000043 | AA4: 78.69761447 | AB4: 219.9999971 | AC4: 220.0000084 | AD4: -220.0000034 | AE4: 220.0000009 | AF4: 78.6976041
A5: I | B5: -0.05465565551 | C5: 0.07478212166 | D5: -0.1410881337 | E5: -0.01045121158 | F5: -0.08108211175 | G5: -0.08844336886 | K5: =SUMPRODUCT($B5:$G5,Calculations!$E$16:$J$16) -> -27.66854767 | L5: =SUMPRODUCT($B5:$G5,zones!$B$5:$G$5) -> -52.50649865 | M5: =SUMPRODUCT($B5:$G5,zones!$B$6:$G$6) -> -52.50649765 | N5: =SUMPRODUCT($B5:$G5,zones!$B$7:$G$7) -> 238.2041701 | O5: =SUMPRODUCT($B5:$G5,zones!$B$8:$G$8) -> -194.9562754 | P5: =SUMPRODUCT($B5:$G5,zones!$B$9:$G$9) -> -52.50650017 | Q5: =SUMPRODUCT($B5:$G5,zones!$B$10:$G$10) -> -65.4113119 | R5: =SUMPRODUCT($B5:$G5,zones!$B$11:$G$11) -> 54.01323488 | S5: =SUMPRODUCT($B5:$G5,zones!$B$12:$G$12) -> 164.3522494 | T5: =SUMPRODUCT($B5:$G5,zones!$B$13:$G$13) -> -194.9562805 | W5: I | X5: -52.50649865 | Y5: -52.50649765 | Z5: 238.2041701 | AA5: -194.9562754 | AB5: -52.50650017 | AC5: -65.4113119 | AD5: 54.01323488 | AE5: 164.3522494 | AF5: -194.9562805 | AM5: Zones
A6: L | B6: -0.1633162607 | C6: -0.01862270717 | D6: 0.04253006718 | E6: 0.003089339728 | F6: 0.02762390347 | G6: 0.0308560373 | K6: =SUMPRODUCT($B6:$G6,Calculations!$E$16:$J$16) -> 11.86257484 | L6: =SUMPRODUCT($B6:$G6,zones!$B$5:$G$5) -> 143.8535103 | M6: =SUMPRODUCT($B6:$G6,zones!$B$6:$G$6) -> 143.8535137 | N6: =SUMPRODUCT($B6:$G6,zones!$B$7:$G$7) -> -7.51877902 | O6: =SUMPRODUCT($B6:$G6,zones!$B$8:$G$8) -> 140.2444499 | P6: =SUMPRODUCT($B6:$G6,zones!$B$9:$G$9) -> 143.8535103 | Q6: =SUMPRODUCT($B6:$G6,zones!$B$10:$G$10) -> 143.8534981 | R6: =SUMPRODUCT($B6:$G6,zones!$B$11:$G$11) -> -143.8535132 | S6: =SUMPRODUCT($B6:$G6,zones!$B$12:$G$12) -> 23.33401517 | T6: =SUMPRODUCT($B6:$G6,zones!$B$13:$G$13) -> 140.2444473 | W6: L | X6: 143.8535103 | Y6: 143.8535137 | Z6: -7.51877902 | AA6: 140.2444499 | AB6: 143.8535103 | AC6: 143.8534981 | AD6: -143.8535132 | AE6: 23.33401517 | AF6: 140.2444473 | AK6: Critical Branches | AL6: PTDF | AS6: Net Positions | AW6: Power flow on CBs | BC6: Zone
A7: M | B7: 0.5022826964 | C7: 0.5936749112 | D7: 0.450653505 | E7: 0.08191186539 | F7: 0.3620560801 | G7: 0.3730377685 | K7: =SUMPRODUCT($B7:$G7,Calculations!$E$16:$J$16) -> 42.04627336 | L7: =SUMPRODUCT($B7:$G7,zones!$B$5:$G$5) -> 280.0000021 | M7: =SUMPRODUCT($B7:$G7,zones!$B$6:$G$6) -> 280.0000118 | N7: =SUMPRODUCT($B7:$G7,zones!$B$7:$G$7) -> 280.0000141 | O7: =SUMPRODUCT($B7:$G7,zones!$B$8:$G$8) -> -280.0000004 | P7: =SUMPRODUCT($B7:$G7,zones!$B$9:$G$9) -> 279.9999873 | Q7: =SUMPRODUCT($B7:$G7,zones!$B$10:$G$10) -> -226.5482129 | R7: =SUMPRODUCT($B7:$G7,zones!$B$11:$G$11) -> 280.0000027 | S7: =SUMPRODUCT($B7:$G7,zones!$B$12:$G$12) -> 105.7201871 | T7: =SUMPRODUCT($B7:$G7,zones!$B$13:$G$13) -> -280.0000008 | W7: M | X7: 280.0000021 | Y7: 280.0000118 | Z7: 280.0000141 | AA7: -280.0000004 | AB7: 279.9999873 | AC7: -226.5482129 | AD7: 280.0000027 | AE7: 105.7201871 | AF7: -280.0000008 | BB7: Line | BC7: A | BD7: B | BE7: C | BG7: NP1 | BH7: NP2 | BJ7: PF1 | BK7: PF2
A8: O | B8: 0.2806868395 | C8: 0.2422388981 | D8: 0.2718006782 | E8: -0.01463654405 | F8: 0.1768878445 | G8: 0.1881519541 | K8: =SUMPRODUCT($B8:$G8,Calculations!$E$16:$J$16) -> 39.08698729 | L8: =SUMPRODUCT($B8:$G8,zones!$B$5:$G$5) -> 181.6119053 | M8: =SUMPRODUCT($B8:$G8,zones!$B$6:$G$6) -> 181.6119097 | N8: =SUMPRODUCT($B8:$G8,zones!$B$7:$G$7) -> 27.07559533 | O8: =SUMPRODUCT($B8:$G8,zones!$B$8:$G$8) -> -66.15567171 | P8: =SUMPRODUCT($B8:$G8,zones!$B$9:$G$9) -> 181.6118973 | Q8: =SUMPRODUCT($B8:$G8,zones!$B$10:$G$10) -> -106.9840847 | R8: =SUMPRODUCT($B8:$G8,zones!$B$11:$G$11) -> 158.3363308 | S8: =SUMPRODUCT($B8:$G8,zones!$B$12:$G$12) -> -24.07978198 | T8: =SUMPRODUCT($B8:$G8,zones!$B$13:$G$13) -> -66.15566866 | W8: O | X8: 181.6119053 | Y8: 181.6119097 | Z8: 27.07559533 | AA8: -66.15567171 | AB8: 181.6118973 | AC8: -106.9840847 | AD8: 158.3363308 | AE8: -24.07978198 | AF8: -66.15566866 | BB8: A-B | BC8: =1/3 -> 0.3333333333 | BD8: =-1/3 -> -0.3333333333 | BE8: 0 | BG8: 2000 | BH8: 1000 | BJ8: =MMULT(BC8:BE10,BG8:BG10) -> 1000 | BK8: =MMULT(BC8:BE10,BH8:BH10) -> 0
A9: P | B9: 0.006333549079 | C9: 0.05223697819 | D9: -0.2025214256 | E9: -0.03146698794 | F9: -0.1964696066 | G9: -0.1830763263 | K9: =SUMPRODUCT($B9:$G9,Calculations!$E$16:$J$16) -> -36.69152764 | L9: =SUMPRODUCT($B9:$G9,zones!$B$5:$G$5) -> -104.4226463 | M9: =SUMPRODUCT($B9:$G9,zones!$B$6:$G$6) -> -104.4226497 | N9: =SUMPRODUCT($B9:$G9,zones!$B$7:$G$7) -> 220.0000042 | O9: =SUMPRODUCT($B9:$G9,zones!$B$8:$G$8) -> -219.9999992 | P9: =SUMPRODUCT($B9:$G9,zones!$B$9:$G$9) -> -104.4226483 | Q9: =SUMPRODUCT($B9:$G9,zones!$B$10:$G$10) -> -81.6979284 | R9: =SUMPRODUCT($B9:$G9,zones!$B$11:$G$11) -> 152.5316623 | S9: =SUMPRODUCT($B9:$G9,zones!$B$12:$G$12) -> 219.999999 | T9: =SUMPRODUCT($B9:$G9,zones!$B$13:$G$13) -> -220.0000029 | W9: P | X9: -104.4226463 | Y9: -104.4226497 | Z9: 220.0000042 | AA9: -219.9999992 | AB9: -104.4226483 | AC9: -81.6979284 | AD9: 152.5316623 | AE9: 219.999999 | AF9: -220.0000029 | AR9: x | AV9: = | BB9: A-C | BC9: =2/3 -> 0.6666666667 | BD9: =1/3 -> 0.3333333333 | BE9: 0 | BF9: x | BG9: -1000 | BH9: 1000 | BI9: = | BJ9: 1000 | BK9: 1000
A10: Q | B10: 0.08674518737 | C10: 0.08942046133 | D10: 0.1224235173 | E10: -0.04059339437 | F10: -0.2098896987 | G10: -0.178086158 | K10: =SUMPRODUCT($B10:$G10,Calculations!$E$16:$J$16) -> 28.41694395 | L10: =SUMPRODUCT($B10:$G10,zones!$B$5:$G$5) -> 270.4701636 | M10: =SUMPRODUCT($B10:$G10,zones!$B$6:$G$6) -> 270.4701573 | N10: =SUMPRODUCT($B10:$G10,zones!$B$7:$G$7) -> -112.3550346 | O10: =SUMPRODUCT($B10:$G10,zones!$B$8:$G$8) -> 191.089629 | P10: =SUMPRODUCT($B10:$G10,zones!$B$9:$G$9) -> 270.4701567 | Q10: =SUMPRODUCT($B10:$G10,zones!$B$10:$G$10) -> 202.5322804 | R10: =SUMPRODUCT($B10:$G10,zones!$B$11:$G$11) -> 173.6822648 | S10: =SUMPRODUCT($B10:$G10,zones!$B$12:$G$12) -> 236.1248536 | T10: =SUMPRODUCT($B10:$G10,zones!$B$13:$G$13) -> 191.0896304 | W10: Q | X10: 270.4701636 | Y10: 270.4701573 | Z10: -112.3550346 | AA10: 191.089629 | AB10: 270.4701567 | AC10: 202.5322804 | AD10: 173.6822648 | AE10: 236.1248536 | AF10: 191.0896304 | BB10: B-C | BC10: =1/3 -> 0.3333333333 | BD10: =2/3 -> 0.6666666667 | BE10: 0 | BG10: -1000 | BH10: -2000 | BJ10: 0 | BK10: 1000
A11: R | B11: -0.1424745549 | C11: -0.01246498041 | D11: -0.2657245335 | E11: -0.01714019641 | F11: -0.1879190456 | G11: -0.2076001422 | K11: =SUMPRODUCT($B11:$G11,Calculations!$E$16:$J$16) -> -44.77917362 | L11: =SUMPRODUCT($B11:$G11,zones!$B$5:$G$5) -> -136.4763568 | M11: =SUMPRODUCT($B11:$G11,zones!$B$6:$G$6) -> -136.4763586 | N11: =SUMPRODUCT($B11:$G11,zones!$B$7:$G$7) -> 234.9449416 | O11: =SUMPRODUCT($B11:$G11,zones!$B$8:$G$8) -> -197.4280839 | P11: =SUMPRODUCT($B11:$G11,zones!$B$9:$G$9) -> -136.4763556 | Q11: =SUMPRODUCT($B11:$G11,zones!$B$10:$G$10) -> -40.35823623 | R11: =SUMPRODUCT($B11:$G11,zones!$B$11:$G$11) -> 39.13281083 | S11: =SUMPRODUCT($B11:$G11,zones!$B$12:$G$12) -> 199.4109895 | T11: =SUMPRODUCT($B11:$G11,zones!$B$13:$G$13) -> -197.4280902 | W11: R | X11: -136.4763568 | Y11: -136.4763586 | Z11: 234.9449416 | AA11: -197.4280839 | AB11: -136.4763556 | AC11: -40.35823623 | AD11: 39.13281083 | AE11: 199.4109895 | AF11: -197.4280902
A12: U | B12: 0.1302852768 | C12: 0.07466572939 | D12: 0.1551222995 | E12: -0.02668192696 | F12: -0.3290542259 | G12: -0.3831035646 | K12: =SUMPRODUCT($B12:$G12,Calculations!$E$16:$J$16) -> 39.4497954 | L12: =SUMPRODUCT($B12:$G12,zones!$B$5:$G$5) -> 279.999995 | M12: =SUMPRODUCT($B12:$G12,zones!$B$6:$G$6) -> 279.9999822 | N12: =SUMPRODUCT($B12:$G12,zones!$B$7:$G$7) -> -279.999994 | O12: =SUMPRODUCT($B12:$G12,zones!$B$8:$G$8) -> 279.9999998 | P12: =SUMPRODUCT($B12:$G12,zones!$B$9:$G$9) -> 279.9999891 | Q12: =SUMPRODUCT($B12:$G12,zones!$B$10:$G$10) -> 280.0000172 | R12: =SUMPRODUCT($B12:$G12,zones!$B$11:$G$11) -> 280.0000042 | S12: =SUMPRODUCT($B12:$G12,zones!$B$12:$G$12) -> 280.0000009 | T12: =SUMPRODUCT($B12:$G12,zones!$B$13:$G$13) -> 280.0000028 | W12: U | X12: 279.999995 | Y12: 279.9999822 | Z12: -279.999994 | AA12: 279.9999998 | AB12: 279.9999891 | AC12: 280.0000172 | AD12: 280.0000042 | AE12: 280.0000009 | AF12: 280.0000028
A13: X | B13: -0.2445108647 | C13: -0.03090936411 | D13: 0.07059002324 | E13: 0.005127585674 | F13: 0.04584925718 | G13: 0.05121384787 | K13: =SUMPRODUCT($B13:$G13,Calculations!$E$16:$J$16) -> 19.13143688 | L13: =SUMPRODUCT($B13:$G13,zones!$B$5:$G$5) -> 220 | M13: =SUMPRODUCT($B13:$G13,zones!$B$6:$G$6) -> 220.0000051 | N13: =SUMPRODUCT($B13:$G13,zones!$B$7:$G$7) -> -20.90894246 | O13: =SUMPRODUCT($B13:$G13,zones!$B$8:$G$8) -> 220.0000004 | P13: =SUMPRODUCT($B13:$G13,zones!$B$9:$G$9) -> 220 | Q13: =SUMPRODUCT($B13:$G13,zones!$B$10:$G$10) -> 219.9999801 | R13: =SUMPRODUCT($B13:$G13,zones!$B$11:$G$11) -> -220.0000044 | S13: =SUMPRODUCT($B13:$G13,zones!$B$12:$G$12) -> 28.19326816 | T13: =SUMPRODUCT($B13:$G13,zones!$B$13:$G$13) -> 219.9999966 | W13: X | X13: 220 | Y13: 220.0000051 | Z13: -20.90894246 | AA13: 220.0000004 | AB13: 220 | AC13: 219.9999801 | AD13: -220.0000044 | AE13: 28.19326816 | AF13: 219.9999966
A14: AJ | B14: 0.2170304641 | C14: 0.1640861907 | D14: 0.2775458168 | E14: -0.06727532134 | F14: 0.4610560754 | G14: 0.4388102774 | K14: =SUMPRODUCT($B14:$G14,Calculations!$E$16:$J$16) -> 46.86673935 | L14: =SUMPRODUCT($B14:$G14,zones!$B$5:$G$5) -> 68.1051124 | M14: =SUMPRODUCT($B14:$G14,zones!$B$6:$G$6) -> 68.10512733 | N14: =SUMPRODUCT($B14:$G14,zones!$B$7:$G$7) -> 73.92499372 | O14: =SUMPRODUCT($B14:$G14,zones!$B$8:$G$8) -> -193.0821368 | P14: =SUMPRODUCT($B14:$G14,zones!$B$9:$G$9) -> 68.10510784 | Q14: =SUMPRODUCT($B14:$G14,zones!$B$10:$G$10) -> -315.814852 | R14: =SUMPRODUCT($B14:$G14,zones!$B$11:$G$11) -> -8.728889449 | S14: =SUMPRODUCT($B14:$G14,zones!$B$12:$G$12) -> -349.9999995 | T14: =SUMPRODUCT($B14:$G14,zones!$B$13:$G$13) -> -193.0821326 | W14: AJ | X14: 68.1051124 | Y14: 68.10512733 | Z14: 73.92499372 | AA14: -193.0821368 | AB14: 68.10510784 | AC14: -315.814852 | AD14: -8.728889449 | AE14: -349.9999995 | AF14: -193.0821326
A15: AO | B15: 0.04320551026 | C15: 0.02476082499 | D15: 0.05144202221 | E15: -0.008848323446 | F15: 0.05668944013 | G15: -0.4398592874 | K15: =SUMPRODUCT($B15:$G15,Calculations!$E$16:$J$16) -> 31.13851345 | L15: =SUMPRODUCT($B15:$G15,zones!$B$5:$G$5) -> -220.0000023 | M15: =SUMPRODUCT($B15:$G15,zones!$B$6:$G$6) -> -220.0000043 | N15: =SUMPRODUCT($B15:$G15,zones!$B$7:$G$7) -> -220.0000002 | O15: =SUMPRODUCT($B15:$G15,zones!$B$8:$G$8) -> -220.0000001 | P15: =SUMPRODUCT($B15:$G15,zones!$B$9:$G$9) -> -219.999995 | Q15: =SUMPRODUCT($B15:$G15,zones!$B$10:$G$10) -> -219.9999916 | R15: =SUMPRODUCT($B15:$G15,zones!$B$11:$G$11) -> 220.0000011 | S15: =SUMPRODUCT($B15:$G15,zones!$B$12:$G$12) -> -220 | T15: =SUMPRODUCT($B15:$G15,zones!$B$13:$G$13) -> -219.9999999 | W15: AO | X15: -220.0000023 | Y15: -220.0000043 | Z15: -220.0000002 | AA15: -220.0000001 | AB15: -219.999995 | AC15: -219.9999916 | AD15: 220.0000011 | AE15: -220 | AF15: -219.9999999
A16: AP | B16: -0.04320551026 | C16: -0.02476082499 | D16: -0.05144202221 | E16: 0.008848323446 | F16: -0.05668944013 | G16: -0.5601407126 | K16: =SUMPRODUCT($B16:$G16,Calculations!$E$16:$J$16) -> 13.86148655 | L16: =SUMPRODUCT($B16:$G16,zones!$B$5:$G$5) -> -266.545542 | M16: =SUMPRODUCT($B16:$G16,zones!$B$6:$G$6) -> -266.5455472 | N16: =SUMPRODUCT($B16:$G16,zones!$B$7:$G$7) -> -207.1826281 | O16: =SUMPRODUCT($B16:$G16,zones!$B$8:$G$8) -> -203.5617845 | P16: =SUMPRODUCT($B16:$G16,zones!$B$9:$G$9) -> -266.5455329 | Q16: =SUMPRODUCT($B16:$G16,zones!$B$10:$G$10) -> -157.0790721 | R16: =SUMPRODUCT($B16:$G16,zones!$B$11:$G$11) -> 205.8423218 | S16: =SUMPRODUCT($B16:$G16,zones!$B$12:$G$12) -> -133.5986695 | T16: =SUMPRODUCT($B16:$G16,zones!$B$13:$G$13) -> -203.5617863 | W16: AP | X16: -266.545542 | Y16: -266.5455472 | Z16: -207.1826281 | AA16: -203.5617845 | AB16: -266.5455329 | AC16: =Q16 -> -157.0790721 | AD16: 205.8423218 | AE16: -133.5986695 | AF16: -203.5617863

Sheet AAF + CP
A1: AAF
D2: physical flow
A3: start | B3: end | C3: type | D3: 11 | E3: 22 | F3: 33 | G3: 44 | H3: 55 | I3: 66 | J3: 77 | K3: 88 | L3: 00
A4: A | B4: B | C4: int | D4: =PTDF!L3+PTDF!L4 -> 342.7013244 | E4: =PTDF!M3+PTDF!M4 -> 342.7013354 | F4: =PTDF!N3+PTDF!N4 -> 345.8500584 | G4: =PTDF!O3+PTDF!O4 -> 120.7430464 | H4: =PTDF!P3+PTDF!P4 -> 342.7013223 | I4: =PTDF!Q3+PTDF!Q4 -> 342.7013403 | J4: =PTDF!R3+PTDF!R4 -> -342.7013321 | K4: =PTDF!S3+PTDF!S4 -> 345.2082781 | L4: =PTDF!T3+PTDF!T4 -> 120.7430302
A5: A | B5: C | C5: int | D5: =+PTDF!L6+PTDF!L13 -> 363.8535103 | E5: =+PTDF!M6+PTDF!M13 -> 363.8535189 | F5: =+PTDF!N6+PTDF!N13 -> -28.42772147 | G5: =+PTDF!O6+PTDF!O13 -> 360.2444503 | H5: =+PTDF!P6+PTDF!P13 -> 363.8535103 | I5: =+PTDF!Q6+PTDF!Q13 -> 363.8534783 | J5: =+PTDF!R6+PTDF!R13 -> -363.8535176 | K5: =+PTDF!S6+PTDF!S13 -> 51.52728332 | L5: =+PTDF!T6+PTDF!T13 -> 360.2444439
A6: B | B6: C | C6: int | D6: =PTDF!L5+PTDF!L11+PTDF!L9 -> -293.4055017 | E6: =PTDF!M5+PTDF!M11+PTDF!M9 -> -293.405506 | F6: =PTDF!N5+PTDF!N11+PTDF!N9 -> 693.1491158 | G6: =PTDF!O5+PTDF!O11+PTDF!O9 -> -612.3843585 | H6: =PTDF!P5+PTDF!P11+PTDF!P9 -> -293.4055041 | I6: =PTDF!Q5+PTDF!Q11+PTDF!Q9 -> -187.4674765 | J6: =PTDF!R5+PTDF!R11+PTDF!R9 -> 245.677708 | K6: =PTDF!S5+PTDF!S11+PTDF!S9 -> 583.7632379 | L6: =PTDF!T5+PTDF!T11+PTDF!T9 -> -612.3843736
A7: B | B7: D | C7: int | D7: =PTDF!L7+PTDF!L8 -> 461.6119074 | E7: =PTDF!M7+PTDF!M8 -> 461.6119215 | F7: =PTDF!N7+PTDF!N8 -> 307.0756095 | G7: =PTDF!O7+PTDF!O8 -> -346.1556722 | H7: =PTDF!P7+PTDF!P8 -> 461.6118846 | I7: =PTDF!Q7+PTDF!Q8 -> -333.5322975 | J7: =PTDF!R7+PTDF!R8 -> 438.3363336 | K7: =PTDF!S7+PTDF!S8 -> 81.64040507 | L7: =PTDF!T7+PTDF!T8 -> -346.1556695
A8: C | B8: E | C8: int | D8: =PTDF!L12+PTDF!L10 -> 550.4701586 | E8: =PTDF!M12+PTDF!M10 -> 550.4701395 | F8: =PTDF!N12+PTDF!N10 -> -392.3550286 | G8: =PTDF!O12+PTDF!O10 -> 471.0896289 | H8: =PTDF!P12+PTDF!P10 -> 550.4701457 | I8: =PTDF!Q12+PTDF!Q10 -> 482.5322975 | J8: =PTDF!R12+PTDF!R10 -> 453.6822689 | K8: =PTDF!S12+PTDF!S10 -> 516.1248545 | L8: =PTDF!T12+PTDF!T10 -> 471.0896333
A9: D | B9: E | C9: int | D9: =+PTDF!L14 -> 68.1051124 | E9: =+PTDF!M14 -> 68.10512733 | F9: =+PTDF!N14 -> 73.92499372 | G9: =+PTDF!O14 -> -193.0821368 | H9: =+PTDF!P14 -> 68.10510784 | I9: =+PTDF!Q14 -> -315.814852 | J9: =+PTDF!R14 -> -8.728889449 | K9: =+PTDF!S14 -> -349.9999995 | L9: =+PTDF!T14 -> -193.0821326
A10: E | B10: F | C10: int | D10: =PTDF!L15+PTDF!L16 -> -486.5455443 | E10: =PTDF!M15+PTDF!M16 -> -486.5455514 | F10: =PTDF!N15+PTDF!N16 -> -427.1826283 | G10: =PTDF!O15+PTDF!O16 -> -423.5617846 | H10: =PTDF!P15+PTDF!P16 -> -486.5455279 | I10: =PTDF!Q15+PTDF!Q16 -> -377.0790637 | J10: =PTDF!R15+PTDF!R16 -> 425.842323 | K10: =PTDF!S15+PTDF!S16 -> -353.5986695 | L10: =PTDF!T15+PTDF!T16 -> -423.5617862
D12: absolute physical flow
A13: start | B13: end | C13: type | D13: 11 | E13: 22 | F13: 33 | G13: 44 | H13: 55 | I13: 66 | J13: 77 | K13: 88 | L13: 00
A14: A | B14: B | C14: int | D14: =ABS(D4) -> 342.7013244 | E14: 342.7013354 | F14: 345.8500584 | G14: 120.7430464 | H14: 342.7013223 | I14: 342.7013403 | J14: 342.7013321 | K14: 345.2082781 | L14: 120.7430302
A15: A | B15: C | C15: int | D15: =ABS(D5) -> 363.8535103 | E15: 363.8535189 | F15: 28.42772147 | G15: 360.2444503 | H15: 363.8535103 | I15: 363.8534783 | J15: 363.8535176 | K15: 51.52728332 | L15: 360.2444439
A16: B | B16: C | C16: int | D16: =ABS(D6) -> 293.4055017 | E16: 293.405506 | F16: 693.1491158 | G16: 612.3843585 | H16: 293.4055041 | I16: 187.4674765 | J16: 245.677708 | K16: 583.7632379 | L16: 612.3843736
A17: B | B17: D | C17: int | D17: =ABS(D7) -> 461.6119074 | E17: 461.6119215 | F17: 307.0756095 | G17: 346.1556722 | H17: 461.6118846 | I17: 333.5322975 | J17: 438.3363336 | K17: 81.64040507 | L17: 346.1556695
A18: C | B18: E | C18: int | D18: =ABS(D8) -> 550.4701586 | E18: 550.4701395 | F18: 392.3550286 | G18: 471.0896289 | H18: 550.4701457 | I18: 482.5322975 | J18: 453.6822689 | K18: 516.1248545 | L18: 471.0896333
A19: D | B19: E | C19: int | D19: =ABS(D9) -> 68.1051124 | E19: 68.10512733 | F19: 73.92499372 | G19: 193.0821368 | H19: 68.10510784 | I19: 315.814852 | J19: 8.728889449 | K19: 349.9999995 | L19: 193.0821326
A20: E | B20: F | C20: int | D20: =ABS(D10) -> 486.5455443 | E20: 486.5455514 | F20: 427.1826283 | G20: 423.5617846 | H20: 486.5455279 | I20: 377.0790637 | J20: 425.842323 | K20: 353.5986695 | L20: 423.5617862
A21: sum | D21: =SUM(D14:D20) -> 2566.693059 | E21: =SUM(E14:E20) -> 2566.6931 | F21: 2267.965156 | G21: 2527.261078 | H21: 2566.693003 | I21: 2402.980806 | J21: 2278.822373 | K21: 2281.862728 | L21: 2527.261069
A23: relative physical flow
A24: start | B24: end | C24: type | D24: 11 | E24: 22 | F24: 33 | G24: 44 | H24: 55 | I24: 66 | J24: 77 | K24: 88 | L24: 00
A25: A | B25: B | C25: int | D25: =D14/D$21 -> 0.1335186236 | E25: 0.1335186257 | F25: 0.1524935502 | G25: 0.0477762458 | H25: 0.1335186257 | I25: 0.1426150968 | J25: 0.1503852763 | K25: 0.151283543 | L25: 0.04777623953
A26: A | B26: C | C26: int | D26: =D15/D$21 -> 0.1417596502 | E26: 0.1417596513 | F26: 0.0125344613 | G26: 0.1425434252 | H26: 0.1417596533 | I26: 0.151417555 | J26: 0.1596673448 | K26: 0.02258123712 | L26: 0.1425434231
A27: B | B27: C | C27: int | D27: =D16/D$21 -> 0.1143126564 | E27: 0.1143126562 | F27: 0.3056259987 | G27: 0.2423114746 | H27: 0.1143126598 | I27: 0.07801455429 | J27: 0.1078090644 | K27: 0.2558275004 | L27: 0.2423114814
A28: B | B28: D | C28: int | D28: =D17/D$21 -> 0.1798469457 | E28: 0.1798469484 | F28: 0.1353969697 | G28: 0.1369687031 | H28: 0.1798469408 | I28: 0.1387994014 | J28: 0.1923521284 | K28: 0.03577796511 | L28: 0.1369687025
A29: C | B29: E | C29: int | D29: =D18/D$21 -> 0.2144666877 | E29: 0.2144666768 | F29: 0.1729987022 | G29: 0.1864032304 | H29: 0.2144666873 | I29: 0.2008057228 | J29: 0.19908628 | K29: 0.2261857596 | L29: 0.1864032327
A30: D | B30: E | C30: int | D30: =D19/D$21 -> 0.02653418653 | E30: 0.02653419193 | F30: 0.03259529518 | G30: 0.07639975881 | H30: 0.02653418534 | I30: 0.1314262899 | J30: 0.003830438719 | K30: 0.1533834596 | L30: 0.07639975742
A31: E | B31: F | C31: int | D31: =D20/D$21 -> 0.1895612499 | E31: 0.1895612496 | F31: 0.1883550227 | G31: 0.1675971621 | H31: 0.1895612476 | I31: 0.1569213798 | J31: 0.1868694674 | K31: 0.1549605352 | L31: 0.1675971633
A33: CP
D34: spread
A35: start | B35: end | C35: type | D35: 11 | E35: 22 | F35: 33 | G35: 44 | H35: 55 | I35: 66 | J35: 77 | K35: 88 | L35: 00
A36: A | B36: B | C36: int | D36: =ABS('external data'!B3-'external data'!B4) -> 9.2 | E36: =ABS('external data'!C3-'external data'!C4) -> 9.2 | F36: =ABS('external data'!D3-'external data'!D4) -> 3.8 | G36: =ABS('external data'!E3-'external data'!E4) -> 0.1 | H36: =ABS('external data'!F3-'external data'!F4) -> 9.2 | I36: =ABS('external data'!G3-'external data'!G4) -> 0.2 | J36: =ABS('external data'!H3-'external data'!H4) -> 1.5 | K36: =ABS('external data'!I3-'external data'!I4) -> 2 | L36: =ABS('external data'!J3-'external data'!J4) -> 0.1
A37: A | B37: C | C37: int | D37: =ABS('external data'!B3-'external data'!B5) -> 7.2 | E37: =ABS('external data'!C3-'external data'!C5) -> 7.2 | F37: =ABS('external data'!D3-'external data'!D5) -> 0.4 | G37: =ABS('external data'!E3-'external data'!E5) -> 1 | H37: =ABS('external data'!F3-'external data'!F5) -> 7.2 | I37: =ABS('external data'!G3-'external data'!G5) -> 1.2 | J37: =ABS('external data'!H3-'external data'!H5) -> 1.5 | K37: =ABS('external data'!I3-'external data'!I5) -> 0.2 | L37: =ABS('external data'!J3-'external data'!J5) -> 1
A38: B | B38: C | C38: int | D38: =ABS('external data'!B4-'external data'!B5) -> 2 | E38: =ABS('external data'!C4-'external data'!C5) -> 2 | F38: =ABS('external data'!D4-'external data'!D5) -> 3.4 | G38: =ABS('external data'!E4-'external data'!E5) -> 1.1 | H38: =ABS('external data'!F4-'external data'!F5) -> 2 | I38: =ABS('external data'!G4-'external data'!G5) -> 1 | J38: =ABS('external data'!H4-'external data'!H5) -> 0 | K38: =ABS('external data'!I4-'external data'!I5) -> 1.8 | L38: =ABS('external data'!J4-'external data'!J5) -> 1.1
A39: B | B39: D | C39: int | D39: =ABS('external data'!B4-'external data'!B6) -> 9.2 | E39: =ABS('external data'!C4-'external data'!C6) -> 9.2 | F39: =ABS('external data'!D4-'external data'!D6) -> 3.6 | G39: =ABS('external data'!E4-'external data'!E6) -> 1.1 | H39: =ABS('external data'!F4-'external data'!F6) -> 9.2 | I39: =ABS('external data'!G4-'external data'!G6) -> 0.2 | J39: =ABS('external data'!H4-'external data'!H6) -> 0.5 | K39: =ABS('external data'!I4-'external data'!I6) -> 1 | L39: =ABS('external data'!J4-'external data'!J6) -> 1.1
A40: C | B40: E | C40: int | D40: =ABS('external data'!B5-'external data'!B7) -> 8.3 | E40: =ABS('external data'!C5-'external data'!C7) -> 8.3 | F40: =ABS('external data'!D5-'external data'!D7) -> 0.8 | G40: =ABS('external data'!E5-'external data'!E7) -> 1 | H40: =ABS('external data'!F5-'external data'!F7) -> 8.3 | I40: =ABS('external data'!G5-'external data'!G7) -> 8.9 | J40: =ABS('external data'!H5-'external data'!H7) -> 0 | K40: =ABS('external data'!I5-'external data'!I7) -> 11.8 | L40: =ABS('external data'!J5-'external data'!J7) -> 1
A41: D | B41: E | C41: int | D41: =ABS('external data'!B6-'external data'!B7) -> 1.1 | E41: =ABS('external data'!C6-'external data'!C7) -> 1.1 | F41: =ABS('external data'!D6-'external data'!D7) -> 1 | G41: =ABS('external data'!E6-'external data'!E7) -> 1 | H41: =ABS('external data'!F6-'external data'!F7) -> 1.1 | I41: =ABS('external data'!G6-'external data'!G7) -> 7.7 | J41: =ABS('external data'!H6-'external data'!H7) -> 0.5 | K41: =ABS('external data'!I6-'external data'!I7) -> 14.6 | L41: =ABS('external data'!J6-'external data'!J7) -> 1
A42: E | B42: F | C42: int | D42: =ABS('external data'!B7-'external data'!B8) -> 4.5 | E42: =ABS('external data'!C7-'external data'!C8) -> 4.5 | F42: =ABS('external data'!D7-'external data'!D8) -> 1.2 | G42: =ABS('external data'!E7-'external data'!E8) -> 0.1 | H42: =ABS('external data'!F7-'external data'!F8) -> 4.5 | I42: =ABS('external data'!G7-'external data'!G8) -> 12.4 | J42: =ABS('external data'!H7-'external data'!H8) -> 4.9 | K42: =ABS('external data'!I7-'external data'!I8) -> 18.5 | L42: =ABS('external data'!J7-'external data'!J8) -> 0.1

Sheet CI
A1: Congestion Income
D2: 11 | E2: 22 | F2: 33 | G2: 44 | H2: 55 | I2: 66 | J2: 77 | K2: 88 | L2: 00
A3: Total Congestion Income | D3: =-SUMPRODUCT(zones!C17:C22,'external data'!B3:B8) -> 16116.05765 | E3: =-SUMPRODUCT(zones!D17:D22,'external data'!C3:C8) -> 16116.05779 | F3: =-SUMPRODUCT(zones!E17:E22,'external data'!D3:D8) -> 5665.466492 | G3: =-SUMPRODUCT(zones!F17:F22,'external data'!E3:E8) -> 2109.092123 | H3: =-SUMPRODUCT(zones!G17:G22,'external data'!F3:F8) -> 16116.05724 | I3: =-SUMPRODUCT(zones!H17:H22,'external data'!G3:G8) -> 12028.01766 | J3: =-SUMPRODUCT(zones!I17:I22,'external data'!H3:H8) -> 3361.263379 | K3: =-SUMPRODUCT(zones!J17:J22,'external data'!I3:I8) -> 19411.7041 | L3: =-SUMPRODUCT(zones!K17:K22,'external data'!J3:J8) -> 2109.092133
A5: Flow - Based world
D6: k
A7: start | B7: end | C7: type | D7: 11 | E7: 22 | F7: 33 | G7: 44 | H7: 55 | I7: 66 | J7: 77 | K7: 88 | L7: 0
A8: A | B8: B | C8: int | D8: =ABS('AAF + CP'!D36*'AAF + CP'!D4) -> 3152.852185 | E8: =ABS('AAF + CP'!E36*'AAF + CP'!E4) -> 3152.852286 | F8: =ABS('AAF + CP'!F36*'AAF + CP'!F4) -> 1314.230222 | G8: =ABS('AAF + CP'!G36*'AAF + CP'!G4) -> 12.07430464 | H8: =ABS('AAF + CP'!H36*'AAF + CP'!H4) -> 3152.852165 | I8: =ABS('AAF + CP'!I36*'AAF + CP'!I4) -> 68.54026806 | J8: =ABS('AAF + CP'!J36*'AAF + CP'!J4) -> 514.0519981 | K8: =ABS('AAF + CP'!K36*'AAF + CP'!K4) -> 690.4165561 | L8: =ABS('AAF + CP'!L36*'AAF + CP'!L4) -> 12.07430302
A9: A | B9: C | C9: int | D9: =ABS('AAF + CP'!D37*'AAF + CP'!D5) -> 2619.745274 | E9: =ABS('AAF + CP'!E37*'AAF + CP'!E5) -> 2619.745336 | F9: =ABS('AAF + CP'!F37*'AAF + CP'!F5) -> 11.37108859 | G9: =ABS('AAF + CP'!G37*'AAF + CP'!G5) -> 360.2444503 | H9: =ABS('AAF + CP'!H37*'AAF + CP'!H5) -> 2619.745274 | I9: =ABS('AAF + CP'!I37*'AAF + CP'!I5) -> 436.6241739 | J9: =ABS('AAF + CP'!J37*'AAF + CP'!J5) -> 545.7802764 | K9: =ABS('AAF + CP'!K37*'AAF + CP'!K5) -> 10.30545666 | L9: =ABS('AAF + CP'!L37*'AAF + CP'!L5) -> 360.2444439
A10: B | B10: C | C10: int | D10: =ABS('AAF + CP'!D38*'AAF + CP'!D6) -> 586.8110034 | E10: =ABS('AAF + CP'!E38*'AAF + CP'!E6) -> 586.811012 | F10: =ABS('AAF + CP'!F38*'AAF + CP'!F6) -> 2356.706994 | G10: =ABS('AAF + CP'!G38*'AAF + CP'!G6) -> 673.6227944 | H10: =ABS('AAF + CP'!H38*'AAF + CP'!H6) -> 586.8110082 | I10: =ABS('AAF + CP'!I38*'AAF + CP'!I6) -> 187.4674765 | J10: =ABS('AAF + CP'!J38*'AAF + CP'!J6) -> 0 | K10: =ABS('AAF + CP'!K38*'AAF + CP'!K6) -> 1050.773828 | L10: =ABS('AAF + CP'!L38*'AAF + CP'!L6) -> 673.622811
A11: B | B11: D | C11: int | D11: =ABS('AAF + CP'!D39*'AAF + CP'!D7) -> 4246.829548 | E11: =ABS('AAF + CP'!E39*'AAF + CP'!E7) -> 4246.829678 | F11: =ABS('AAF + CP'!F39*'AAF + CP'!F7) -> 1105.472194 | G11: =ABS('AAF + CP'!G39*'AAF + CP'!G7) -> 380.7712394 | H11: =ABS('AAF + CP'!H39*'AAF + CP'!H7) -> 4246.829339 | I11: =ABS('AAF + CP'!I39*'AAF + CP'!I7) -> 66.7064595 | J11: =ABS('AAF + CP'!J39*'AAF + CP'!J7) -> 219.1681668 | K11: =ABS('AAF + CP'!K39*'AAF + CP'!K7) -> 81.64040507 | L11: =ABS('AAF + CP'!L39*'AAF + CP'!L7) -> 380.7712364
A12: C | B12: E | C12: int | D12: =ABS('AAF + CP'!D40*'AAF + CP'!D8) -> 4568.902317 | E12: =ABS('AAF + CP'!E40*'AAF + CP'!E8) -> 4568.902158 | F12: =ABS('AAF + CP'!F40*'AAF + CP'!F8) -> 313.8840229 | G12: =ABS('AAF + CP'!G40*'AAF + CP'!G8) -> 471.0896289 | H12: =ABS('AAF + CP'!H40*'AAF + CP'!H8) -> 4568.90221 | I12: =ABS('AAF + CP'!I40*'AAF + CP'!I8) -> 4294.537448 | J12: =ABS('AAF + CP'!J40*'AAF + CP'!J8) -> 0 | K12: =ABS('AAF + CP'!K40*'AAF + CP'!K8) -> 6090.273283 | L12: =ABS('AAF + CP'!L40*'AAF + CP'!L8) -> 471.0896333
A13: D | B13: E | C13: int | D13: =ABS('AAF + CP'!D41*'AAF + CP'!D9) -> 74.91562364 | E13: =ABS('AAF + CP'!E41*'AAF + CP'!E9) -> 74.91564006 | F13: =ABS('AAF + CP'!F41*'AAF + CP'!F9) -> 73.92499372 | G13: =ABS('AAF + CP'!G41*'AAF + CP'!G9) -> 193.0821368 | H13: =ABS('AAF + CP'!H41*'AAF + CP'!H9) -> 74.91561863 | I13: =ABS('AAF + CP'!I41*'AAF + CP'!I9) -> 2431.77436 | J13: =ABS('AAF + CP'!J41*'AAF + CP'!J9) -> 4.364444724 | K13: =ABS('AAF + CP'!K41*'AAF + CP'!K9) -> 5109.999992 | L13: =ABS('AAF + CP'!L41*'AAF + CP'!L9) -> 193.0821326
A14: E | B14: F | C14: int | D14: =ABS('AAF + CP'!D42*'AAF + CP'!D10) -> 2189.454949 | E14: =ABS('AAF + CP'!E42*'AAF + CP'!E10) -> 2189.454981 | F14: =ABS('AAF + CP'!F42*'AAF + CP'!F10) -> 512.619154 | G14: =ABS('AAF + CP'!G42*'AAF + CP'!G10) -> 42.35617846 | H14: =ABS('AAF + CP'!H42*'AAF + CP'!H10) -> 2189.454875 | I14: =ABS('AAF + CP'!I42*'AAF + CP'!I10) -> 4675.78039 | J14: =ABS('AAF + CP'!J42*'AAF + CP'!J10) -> 2086.627383 | K14: =ABS('AAF + CP'!K42*'AAF + CP'!K10) -> 6541.575386 | L14: =ABS('AAF + CP'!L42*'AAF + CP'!L10) -> 42.35617862
A15: sum | D15: =SUM(D8:D14) -> 17439.5109 | E15: =SUM(E8:E14) -> 17439.51109 | F15: 5688.208669 | G15: 2133.240733 | H15: 17439.51049 | I15: 12161.43058 | J15: 3369.992269 | K15: 19574.98491 | L15: 2133.240739
A17: start | B17: end | C17: type | D17: 11 | E17: 22 | F17: 33 | G17: 44 | H17: 55 | I17: 66 | J17: 77 | K17: 88 | L17: 0
A18: A | B18: B | C18: int | D18: =D8/D$15 -> 0.1807878789 | E18: =E8/E$15 -> 0.1807878827 | F18: 0.2310446572 | G18: 0.005660075986 | H18: 0.180787882 | I18: 0.005635872164 | J18: 0.1525380348 | K18: 0.03527034935 | L18: 0.005660075209
A19: A | B19: C | C19: int | D19: =D9/D$15 -> 0.1502189648 | E19: 0.1502189667 | F19: 0.001999063194 | G19: 0.1688719162 | H19: 0.1502189683 | I19: 0.03590236948 | J19: 0.1619529758 | K19: 0.0005264605165 | L19: 0.1688719127
A20: B | B20: C | C20: int | D20: =D10/D$15 -> 0.03364836358 | E20: 0.0336483637 | F20: 0.4143144408 | G20: 0.3157743915 | H20: 0.03364836465 | I20: 0.01541491976 | J20: 0 | K20: 0.05367941959 | L20: 0.3157743984
A21: B | B21: D | C21: int | D21: =D11/D$15 -> 0.2435176979 | E21: 0.2435177028 | F21: 0.1943445219 | G21: 0.1784942663 | H21: 0.2435176917 | I21: 0.005485083279 | J21: 0.06503521353 | K21: 0.004170649707 | L21: 0.1784942644
A22: C | B22: E | C22: int | D22: =D12/D$15 -> 0.2619856912 | E22: 0.2619856792 | F22: 0.05518152395 | G22: 0.2208328491 | H22: 0.2619856912 | I22: 0.3531276539 | J22: 0 | K22: 0.3111253118 | L22: 0.2208328505
A23: D | B23: E | C23: int | D23: =D13/D$15 -> 0.004295741095 | E23: 0.004295741989 | F23: 0.01299618175 | G23: 0.0905111804 | H23: 0.004295740908 | I23: 0.1999579198 | J23: 0.001295090426 | K23: 0.261047455 | L23: 0.09051117819
A24: E | B24: F | C24: int | D24: =D14/D$15 -> 0.1255456625 | E24: 0.125545663 | F24: 0.09011961125 | G24: 0.0198553205 | H24: 0.1255456612 | I24: 0.3844761815 | J24: 0.6191786854 | K24: 0.334180354 | L24: 0.01985532052
A26: start | B26: end | C26: type | D26: 11 | E26: 22 | F26: 33 | G26: 44 | H26: 55 | I26: 66 | J26: 77 | K26: 88 | L26: 0
A27: A | B27: B | C27: int | D27: =D18*D$3 -> 2913.587878 | E27: =E18*E$3 -> 2913.587965 | F27: =F18*F$3 -> 1308.975763 | G27: 11.93762168 | H27: 2913.587854 | I27: 67.7883699 | J27: 512.7205105 | K27: 684.6575849 | L27: 11.93762009
A28: A | B28: C | C28: int | D28: =D19*D$3 -> 2420.937497 | E28: 2420.937548 | F28: 11.32562554 | G28: 356.1664284 | H28: 2420.937492 | I28: 431.834334 | J28: 544.3666068 | K28: 10.21949577 | L28: 356.1664226
A29: B | B29: C | C29: int | D29: =D20*D$3 -> 542.2789671 | E29: 542.2789738 | F29: 2347.284581 | G29: 665.997282 | H29: 542.2789705 | I29: 185.4109271 | J29: 0 | K29: 1042.009009 | L29: 665.9972994
A30: B | B30: D | C30: int | D30: =D21*D$3 -> 3924.545258 | E30: 3924.54537 | F30: 1101.052377 | G30: 376.4608511 | H30: 3924.545057 | I30: 65.97467853 | J30: 218.6004816 | K30: 80.95941801 | L30: 376.4608488
A31: C | B31: E | C31: int | D31: =D22*D$3 -> 4222.176501 | E31: 4222.176345 | F31: 312.6290749 | G31: 465.7568227 | H31: 4222.176394 | I31: 4247.425657 | J31: 0 | K31: 6039.47249 | L31: 465.7568277
A32: D | B32: E | C32: int | D32: =D23*D$3 -> 69.23041111 | E32: 69.23042613 | F32: 73.62943225 | G32: 190.8964177 | H32: 69.23040634 | I32: 2405.097391 | J32: 4.353140023 | K32: 5067.375952 | L32: 190.8964138
A33: E | B33: F | C33: int | D33: =D24*D$3 -> 2023.301134 | E33: 2023.301159 | F33: 510.5696378 | G33: 41.87670008 | H33: 2023.301062 | I33: 4624.4863 | J33: 2081.22264 | K33: 6487.010147 | L33: 41.8767003
C36: zone | D36: 11 | E36: 22 | F36: 33 | G36: 44 | H36: 55 | I36: 66 | J36: 77 | K36: 88 | L36: 0
C37: A | D37: =0.5*(D27+D28) -> 2667.262687 | E37: =0.5*(E27+E28) -> 2667.262756 | F37: 660.1506945 | G37: 184.052025 | H37: 2667.262673 | I37: 249.811352 | J37: 528.5435586 | K37: 347.4385403 | L37: 184.0520214
C38: B | D38: =0.5*(D27+D29+D30) -> 3690.206052 | E38: =0.5*(E27+E29+E30) -> 3690.206154 | F38: 2378.656361 | G38: 527.1978774 | H38: 3690.205941 | I38: 159.5869878 | J38: 365.660496 | K38: 903.813006 | L38: 527.1978841
C39: C | D39: =0.5*(D28+D29+D31) -> 3592.696482 | E39: =0.5*(E28+E29+E31) -> 3592.696433 | F39: 1335.619641 | G39: 743.9602665 | H39: 3592.696428 | I39: 2432.335459 | J39: 272.1833034 | K39: 3545.850497 | L39: 743.9602749
C40: D | D40: =0.5*(D30+D32) -> 1996.887835 | E40: =0.5*(E30+E32) -> 1996.887898 | F40: 587.3409044 | G40: 283.6786344 | H40: 1996.887732 | I40: 1235.536035 | J40: 111.4768108 | K40: 2574.167685 | L40: 283.6786313
C41: E | D41: =0.5*(D31+D32+D33) -> 3157.354023 | E41: =0.5*(E31+E32+E33) -> 3157.353965 | F41: 448.4140725 | G41: 349.2649702 | H41: 3157.353931 | I41: 5638.504674 | J41: 1042.78789 | K41: 8796.929295 | L41: 349.2649709
C42: F | D42: =0.5*(D33) -> 1011.650567 | E42: =0.5*(E33) -> 1011.65058 | F42: 255.2848189 | G42: 20.93835004 | H42: 1011.650531 | I42: 2312.24315 | J42: 1040.61132 | K42: 3243.505073 | L42: 20.93835015

Sheet external data
A2: price | B2: 11 | C2: 22 | D2: 33 | E2: 44 | F2: 55 | G2: 66 | H2: 77 | I2: 88 | J2: 00
A3: zone A | B3: 41 | C3: 41 | D3: 34.2 | E3: 33 | F3: 41 | G3: 35 | H3: 20 | I3: 41 | J3: 33
A4: zone B | B4: 31.8 | C4: 31.8 | D4: 30.4 | E4: 33.1 | F4: 31.8 | G4: 34.8 | H4: 21.5 | I4: 39 | J4: 33.1
A5: zone C | B5: 33.8 | C5: 33.8 | D5: 33.8 | E5: 32 | F5: 33.8 | G5: 33.8 | H5: 21.5 | I5: 40.8 | J5: 32
A6: zone D | B6: 41 | C6: 41 | D6: 34 | E6: 32 | F6: 41 | G6: 35 | H6: 22 | I6: 38 | J6: 32
A7: zone E | B7: 42.1 | C7: 42.1 | D7: 33 | E7: 33 | F7: 42.1 | G7: 42.7 | H7: 21.5 | I7: 52.6 | J7: 33
A8: zone F | B8: 37.6 | C8: 37.6 | D8: 31.8 | E8: 32.9 | F8: 37.6 | G8: 30.3 | H8: 26.4 | I8: 34.1 | J8: 32.9
A10: IN USE | D10: LT | F10: LTA | H10: LT prize | J10: LTN
A11: price | F11: -> | G11: <- | H11: -> | I11: <- | J11: -> | K11: <-
A12: zone A | B12: 41 | D12: a | E12: b | F12: 200 | G12: 150 | H12: 0.2 | I12: 10 | J12: 44 | K12: 53
A13: zone B | B13: 31.8 | D13: a | E13: c | F13: 310 | G13: 215 | H13: 0.6 | I13: 5 | J13: 164 | K13: 180
A14: zone C | B14: 33.8 | D14: b | E14: c | F14: 240 | G14: 410 | H14: 2 | I14: 1 | J14: 135 | K14: 340
A15: zone D | B15: 41 | D15: b | E15: d | F15: 180 | G15: 120 | H15: 0.6 | I15: 3 | J15: 160 | K15: 12
A16: zone E | B16: 42.1 | D16: c | E16: e | F16: 175 | G16: 300 | H16: 10 | I16: 2 | J16: 10 | K16: 18
A17: zone F | B17: 37.6 | D17: d | E17: e | F17: 100 | G17: 250 | H17: 7.7 | I17: 3.3 | J17: 43 | K17: 20
D18: e | E18: f | F18: 200 | G18: 180 | H18: 0.1 | I18: 14 | J18: 115 | K18: 78
A21: LT
A22: 11 | B22: Random LTN
C23: LTA | E23: LT prize | G23: LTN
C24: -> | D24: <- | E24: -> | F24: <- | G24: -> | H24: <-
A25: a | B25: b | C25: 200 | D25: 150 | E25: 0.2 | F25: 10 | G25: 200 | H25: 139
A26: a | B26: c | C26: 310 | D26: 215 | E26: 0.6 | F26: 5 | G26: 310 | H26: 215
A27: b | B27: c | C27: 240 | D27: 410 | E27: 2 | F27: 1 | G27: 240 | H27: 410
A28: b | B28: d | C28: 180 | D28: 120 | E28: 0.6 | F28: 3 | G28: 180 | H28: 120
A29: c | B29: e | C29: 175 | D29: 300 | E29: 10 | F29: 2 | G29: 44 | H29: 300
A30: d | B30: e | C30: 100 | D30: 250 | E30: 7.7 | F30: 3.3 | G30: 31 | H30: 250
A31: e | B31: f | C31: 200 | D31: 180 | E31: 0.1 | F31: 14 | G31: 200 | H31: 180
A33: 22 | B33: Random LTN
C34: LTA | E34: LT prize | G34: LTN
C35: -> | D35: <- | E35: -> | F35: <- | G35: -> | H35: <-
A36: a | B36: b | C36: 200 | D36: 150 | E36: 0.2 | F36: 10 | G36: 200 | H36: 150
A37: a | B37: c | C37: 310 | D37: 215 | E37: 0.6 | F37: 5 | G37: 150 | H37: 150
A38: b | B38: c | C38: 240 | D38: 410 | E38: 2 | F38: 1 | G38: 240 | H38: 410
A39: b | B39: d | C39: 180 | D39: 120 | E39: 0.6 | F39: 3 | G39: 60 | H39: 10
A40: c | B40: e | C40: 175 | D40: 300 | E40: 10 | F40: 2 | G40: 175 | H40: 300
A41: d | B41: e | C41: 100 | D41: 250 | E41: 7.7 | F41: 3.3 | G41: 10 | H41: 200
A42: e | B42: f | C42: 200 | D42: 180 | E42: 0.1 | F42: 14 | G42: 200 | H42: 180
A44: 33 | B44: Random LTN
C45: LTA | E45: LT prize | G45: LTN
C46: -> | D46: <- | E46: -> | F46: <- | G46: -> | H46: <-
A47: a | B47: b | C47: 200 | D47: 200 | E47: 0.2 | F47: 10 | G47: 200 | H47: 200
A48: a | B48: c | C48: 310 | D48: 300 | E48: 0.6 | F48: 5 | G48: 300 | H48: 100
A49: b | B49: c | C49: 240 | D49: 410 | E49: 2 | F49: 1 | G49: 200 | H49: 200
A50: b | B50: d | C50: 180 | D50: 120 | E50: 0.6 | F50: 3 | G50: 180 | H50: 120
A51: c | B51: e | C51: 175 | D51: 300 | E51: 10 | F51: 2 | G51: 175 | H51: 300
A52: d | B52: e | C52: 100 | D52: 250 | E52: 7.7 | F52: 3.3 | G52: 100 | H52: 150
A53: e | B53: f | C53: 200 | D53: 180 | E53: 0.1 | F53: 14 | G53: 200 | H53: 180
A55: 44
C56: LTA | E56: LT prize | G56: LTN
C57: -> | D57: <- | E57: -> | F57: <- | G57: -> | H57: <-
A58: a | B58: b | C58: 200 | D58: 200 | E58: 0.2 | F58: 10 | G58: 200 | H58: 200
A59: a | B59: c | C59: 310 | D59: 300 | E59: 0.6 | F59: 5 | G59: 300 | H59: 100
A60: b | B60: c | C60: 240 | D60: 410 | E60: 2 | F60: 1 | G60: 200 | H60: 200
A61: b | B61: d | C61: 180 | D61: 120 | E61: 0.6 | F61: 3 | G61: 180 | H61: 120
A62: c | B62: e | C62: 175 | D62: 300 | E62: 10 | F62: 2 | G62: 175 | H62: 300
A63: d | B63: e | C63: 100 | D63: 250 | E63: 7.7 | F63: 3.3 | G63: 100 | H63: 150
A64: e | B64: f | C64: 200 | D64: 180 | E64: 0.1 | F64: 14 | G64: 200 | H64: 180
A66: 55 | B66: Max UIOSI LTN
C67: LTA | E67: LT prize | G67: LTN
C68: -> | D68: <- | E68: -> | F68: <- | G68: -> | H68: <-
A69: a | B69: b | C69: 200 | D69: 150 | E69: 0.2 | F69: 10 | G69: 180 | H69: 0
A70: a | B70: c | C70: 310 | D70: 215 | E70: 0.6 | F70: 5 | G70: 310 | H70: 0
A71: b | B71: c | C71: 240 | D71: 410 | E71: 2 | F71: 1 | G71: 0 | H71: 410
A72: b | B72: d | C72: 180 | D72: 120 | E72: 0.6 | F72: 3 | G72: 0 | H72: 120
A73: c | B73: e | C73: 175 | D73: 300 | E73: 10 | F73: 2 | G73: 0 | H73: 300
A74: d | B74: e | C74: 100 | D74: 250 | E74: 7.7 | F74: 3.3 | G74: 0 | H74: 250
A75: e | B75: f | C75: 200 | D75: 180 | E75: 0.1 | F75: 14 | G75: 200 | H75: 0
A77: 66 | B77: Random LTN
C78: LTA | E78: LT prize | G78: LTN
C79: -> | D79: <- | E79: -> | F79: <- | G79: -> | H79: <-
A80: a | B80: b | C80: 200 | D80: 200 | E80: 0.2 | F80: 10 | G80: 44 | H80: 53
A81: a | B81: c | C81: 310 | D81: 300 | E81: 0.6 | F81: 5 | G81: 280 | H81: 180
A82: b | B82: c | C82: 240 | D82: 410 | E82: 2 | F82: 1 | G82: 230 | H82: 135
A83: b | B83: d | C83: 180 | D83: 120 | E83: 0.6 | F83: 3 | G83: 160 | H83: 12
A84: c | B84: e | C84: 175 | D84: 300 | E84: 10 | F84: 2 | G84: 10 | H84: 18
A85: d | B85: e | C85: 100 | D85: 250 | E85: 7.7 | F85: 3.3 | G85: 43 | H85: 20
A86: e | B86: f | C86: 200 | D86: 180 | E86: 0.1 | F86: 14 | G86: 115 | H86: 78
A88: 77 88 00 | B88: Random LTN
C89: LTA | E89: LT prize | G89: LTN
C90: -> | D90: <- | E90: -> | F90: <- | G90: -> | H90: <-
A91: a | B91: b | C91: 200 | D91: 150 | E91: 0.2 | F91: 10 | G91: 44 | H91: 53
A92: a | B92: c | C92: 310 | D92: 215 | E92: 0.6 | F92: 5 | G92: 164 | H92: 180
A93: b | B93: c | C93: 240 | D93: 410 | E93: 2 | F93: 1 | G93: 135 | H93: 340
A94: b | B94: d | C94: 180 | D94: 120 | E94: 0.6 | F94: 3 | G94: 160 | H94: 12
A95: c | B95: e | C95: 175 | D95: 300 | E95: 10 | F95: 2 | G95: 10 | H95: 18
A96: d | B96: e | C96: 100 | D96: 250 | E96: 7.7 | F96: 3.3 | G96: 43 | H96: 20
A97: e | B97: f | C97: 200 | D97: 180 | E97: 0.1 | F97: 14 | G97: 115 | H97: 78

Sheet Calculations
D1: LTA | F1: LT prize | H1: LTN | J1: LT CI | L1: LT Flow | M1: LTA-LTN | O1: DA Spread | Q1: Resale costs | S1: LT CI resaleC
D2: -> | E2: <- | F2: -> | G2: <- | H2: -> | I2: <- | J2: -> | K2: <- | L2: -> | M2: -> | N2: <- | O2: -> | P2: <- | Q2: -> | R2: <- | S2: -> | T2: <-
B3: a | C3: b | D3: ='external data'!F12 -> 200 | E3: ='external data'!G12 -> 150 | F3: ='external data'!H12 -> 0.2 | G3: ='external data'!I12 -> 10 | H3: ='external data'!J12 -> 44 | I3: ='external data'!K12 -> 53 | J3: =D3*F3 -> 40 | K3: =E3*G3 -> 1500 | L3: =H3-I3 -> -9 | M3: =D3-H3 -> 156 | N3: =E3-I3 -> 97 | O3: ='external data'!B13-'external data'!B12 -> -9.2 | P3: =-O3 -> 9.2 | Q3: =M3*MAX(0,O3) -> 0 | R3: =N3*MAX(0,P3) -> 892.4 | S3: =(D3-H3)*F3 -> 31.2 | T3: 970
B4: a | C4: c | D4: ='external data'!F13 -> 310 | E4: ='external data'!G13 -> 215 | F4: ='external data'!H13 -> 0.6 | G4: ='external data'!I13 -> 5 | H4: ='external data'!J13 -> 164 | I4: ='external data'!K13 -> 180 | J4: =D4*F4 -> 186 | K4: =E4*G4 -> 1075 | L4: =H4-I4 -> -16 | M4: =D4-H4 -> 146 | N4: =E4-I4 -> 35 | O4: ='external data'!B14-'external data'!B12 -> -7.2 | P4: =-O4 -> 7.2 | Q4: =M4*MAX(0,O4) -> 0 | R4: 252 | S4: 87.6 | T4: =(E4-I4)*G4 -> 175
B5: b | C5: c | D5: ='external data'!F14 -> 240 | E5: ='external data'!G14 -> 410 | F5: ='external data'!H14 -> 2 | G5: ='external data'!I14 -> 1 | H5: ='external data'!J14 -> 135 | I5: ='external data'!K14 -> 340 | J5: 480 | K5: 410 | L5: -205 | M5: 105 | N5: 70 | O5: ='external data'!B14-'external data'!B13 -> 2 | P5: -2 | Q5: 210 | R5: 0 | S5: 210 | T5: 70
B6: b | C6: d | D6: ='external data'!F15 -> 180 | E6: ='external data'!G15 -> 120 | F6: ='external data'!H15 -> 0.6 | G6: ='external data'!I15 -> 3 | H6: ='external data'!J15 -> 160 | I6: ='external data'!K15 -> 12 | J6: 108 | K6: 360 | L6: 148 | M6: 20 | N6: 108 | O6: ='external data'!B15-'external data'!B13 -> 9.2 | P6: -9.2 | Q6: 184 | R6: 0 | S6: 12 | T6: 324
B7: c | C7: e | D7: ='external data'!F16 -> 175 | E7: ='external data'!G16 -> 300 | F7: ='external data'!H16 -> 10 | G7: ='external data'!I16 -> 2 | H7: ='external data'!J16 -> 10 | I7: ='external data'!K16 -> 18 | J7: 1750 | K7: 600 | L7: -8 | M7: 165 | N7: 282 | O7: ='external data'!B16-'external data'!B14 -> 8.3 | P7: -8.3 | Q7: 1369.5 | R7: 0 | S7: 1650 | T7: 564
B8: d | C8: e | D8: ='external data'!F17 -> 100 | E8: ='external data'!G17 -> 250 | F8: ='external data'!H17 -> 7.7 | G8: ='external data'!I17 -> 3.3 | H8: ='external data'!J17 -> 43 | I8: ='external data'!K17 -> 20 | J8: 770 | K8: 825 | L8: 23 | M8: 57 | N8: 230 | O8: ='external data'!B16-'external data'!B15 -> 1.1 | P8: -1.1 | Q8: 62.7 | R8: 0 | S8: 438.9 | T8: 759
B9: e | C9: f | D9: ='external data'!F18 -> 200 | E9: ='external data'!G18 -> 180 | F9: ='external data'!H18 -> 0.1 | G9: ='external data'!I18 -> 14 | H9: ='external data'!J18 -> 115 | I9: ='external data'!K18 -> 78 | J9: 20 | K9: 2520 | L9: 37 | M9: 85 | N9: 102 | O9: ='external data'!B17-'external data'!B16 -> -4.5 | P9: 4.5 | Q9: 0 | R9: 459 | S9: 8.5 | T9: 1428
Q10: =Q3+R3 -> 892.4 | S10: =S3+T3 -> 1001.2
Q11: =Q4+R4 -> 252 | S11: =S4+T4 -> 262.6
Q12: 210 | S12: 280
D13: Net Position [MW] | Q13: 184 | S13: 336
E14: zone A | F14: zone B | G14: zone C | H14: zone D | I14: zone E | J14: zone F | Q14: 1369.5 | S14: 2214
D15: Base Case | E15: 4 | F15: 10 | G15: -5 | H15: -3 | I15: 2 | J15: -8 | Q15: 62.7 | S15: 1197.9
D16: LTN Inclusion | E16: =E15+L3+L4 -> -21 | F16: =F15+L5+L6-L3 -> -38 | G16: =G15+L7-L5-L4 -> 208 | H16: =+H15+L8-L6 -> -128 | I16: =+I15-L7-L8+L9 -> 24 | J16: =+J15-L9 -> -45 | Q16: 459 | S16: 1436.5
D19: CB | E19: AAF after LTN | F19: MAX load | G19: Overload check | J19: Resale Costs | L19: 11 | M19: 22 | N19: 33 | O19: 44 | P19: 55 | Q19: 66 | R19: 77 | S19: 88 | T19: 00 | V19: Zone resale costs | W19: 11 | X19: 22 | Y19: 33 | Z19: 44 | AA19: 55 | AB19: 66 | AC19: 77 | AD19: 88 | AE19: 0
D20: G | E20: =PTDF!K3 -> -3.79084224 | F20: 220 | G20: =F20-ABS(E20) -> 216.2091578 | J20: a | K20: b | L20: 101.2 | M20: 0 | N20: 0 | O20: 0 | P20: 1380 | Q20: 29.4 | R20: 234 | S20: 194 | T20: 15.6 | V20: A | W20: =(L20+L21)/2 -> 50.6 | X20: =(M20+M21)/2 -> 234 | Y20: 40 | Z20: 100 | AA20: 1464 | AB20: 86.7 | AC20: 226.5 | AD20: 100.5 | AE20: 25.3
D21: H | E21: =PTDF!K4 -> -6.203169481 | F21: 220 | G21: 213.7968305 | J21: a | K21: c | L21: 0 | M21: 468 | N21: 80 | O21: 200 | P21: 1548 | Q21: 144 | R21: 219 | S21: 7 | T21: 35 | V21: B | W21: =(L20+L22+L23)/2 -> 50.6 | X21: =(M20+M22+M23)/2 -> 552 | Y21: 68 | Z21: 115.5 | AA21: 1758 | AB21: 154.2 | AC21: 122 | AD21: 245.5 | AE21: 105.7
D22: I | E22: =PTDF!K5 -> -27.66854767 | F22: 280 | G22: 252.3314523 | J22: b | K22: c | L22: 0 | M22: 0 | N22: 136 | O22: 231 | P22: 480 | Q22: 275 | R22: 0 | S22: 189 | T22: 77 | V22: C | W22: =(L22+L21+L24)/2 -> 543.65 | X22: =(M22+M21+M24)/2 -> 234 | Y22: 108 | Z22: 215.5 | AA22: 1740.25 | AB22: 943.75 | AC22: 109.5 | AD22: 1071.5 | AE22: 138.5
D23: L | E23: =PTDF!K6 -> 11.86257484 | F23: 280 | G23: 268.1374252 | J23: b | K23: d | L23: 0 | M23: 1104 | N23: 0 | O23: 0 | P23: 1656 | Q23: 4 | R23: 10 | S23: 108 | T23: 118.8 | V23: D | W23: =(L23+L25)/2 -> 37.95 | X23: =(M23+M25)/2 -> 601.5 | Y23: 50 | Z23: 0 | AA23: 883 | AB23: 221.45 | AC23: 62.5 | AD23: 470.1 | AE23: 87.9
D24: M | E24: =PTDF!K7 -> 42.04627336 | F24: 280 | G24: 237.9537266 | J24: c | K24: e | L24: 1087.3 | M24: 0 | N24: 0 | O24: 0 | P24: 1452.5 | Q24: 1468.5 | R24: 0 | S24: 1947 | T24: 165 | V24: E | W24: =(L24+L25+L26)/2 -> 581.6 | X24: =(M24+M25+M26)/2 -> 49.5 | Y24: 50 | Z24: 0 | AA24: 1186.25 | AB24: 1586.1 | AC24: 265.75 | AD24: 2333.1 | AE24: 116.1
D25: O | E25: =PTDF!K8 -> 39.08698729 | F25: 280 | G25: 240.9130127 | J25: d | K25: e | L25: 75.9 | M25: 99 | N25: 100 | O25: 0 | P25: 110 | Q25: 438.9 | R25: 115 | S25: 832.2 | T25: 57 | V25: F | W25: =(L26)/2 -> 0 | X25: =(M26)/2 -> 0 | Y25: 0 | Z25: 0 | AA25: 405 | AB25: 632.4 | AC25: 208.25 | AD25: 943.5 | AE25: 5.1
D26: P | E26: =PTDF!K9 -> -36.69152764 | F26: 220 | G26: 183.3084724 | J26: e | K26: f | L26: 0 | M26: 0 | N26: 0 | O26: 0 | P26: 810 | Q26: 1264.8 | R26: 416.5 | S26: 1887 | T26: 10.2
D27: Q | E27: =PTDF!K10 -> 28.41694395 | F27: 280 | G27: 251.583056
D28: R | E28: =PTDF!K11 -> -44.77917362 | F28: 310 | G28: 265.2208264 | J28: LT Income from NN Capacity | L28: 11 | M28: 22 | N28: 33 | O28: 44 | P28: 55 | Q28: 66 | R28: 77 | S28: 88 | T28: 00 | V28: Zone NNLT income | W28: 11 | X28: 22 | Y28: 33 | Z28: 44 | AA28: 55 | AB28: 66 | AC28: 77 | AD28: 88 | AE28: 0
D29: U | E29: =PTDF!K12 -> 39.4497954 | F29: 280 | G29: 240.5502046 | J29: a | K29: b | L29: 110 | M29: 0 | N29: 0 | O29: 0 | P29: 1504 | Q29: 1501.2 | R29: 1001.2 | S29: 1001.2 | T29: 1001.2 | V29: A | W29: =(L29+L30)/2 -> 55 | X29: =(M29+M30)/2 -> 210.5 | Y29: =(N29+N30)/2 -> 503 | Z29: =(O29+O30)/2 -> 503 | AA29: =(P29+P30)/2 -> 1289.5 | AB29: =(Q29+Q30)/2 -> 1059.6 | AC29: =(R29+R30)/2 -> 631.9 | AD29: =(S29+S30)/2 -> 631.9 | AE29: =(T29+T30)/2 -> 631.9
D30: X | E30: =PTDF!K13 -> 19.13143688 | F30: 220 | G30: 200.8685631 | J30: a | K30: c | L30: 0 | M30: 421 | N30: 1006 | O30: 1006 | P30: 1075 | Q30: 618 | R30: 262.6 | S30: 262.6 | T30: 262.6 | V30: B | W30: =(L29+L31+L32)/2 -> 55 | X30: =(M29+M31+M32)/2 -> 201 | Y30: =(N29+N31+N32)/2 -> 145 | Z30: =(O29+O31+O32)/2 -> 145 | AA30: =(P29+P31+P32)/2 -> 1046 | AB30: =(Q29+Q31+Q32)/2 -> 1066.1 | AC30: =(R29+R31+R32)/2 -> 808.6 | AD30: =(S29+S31+S32)/2 -> 808.6 | AE30: =(T29+T31+T32)/2 -> 808.6
D31: AJ | E31: =PTDF!K14 -> 46.86673935 | F31: 350 | G31: 303.1332607 | J31: b | K31: c | L31: 0 | M31: 0 | N31: 290 | O31: 290 | P31: 480 | Q31: 295 | R31: 280 | S31: 280 | T31: 280 | V31: C | W31: =(L31+L30+L33)/2 -> 655 | X31: =(M31+M30+M33)/2 -> 210.5 | Y31: =(N31+N30+N33)/2 -> 648 | Z31: =(O31+O30+O33)/2 -> 648 | AA31: =(P31+P30+P33)/2 -> 1652.5 | AB31: =(Q31+Q30+Q33)/2 -> 1563.5 | AC31: =(R31+R30+R33)/2 -> 1378.3 | AD31: =(S31+S30+S33)/2 -> 1378.3 | AE31: =(T31+T30+T33)/2 -> 1378.3
D32: AO | E32: =PTDF!K15 -> 31.13851345 | F32: 220 | G32: 188.8614865 | J32: b | K32: d | L32: 0 | M32: 402 | N32: 0 | O32: 0 | P32: 108 | Q32: 336 | R32: 336 | S32: 336 | T32: 336 | V32: D | W32: =(L32+L34)/2 -> 265.65 | X32: =(M32+M34)/2 -> 630 | Y32: =(N32+N34)/2 -> 165 | Z32: =(O32+O34)/2 -> 165 | AA32: =(P32+P34)/2 -> 439 | AB32: =(Q32+Q34)/2 -> 766.95 | AC32: =(R32+R34)/2 -> 766.95 | AD32: =(S32+S34)/2 -> 766.95 | AE32: =(T32+T34)/2 -> 766.95
D33: AP | E33: =PTDF!K16 -> 13.86148655 | F33: 310 | G33: 296.1385135 | J33: c | K33: e | L33: 1310 | M33: 0 | N33: 0 | O33: 0 | P33: 1750 | Q33: 2214 | R33: 2214 | S33: 2214 | T33: 2214 | V33: E | W33: =(L33+L34+L35)/2 -> 920.65 | X33: =(M33+M34+M35)/2 -> 429 | Y33: =(N33+N34+N35)/2 -> 165 | Z33: =(O33+O34+O35)/2 -> 165 | AA33: =(P33+P34+P35)/2 -> 2520 | AB33: =(Q33+Q34+Q35)/2 -> 2424.2 | AC33: =(R33+R34+R35)/2 -> 2424.2 | AD33: =(S33+S34+S35)/2 -> 2424.2 | AE33: =(T33+T34+T35)/2 -> 2424.2
J34: d | K34: e | L34: 531.3 | M34: 858 | N34: 330 | O34: 330 | P34: 770 | Q34: 1197.9 | R34: 1197.9 | S34: 1197.9 | T34: 1197.9 | V34: F | W34: =(L35)/2 -> 0 | X34: =(M35)/2 -> 0 | Y34: =(N35)/2 -> 0 | Z34: =(O35)/2 -> 0 | AA34: =(P35)/2 -> 1260 | AB34: =(Q35)/2 -> 718.25 | AC34: =(R35)/2 -> 718.25 | AD34: =(S35)/2 -> 718.25 | AE34: =(T35)/2 -> 718.25
J35: e | K35: f | L35: 0 | M35: 0 | N35: 0 | O35: 0 | P35: 2520 | Q35: 1436.5 | R35: 1436.5 | S35: 1436.5 | T35: 1436.5
J37: Daily Income | L37: 11 | M37: 22 | N37: 33 | O37: 44 | P37: 55 | Q37: 66 | R37: 77 | S37: 88 | T37: 00 | V37: Zone Daily income | W37: 11 | X37: 22 | Y37: 33 | Z37: 44 | AA37: 55 | AB37: 66 | AC37: 77 | AD37: 88 | AE37: 0
J38: a | K38: b | L38: =CI!D27 -> 2913.587878 | M38: =CI!E27 -> 2913.587965 | N38: =CI!F27 -> 1308.975763 | O38: =CI!G27 -> 11.93762168 | P38: =CI!H27 -> 2913.587854 | Q38: =CI!I27 -> 67.7883699 | R38: =CI!J27 -> 512.7205105 | S38: =CI!K27 -> 684.6575849 | T38: =CI!L27 -> 11.93762009 | V38: A | W38: =(L38+L39)/2 -> 2667.262687 | X38: =(M38+M39)/2 -> 2667.262756 | Y38: =(N38+N39)/2 -> 660.1506945 | Z38: =(O38+O39)/2 -> 184.052025 | AA38: =(P38+P39)/2 -> 2667.262673 | AB38: =(Q38+Q39)/2 -> 249.811352 | AC38: =(R38+R39)/2 -> 528.5435586 | AD38: =(S38+S39)/2 -> 347.4385403 | AE38: =(T38+T39)/2 -> 184.0520214
J39: a | K39: c | L39: =CI!D28 -> 2420.937497 | M39: =CI!E28 -> 2420.937548 | N39: =CI!F28 -> 11.32562554 | O39: =CI!G28 -> 356.1664284 | P39: =CI!H28 -> 2420.937492 | Q39: =CI!I28 -> 431.834334 | R39: =CI!J28 -> 544.3666068 | S39: =CI!K28 -> 10.21949577 | T39: =CI!L28 -> 356.1664226 | V39: B | W39: =(L38+L40+L41)/2 -> 3690.206052 | X39: =(M38+M40+M41)/2 -> 3690.206154 | Y39: =(N38+N40+N41)/2 -> 2378.656361 | Z39: =(O38+O40+O41)/2 -> 527.1978774 | AA39: =(P38+P40+P41)/2 -> 3690.205941 | AB39: =(Q38+Q40+Q41)/2 -> 159.5869878 | AC39: =(R38+R40+R41)/2 -> 365.660496 | AD39: =(S38+S40+S41)/2 -> 903.813006 | AE39: =(T38+T40+T41)/2 -> 527.1978841
J40: b | K40: c | L40: =CI!D29 -> 542.2789671 | M40: =CI!E29 -> 542.2789738 | N40: =CI!F29 -> 2347.284581 | O40: =CI!G29 -> 665.997282 | P40: =CI!H29 -> 542.2789705 | Q40: =CI!I29 -> 185.4109271 | R40: =CI!J29 -> 0 | S40: =CI!K29 -> 1042.009009 | T40: =CI!L29 -> 665.9972994 | V40: C | W40: =(L40+L39+L42)/2 -> 3592.696482 | X40: =(M40+M39+M42)/2 -> 3592.696433 | Y40: =(N40+N39+N42)/2 -> 1335.619641 | Z40: =(O40+O39+O42)/2 -> 743.9602665 | AA40: =(P40+P39+P42)/2 -> 3592.696428 | AB40: =(Q40+Q39+Q42)/2 -> 2432.335459 | AC40: =(R40+R39+R42)/2 -> 272.1833034 | AD40: =(S40+S39+S42)/2 -> 3545.850497 | AE40: =(T40+T39+T42)/2 -> 743.9602749
J41: b | K41: d | L41: =CI!D30 -> 3924.545258 | M41: =CI!E30 -> 3924.54537 | N41: =CI!F30 -> 1101.052377 | O41: =CI!G30 -> 376.4608511 | P41: =CI!H30 -> 3924.545057 | Q41: =CI!I30 -> 65.97467853 | R41: =CI!J30 -> 218.6004816 | S41: =CI!K30 -> 80.95941801 | T41: =CI!L30 -> 376.4608488 | V41: D | W41: =(L41+L43)/2 -> 1996.887835 | X41: =(M41+M43)/2 -> 1996.887898 | Y41: =(N41+N43)/2 -> 587.3409044 | Z41: =(O41+O43)/2 -> 283.6786344 | AA41: =(P41+P43)/2 -> 1996.887732 | AB41: =(Q41+Q43)/2 -> 1235.536035 | AC41: =(R41+R43)/2 -> 111.4768108 | AD41: =(S41+S43)/2 -> 2574.167685 | AE41: =(T41+T43)/2 -> 283.6786313
J42: c | K42: e | L42: =CI!D31 -> 4222.176501 | M42: =CI!E31 -> 4222.176345 | N42: =CI!F31 -> 312.6290749 | O42: =CI!G31 -> 465.7568227 | P42: =CI!H31 -> 4222.176394 | Q42: =CI!I31 -> 4247.425657 | R42: =CI!J31 -> 0 | S42: =CI!K31 -> 6039.47249 | T42: =CI!L31 -> 465.7568277 | V42: E | W42: =(L42+L43+L44)/2 -> 3157.354023 | X42: =(M42+M43+M44)/2 -> 3157.353965 | Y42: =(N42+N43+N44)/2 -> 448.4140725 | Z42: =(O42+O43+O44)/2 -> 349.2649702 | AA42: =(P42+P43+P44)/2 -> 3157.353931 | AB42: =(Q42+Q43+Q44)/2 -> 5638.504674 | AC42: =(R42+R43+R44)/2 -> 1042.78789 | AD42: =(S42+S43+S44)/2 -> 8796.929295 | AE42: =(T42+T43+T44)/2 -> 349.2649709
J43: d | K43: e | L43: =CI!D32 -> 69.23041111 | M43: =CI!E32 -> 69.23042613 | N43: =CI!F32 -> 73.62943225 | O43: =CI!G32 -> 190.8964177 | P43: =CI!H32 -> 69.23040634 | Q43: =CI!I32 -> 2405.097391 | R43: =CI!J32 -> 4.353140023 | S43: =CI!K32 -> 5067.375952 | T43: =CI!L32 -> 190.8964138 | V43: F | W43: =(L44)/2 -> 1011.650567 | X43: =(M44)/2 -> 1011.65058 | Y43: =(N44)/2 -> 255.2848189 | Z43: =(O44)/2 -> 20.93835004 | AA43: =(P44)/2 -> 1011.650531 | AB43: =(Q44)/2 -> 2312.24315 | AC43: =(R44)/2 -> 1040.61132 | AD43: =(S44)/2 -> 3243.505073 | AE43: =(T44)/2 -> 20.93835015
J44: e | K44: f | L44: =CI!D33 -> 2023.301134 | M44: =CI!E33 -> 2023.301159 | N44: =CI!F33 -> 510.5696378 | O44: =CI!G33 -> 41.87670008 | P44: =CI!H33 -> 2023.301062 | Q44: =CI!I33 -> 4624.4863 | R44: =CI!J33 -> 2081.22264 | S44: =CI!K33 -> 6487.010147 | T44: =CI!L33 -> 41.8767003
J46: NN Daily Income (UIOSI) | L46: 11 | M46: 22 | N46: 33 | O46: 44 | P46: 55 | Q46: 66 | R46: 77 | S46: 88 | T46: 00 | V46: Zone NN Daily Income (UIOSI) | W46: 11 | X46: 22 | Y46: 33 | Z46: 44 | AA46: 55 | AB46: 66 | AC46: 77 | AD46: 88 | AE46: 0
J47: a | K47: b | L47: 52.52656801 | M47: 404.2606201 | N47: 119.2380945 | O47: 5.157846185 | P47: 2269.855548 | Q47: 20.88648824 | R47: 114.4721454 | S47: 172.3096173 | T47: 9.797122633 | V47: A | W47: =(L47+L48)/2 -> 41.21564985 | X47: =(M47+M48)/2 -> 277.9413717 | Y47: =(N47+N48)/2 -> 66.44623386 | Z47: =(O47+O48)/2 -> 60.44816376 | AA47: =(P47+P48)/2 -> 1560.723429 | AB47: =(Q47+Q48)/2 -> 107.8134536 | AC47: =(R47+R48)/2 -> 156 | AD47: =(S47+S48)/2 -> 90.73932776 | AE47: =(T47+T48)/2 -> 12.54605721
J48: a | K48: c | L48: 29.90473168 | M48: 151.6221234 | N48: 13.65437327 | O48: 115.7384813 | P48: 851.5913106 | Q48: 194.7404189 | R48: 197.5278546 | S48: 9.169038274 | T48: 15.29499178 | V48: B | W48: =(L47+L49+L50)/2 -> 70.19828301 | X48: =(M47+M49+M50)/2 -> 443.2595451 | Y48: =(N47+N49+N50)/2 -> 136.0914745 | Z48: =(O47+O49+O50)/2 -> 127.5726118 | AA48: =(P47+P49+P50)/2 -> 1996.288269 | AB48: =(Q47+Q49+Q50)/2 -> 112.74835 | AC48: =(R47+R49+R50)/2 -> 95.88716903 | AD48: =(S47+S49+S50)/2 -> 180.60206 | AE48: =(T47+T49+T50)/2 -> 122.9730998
J49: b | K49: c | L49: 22.51457135 | M49: 60.41136384 | N49: 106.2436405 | O49: 216.9234152 | P49: 347.6176282 | Q49: 202.683361 | R49: 0 | S49: 126.4755177 | T49: 137.6390573 | V49: C | W49: =(L49+L48+L51)/2 -> 543.139307 | X49: =(M49+M48+M51)/2 -> 413.7270164 | Y49: =(N49+N48+N51)/2 -> 65.13803069 | Z49: =(O49+O48+O51)/2 -> 181.360022 | AA49: =(P49+P48+P51)/2 -> 1452.563279 | AB49: =(Q49+Q48+Q51)/2 -> 1063.959034 | AC49: =(R49+R48+R51)/2 -> 98.76392729 | AD49: =(S49+S48+S51)/2 -> 772.3942902 | AE49: =(T49+T48+T51)/2 -> 147.9227129
J50: b | K50: d | L50: 65.35542664 | M50: 421.8471063 | N50: 46.70121411 | O50: 33.06396227 | P50: 1375.103363 | Q50: 1.926850751 | R50: 77.30219264 | S50: 62.41898512 | T50: 98.51001966 | V50: D | W50: =(L50+L52)/2 -> 62.79740903 | X50: =(M50+M52)/2 -> 219.6426736 | Y50: =(N50+N52)/2 -> 33.24292209 | Z50: =(O50+O52)/2 -> 31.5610549 | AA50: =(P50+P52)/2 -> 725.7589476 | AB50: =(Q50+Q52)/2 -> 106.1700945 | AC50: =(R50+R52)/2 -> 45 | AD50: =(S50+S52)/2 -> 780.0509012 | AE50: =(T50+T52)/2 -> 81.70469506
J51: c | K51: e | L51: 1033.859311 | M51: 615.4205454 | N51: 10.37804758 | O51: 30.05814752 | P51: 1705.917618 | Q51: 1730.494287 | R51: 0 | S51: 1409.144024 | T51: 142.9113768 | V51: E | W51: =(L51+L52+L53)/2 -> 547.0493512 | X51: =(M51+M52+M53)/2 -> 316.4293932 | Y51: =(N51+N52+N53)/2 -> 15.08133882 | Z51: =(O51+O52+O53)/2 -> 30.05814752 | AA51: =(P51+P52+P53)/2 -> 1296.166075 | AB51: =(Q51+Q52+Q53)/2 -> 1602.181441 | AC51: =(R51+R52+R53)/2 -> 288.0989037 | AD51: =(S51+S52+S53)/2 -> 2396.913421 | AE51: =(T51+T52+T53)/2 -> 108.6794043
J52: d | K52: e | L52: 60.23939141 | M52: 17.43824097 | N52: 19.78463006 | O52: 30.05814752 | P52: 76.4145325 | Q52: 210.4133383 | R52: 12.69780736 | S52: 1497.682817 | T52: 64.89937047 | V52: F | W52: =(L53)/2 -> 1.082253939e-11 | X52: =(M53)/2 -> 6.842526545e-11 | Y52: =(N53)/2 -> 1.153527985e-11 | Z52: =(O53)/2 -> 5.230976897e-13 | AA52: =(P53)/2 -> 405 | AB52: =(Q53)/2 -> 631.7276276 | AC52: =(R53)/2 -> 281.75 | AD52: =(S53)/2 -> 943.5 | AE52: =(T53)/2 -> 4.774030681
J53: e | K53: f | L53: 2.164507879e-11 | M53: 1.368505309e-10 | N53: 2.30705597e-11 | O53: 1.046195379e-12 | P53: 810 | Q53: 1263.455255 | R53: 563.5 | S53: 1887 | T53: 9.548061362
J55: CI | L55: 11 | M55: 22 | N55: 33 | O55: 44 | P55: 55 | Q55: 66 | R55: 77 | S55: 88 | T55: 00 | V55: Zone CI | W55: 11 | X55: 22 | Y55: 33 | Z55: 44 | AA55: 55 | AB55: 66 | AC55: 77 | AD55: 88 | AE55: 00
J56: a | K56: b | L56: =MIN(L20,L29) -> 101.2 | M56: =MIN(M20,M29) -> 0 | N56: 0 | O56: 0 | P56: 1380 | Q56: 29.4 | R56: 234 | S56: 194 | T56: 15.6 | V56: A | W56: =MIN(W20,W29) -> 50.6 | X56: =MIN(X20,X29) -> 210.5 | Y56: 40 | Z56: 100 | AA56: 1289.5 | AB56: 86.7 | AC56: 226.5 | AD56: 100.5 | AE56: 25.3
J57: a | K57: c | L57: =MIN(L21,L30) -> 0 | M57: 421 | N57: 80 | O57: 200 | P57: 1075 | Q57: 144 | R57: 219 | S57: 7 | T57: 35 | V57: B | W57: =MIN(W21,W30) -> 50.6 | X57: 201 | Y57: 68 | Z57: 115.5 | AA57: 1046 | AB57: 154.2 | AC57: 122 | AD57: 245.5 | AE57: 105.7
J58: b | K58: c | L58: =MIN(L22,L31) -> 0 | M58: 0 | N58: 136 | O58: 231 | P58: 480 | Q58: 275 | R58: 0 | S58: 189 | T58: 77 | V58: C | W58: =MIN(W22,W31) -> 543.65 | X58: 210.5 | Y58: 108 | Z58: 215.5 | AA58: 1652.5 | AB58: 943.75 | AC58: 109.5 | AD58: 1071.5 | AE58: 138.5
J59: b | K59: d | L59: =MIN(L23,L32) -> 0 | M59: 402 | N59: 0 | O59: 0 | P59: 108 | Q59: 4 | R59: 10 | S59: 108 | T59: 118.8 | V59: D | W59: =MIN(W23,W32) -> 37.95 | X59: 601.5 | Y59: 50 | Z59: 0 | AA59: 439 | AB59: 221.45 | AC59: 62.5 | AD59: 470.1 | AE59: 87.9
J60: c | K60: e | L60: =MIN(L24,L33) -> 1087.3 | M60: 0 | N60: 0 | O60: 0 | P60: 1452.5 | Q60: 1468.5 | R60: 0 | S60: 1947 | T60: 165 | V60: E | W60: =MIN(W24,W33) -> 581.6 | X60: 49.5 | Y60: 50 | Z60: 0 | AA60: 1186.25 | AB60: 1586.1 | AC60: 265.75 | AD60: 2333.1 | AE60: 116.1
J61: d | K61: e | L61: =MIN(L25,L34) -> 75.9 | M61: 99 | N61: 100 | O61: 0 | P61: 110 | Q61: 438.9 | R61: 115 | S61: 832.2 | T61: 57 | V61: F | W61: =MIN(W25,W34) -> 0 | X61: 0 | Y61: 0 | Z61: 0 | AA61: 405 | AB61: 632.4 | AC61: 208.25 | AD61: 718.25 | AE61: 5.1
J62: e | K62: f | L62: =MIN(L26,L35) -> 0 | M62: 0 | N62: 0 | O62: 0 | P62: 810 | Q62: 1264.8 | R62: 416.5 | S62: 1436.5 | T62: 10.2
J64: zbytek pro CII | L64: 11 | M64: 22 | N64: 33 | O64: 44 | P64: 55 | Q64: 66 | R64: 77 | S64: 88 | T64: 00 | V64: zbytek pro CII | W64: 11 | X64: 22 | Y64: 33 | Z64: 44 | AA64: 55 | AB64: 66 | AC64: 77 | AD64: 88 | AE64: 00
J65: a | K65: b | L65: =MAX(0,L20-L29) -> 0 | M65: =MAX(0,M20-M29) -> 0 | N65: 0 | O65: 0 | P65: 0 | Q65: 0 | R65: 0 | S65: 0 | T65: 0 | V65: A | W65: =MAX(0,W20-W29) -> 0 | X65: =MAX(0,X20-X29) -> 23.5 | Y65: 0 | Z65: 0 | AA65: 174.5 | AB65: 0 | AC65: 0 | AD65: 0 | AE65: 0
J66: a | K66: c | L66: =MAX(0,L21-L30) -> 0 | M66: 47 | N66: 0 | O66: 0 | P66: 473 | Q66: 0 | R66: 0 | S66: 0 | T66: 0 | V66: B | W66: =MAX(0,W21-W30) -> 0 | X66: 351 | Y66: 0 | Z66: 0 | AA66: 712 | AB66: 0 | AC66: 0 | AD66: 0 | AE66: 0
J67: b | K67: c | L67: =MAX(0,L22-L31) -> 0 | M67: 0 | N67: 0 | O67: 0 | P67: 0 | Q67: 0 | R67: 0 | S67: 0 | T67: 0 | V67: C | W67: =MAX(0,W22-W31) -> 0 | X67: 23.5 | Y67: 0 | Z67: 0 | AA67: 87.75 | AB67: 0 | AC67: 0 | AD67: 0 | AE67: 0
J68: b | K68: d | L68: =MAX(0,L23-L32) -> 0 | M68: 702 | N68: 0 | O68: 0 | P68: 1548 | Q68: 0 | R68: 0 | S68: 0 | T68: 0 | V68: D | W68: =MAX(0,W23-W32) -> 0 | X68: 0 | Y68: 0 | Z68: 0 | AA68: 444 | AB68: 0 | AC68: 0 | AD68: 0 | AE68: 0
J69: c | K69: e | L69: =MAX(0,L24-L33) -> 0 | M69: 0 | N69: 0 | O69: 0 | P69: 0 | Q69: 0 | R69: 0 | S69: 0 | T69: 0 | V69: E | W69: =MAX(0,W24-W33) -> 0 | X69: 0 | Y69: 0 | Z69: 0 | AA69: 0 | AB69: 0 | AC69: 0 | AD69: 0 | AE69: 0
J70: d | K70: e | L70: =MAX(0,L25-L34) -> 0 | M70: 0 | N70: 0 | O70: 0 | P70: 0 | Q70: 0 | R70: 0 | S70: 0 | T70: 0 | V70: F | W70: =MAX(0,W25-W34) -> 0 | X70: 0 | Y70: 0 | Z70: 0 | AA70: 0 | AB70: 0 | AC70: 0 | AD70: 225.25 | AE70: 0
J71: e | K71: f | L71: =MAX(0,L26-L35) -> 0 | M71: 0 | N71: 0 | O71: 0 | P71: 0 | Q71: 0 | R71: 0 | S71: 450.5 | T71: 0
J73: Speciální cena | L73: 11 | M73: 22 | N73: 33 | O73: 44 | P73: 55 | Q73: 66 | R73: 77 | S73: 88 | T73: 00
L74: =UIOSI!C10/'AAF + CP'!D21 -> 0 | M74: =UIOSI!D10/'AAF + CP'!E21 -> 0.2918151765 | N74: =UIOSI!E10/'AAF + CP'!F21 -> 0 | O74: =UIOSI!F10/'AAF + CP'!G21 -> 0 | P74: =UIOSI!G10/'AAF + CP'!H21 -> 0.7873945181 | Q74: =UIOSI!H10/'AAF + CP'!I21 -> 0 | R74: =UIOSI!I10/'AAF + CP'!J21 -> 0 | S74: =UIOSI!J10/'AAF + CP'!K21 -> 0.1974264247 | T74: =UIOSI!K10/'AAF + CP'!L21 -> 0

Sheet UIOSI
A1: Po hranicích | M1: Po zónách
A2: Daily Income | C2: 11 | D2: 22 | E2: 33 | F2: 44 | G2: 55 | H2: 66 | I2: 77 | J2: 88 | K2: 00 | M2: Zone Net Daily Income | N2: 11 | O2: 22 | P2: 33 | Q2: 44 | R2: 55 | S2: 66 | T2: 77 | U2: 88 | V2: 0
A3: a | B3: b | C3: =Calculations!L38 -> 2913.587878 | D3: =Calculations!M38 -> 2913.587965 | E3: =Calculations!N38 -> 1308.975763 | F3: =Calculations!O38 -> 11.93762168 | G3: =Calculations!P38 -> 2913.587854 | H3: =Calculations!Q38 -> 67.7883699 | I3: =Calculations!R38 -> 512.7205105 | J3: =Calculations!S38 -> 684.6575849 | K3: =Calculations!T38 -> 11.93762009 | M3: A | N3: =Calculations!W38 -> 2667.262687 | O3: =Calculations!X38 -> 2667.262756 | P3: =Calculations!Y38 -> 660.1506945 | Q3: =Calculations!Z38 -> 184.052025 | R3: =Calculations!AA38 -> 2667.262673 | S3: =Calculations!AB38 -> 249.811352 | T3: =Calculations!AC38 -> 528.5435586 | U3: =Calculations!AD38 -> 347.4385403 | V3: =Calculations!AE38 -> 184.0520214
A4: a | B4: c | C4: =Calculations!L39 -> 2420.937497 | D4: =Calculations!M39 -> 2420.937548 | E4: =Calculations!N39 -> 11.32562554 | F4: =Calculations!O39 -> 356.1664284 | G4: =Calculations!P39 -> 2420.937492 | H4: =Calculations!Q39 -> 431.834334 | I4: =Calculations!R39 -> 544.3666068 | J4: =Calculations!S39 -> 10.21949577 | K4: =Calculations!T39 -> 356.1664226 | M4: B | N4: =Calculations!W39 -> 3690.206052 | O4: =Calculations!X39 -> 3690.206154 | P4: =Calculations!Y39 -> 2378.656361 | Q4: =Calculations!Z39 -> 527.1978774 | R4: =Calculations!AA39 -> 3690.205941 | S4: =Calculations!AB39 -> 159.5869878 | T4: =Calculations!AC39 -> 365.660496 | U4: =Calculations!AD39 -> 903.813006 | V4: =Calculations!AE39 -> 527.1978841
A5: b | B5: c | C5: =Calculations!L40 -> 542.2789671 | D5: =Calculations!M40 -> 542.2789738 | E5: =Calculations!N40 -> 2347.284581 | F5: =Calculations!O40 -> 665.997282 | G5: =Calculations!P40 -> 542.2789705 | H5: =Calculations!Q40 -> 185.4109271 | I5: =Calculations!R40 -> 0 | J5: =Calculations!S40 -> 1042.009009 | K5: =Calculations!T40 -> 665.9972994 | M5: C | N5: =Calculations!W40 -> 3592.696482 | O5: =Calculations!X40 -> 3592.696433 | P5: =Calculations!Y40 -> 1335.619641 | Q5: =Calculations!Z40 -> 743.9602665 | R5: =Calculations!AA40 -> 3592.696428 | S5: =Calculations!AB40 -> 2432.335459 | T5: =Calculations!AC40 -> 272.1833034 | U5: =Calculations!AD40 -> 3545.850497 | V5: =Calculations!AE40 -> 743.9602749
A6: b | B6: d | C6: =Calculations!L41 -> 3924.545258 | D6: =Calculations!M41 -> 3924.54537 | E6: =Calculations!N41 -> 1101.052377 | F6: =Calculations!O41 -> 376.4608511 | G6: =Calculations!P41 -> 3924.545057 | H6: =Calculations!Q41 -> 65.97467853 | I6: =Calculations!R41 -> 218.6004816 | J6: =Calculations!S41 -> 80.95941801 | K6: =Calculations!T41 -> 376.4608488 | M6: D | N6: =Calculations!W41 -> 1996.887835 | O6: =Calculations!X41 -> 1996.887898 | P6: =Calculations!Y41 -> 587.3409044 | Q6: =Calculations!Z41 -> 283.6786344 | R6: =Calculations!AA41 -> 1996.887732 | S6: =Calculations!AB41 -> 1235.536035 | T6: =Calculations!AC41 -> 111.4768108 | U6: =Calculations!AD41 -> 2574.167685 | V6: =Calculations!AE41 -> 283.6786313
A7: c | B7: e | C7: =Calculations!L42 -> 4222.176501 | D7: =Calculations!M42 -> 4222.176345 | E7: =Calculations!N42 -> 312.6290749 | F7: =Calculations!O42 -> 465.7568227 | G7: =Calculations!P42 -> 4222.176394 | H7: =Calculations!Q42 -> 4247.425657 | I7: =Calculations!R42 -> 0 | J7: =Calculations!S42 -> 6039.47249 | K7: =Calculations!T42 -> 465.7568277 | M7: E | N7: =Calculations!W42 -> 3157.354023 | O7: =Calculations!X42 -> 3157.353965 | P7: =Calculations!Y42 -> 448.4140725 | Q7: =Calculations!Z42 -> 349.2649702 | R7: =Calculations!AA42 -> 3157.353931 | S7: =Calculations!AB42 -> 5638.504674 | T7: =Calculations!AC42 -> 1042.78789 | U7: =Calculations!AD42 -> 8796.929295 | V7: =Calculations!AE42 -> 349.2649709
A8: d | B8: e | C8: =Calculations!L43 -> 69.23041111 | D8: =Calculations!M43 -> 69.23042613 | E8: =Calculations!N43 -> 73.62943225 | F8: =Calculations!O43 -> 190.8964177 | G8: =Calculations!P43 -> 69.23040634 | H8: =Calculations!Q43 -> 2405.097391 | I8: =Calculations!R43 -> 4.353140023 | J8: =Calculations!S43 -> 5067.375952 | K8: =Calculations!T43 -> 190.8964138 | M8: F | N8: =Calculations!W43 -> 1011.650567 | O8: =Calculations!X43 -> 1011.65058 | P8: =Calculations!Y43 -> 255.2848189 | Q8: =Calculations!Z43 -> 20.93835004 | R8: =Calculations!AA43 -> 1011.650531 | S8: =Calculations!AB43 -> 2312.24315 | T8: =Calculations!AC43 -> 1040.61132 | U8: =Calculations!AD43 -> 3243.505073 | V8: =Calculations!AE43 -> 20.93835015
A9: e | B9: f | C9: =Calculations!L44 -> 2023.301134 | D9: =Calculations!M44 -> 2023.301159 | E9: =Calculations!N44 -> 510.5696378 | F9: =Calculations!O44 -> 41.87670008 | G9: =Calculations!P44 -> 2023.301062 | H9: =Calculations!Q44 -> 4624.4863 | I9: =Calculations!R44 -> 2081.22264 | J9: =Calculations!S44 -> 6487.010147 | K9: =Calculations!T44 -> 41.8767003 | M9: UIOSI pro CI | N9: =SUM(Calculations!W65:W70) -> 0 | O9: =SUM(Calculations!X65:X70) -> 398 | P9: =SUM(Calculations!Y65:Y70) -> 0 | Q9: =SUM(Calculations!Z65:Z70) -> 0 | R9: =SUM(Calculations!AA65:AA70) -> 1418.25 | S9: =SUM(Calculations!AB65:AB70) -> 0 | T9: =SUM(Calculations!AC65:AC70) -> 0 | U9: =SUM(Calculations!AD65:AD70) -> 225.25 | V9: =SUM(Calculations!AE65:AE70) -> 0
A10: UIOSI pro CI | C10: =SUM(Calculations!L65:L71) -> 0 | D10: =SUM(Calculations!M65:M71) -> 749 | E10: =SUM(Calculations!N65:N71) -> 0 | F10: =SUM(Calculations!O65:O71) -> 0 | G10: =SUM(Calculations!P65:P71) -> 2021 | H10: =SUM(Calculations!Q65:Q71) -> 0 | I10: =SUM(Calculations!R65:R71) -> 0 | J10: =SUM(Calculations!S65:S71) -> 450.5 | K10: =SUM(Calculations!T65:T71) -> 0 | M10: Positive sum | N10: =SUMIF(N3:N8,">0") -> 16116.05765 | O10: =SUMIF(O3:O8,">0") -> 16116.05779 | P10: 5665.466492 | Q10: 2109.092123 | R10: 16116.05724 | S10: 12028.01766 | T10: 3361.263379 | U10: 19411.7041 | V10: 2109.092133
A11: Positive sum | C11: =SUMIF(C3:C9,">0") -> 16116.05765 | D11: =SUMIF(D3:D9,">0") -> 16116.05779 | E11: 5665.466492 | F11: 2109.092123 | G11: 16116.05724 | H11: 12028.01766 | I11: 3361.263379 | J11: 19411.7041 | K11: 2109.092133
A13: Socialization | C13: 11 | D13: 22 | E13: 33 | F13: 44 | G13: 55 | H13: 66 | I13: 77 | J13: 88 | K13: 00 | M13: Socialization | N13: 11 | O13: 22 | P13: 33 | Q13: 44 | R13: 55 | S13: 66 | T13: 77 | U13: 88 | V13: 00
A14: a | B14: b | C14: =Calculations!L$74*'AAF + CP'!D14 -> 0 | D14: =Calculations!M$74*'AAF + CP'!E14 -> 100.0054507 | E14: =Calculations!N$74*'AAF + CP'!F14 -> 0 | F14: =Calculations!O$74*'AAF + CP'!G14 -> 0 | G14: =Calculations!P$74*'AAF + CP'!H14 -> 269.8411425 | H14: =Calculations!Q$74*'AAF + CP'!I14 -> 0 | I14: =Calculations!R$74*'AAF + CP'!J14 -> 0 | J14: =Calculations!S$74*'AAF + CP'!K14 -> 68.15323611 | K14: =Calculations!T$74*'AAF + CP'!L14 -> 0 | M14: A | N14: =N$9/N$10*N3 -> 0 | O14: =O$9/O$10*O3 -> 65.87036303 | P14: 0 | Q14: 0 | R14: 234.7252328 | S14: 0 | T14: 0 | U14: 4.031615711 | V14: 0
A15: a | B15: c | C15: =Calculations!L$74*'AAF + CP'!D15 -> 0 | D15: =Calculations!M$74*'AAF + CP'!E15 -> 106.1779788 | E15: =Calculations!N$74*'AAF + CP'!F15 -> 0 | F15: =Calculations!O$74*'AAF + CP'!G15 -> 0 | G15: =Calculations!P$74*'AAF + CP'!H15 -> 286.4962594 | H15: =Calculations!Q$74*'AAF + CP'!I15 -> 0 | I15: =Calculations!R$74*'AAF + CP'!J15 -> 0 | J15: =Calculations!S$74*'AAF + CP'!K15 -> 10.17284732 | K15: =Calculations!T$74*'AAF + CP'!L15 -> 0 | M15: B | N15: =N$9/N$10*N4 -> 0 | O15: 91.13283588 | P15: 0 | Q15: 0 | R15: 324.7465865 | S15: 0 | T15: 0 | U15: 10.48768715 | V15: 0
A16: b | B16: c | C16: =Calculations!L$74*'AAF + CP'!D16 -> 0 | D16: =Calculations!M$74*'AAF + CP'!E16 -> 85.62017951 | E16: =Calculations!N$74*'AAF + CP'!F16 -> 0 | F16: =Calculations!O$74*'AAF + CP'!G16 -> 0 | G16: =Calculations!P$74*'AAF + CP'!H16 -> 231.0258855 | H16: =Calculations!Q$74*'AAF + CP'!I16 -> 0 | I16: =Calculations!R$74*'AAF + CP'!J16 -> 0 | J16: =Calculations!S$74*'AAF + CP'!K16 -> 115.2502889 | K16: =Calculations!T$74*'AAF + CP'!L16 -> 0 | M16: C | N16: =N$9/N$10*N5 -> 0 | O16: 88.72474891 | P16: 0 | Q16: 0 | R16: 316.1655258 | S16: 0 | T16: 0 | U16: 41.14542549 | V16: 0
A17: b | B17: d | C17: =Calculations!L$74*'AAF + CP'!D17 -> 0 | D17: =Calculations!M$74*'AAF + CP'!E17 -> 134.7053644 | E17: =Calculations!N$74*'AAF + CP'!F17 -> 0 | F17: =Calculations!O$74*'AAF + CP'!G17 -> 0 | G17: =Calculations!P$74*'AAF + CP'!H17 -> 363.4706674 | H17: =Calculations!Q$74*'AAF + CP'!I17 -> 0 | I17: =Calculations!R$74*'AAF + CP'!J17 -> 0 | J17: =Calculations!S$74*'AAF + CP'!K17 -> 16.11797328 | K17: =Calculations!T$74*'AAF + CP'!L17 -> 0 | M17: D | N17: =N$9/N$10*N6 -> 0 | O17: 49.3148755 | P17: 0 | Q17: 0 | R17: 175.7307004 | S17: 0 | T17: 0 | U17: 29.87018905 | V17: 0
A18: c | B18: e | C18: =Calculations!L$74*'AAF + CP'!D18 -> 0 | D18: =Calculations!M$74*'AAF + CP'!E18 -> 160.6355409 | E18: =Calculations!N$74*'AAF + CP'!F18 -> 0 | F18: =Calculations!O$74*'AAF + CP'!G18 -> 0 | G18: =Calculations!P$74*'AAF + CP'!H18 -> 433.4371751 | H18: =Calculations!Q$74*'AAF + CP'!I18 -> 0 | I18: =Calculations!R$74*'AAF + CP'!J18 -> 0 | J18: =Calculations!S$74*'AAF + CP'!K18 -> 101.8966847 | K18: =Calculations!T$74*'AAF + CP'!L18 -> 0 | M18: E | N18: =N$9/N$10*N7 -> 0 | O18: 77.97358974 | P18: 0 | Q18: 0 | R18: 277.8543875 | S18: 0 | T18: 0 | U18: 102.0780202 | V18: 0
A19: d | B19: e | C19: =Calculations!L$74*'AAF + CP'!D19 -> 0 | D19: =Calculations!M$74*'AAF + CP'!E19 -> 19.87410975 | E19: =Calculations!N$74*'AAF + CP'!F19 -> 0 | F19: =Calculations!O$74*'AAF + CP'!G19 -> 0 | G19: =Calculations!P$74*'AAF + CP'!H19 -> 53.62558857 | H19: =Calculations!Q$74*'AAF + CP'!I19 -> 0 | I19: =Calculations!R$74*'AAF + CP'!J19 -> 0 | J19: =Calculations!S$74*'AAF + CP'!K19 -> 69.09924854 | K19: =Calculations!T$74*'AAF + CP'!L19 -> 0 | M19: F | N19: =N$9/N$10*N8 -> 0 | O19: 24.98358693 | P19: 0 | Q19: 0 | R19: 89.027567 | S19: 0 | T19: 0 | U19: 37.63706237 | V19: 0
A20: e | B20: f | C20: =Calculations!L$74*'AAF + CP'!D20 -> 0 | D20: =Calculations!M$74*'AAF + CP'!E20 -> 141.981376 | E20: =Calculations!N$74*'AAF + CP'!F20 -> 0 | F20: =Calculations!O$74*'AAF + CP'!G20 -> 0 | G20: =Calculations!P$74*'AAF + CP'!H20 -> 383.1032814 | H20: =Calculations!Q$74*'AAF + CP'!I20 -> 0 | I20: =Calculations!R$74*'AAF + CP'!J20 -> 0 | J20: =Calculations!S$74*'AAF + CP'!K20 -> 69.8097211 | K20: =Calculations!T$74*'AAF + CP'!L20 -> 0
A22: UIOSI (soc) | C22: 11 | D22: 22 | E22: 33 | F22: 44 | G22: 55 | H22: 66 | I22: 77 | J22: 88 | K22: 00 | M22: UIOSI (soc) | N22: 11 | O22: 22 | P22: 33 | Q22: 44 | R22: 55 | S22: 66 | T22: 77 | U22: 88 | V22: 00
A23: a | B23: b | C23: =C14+Calculations!L56 -> 101.2 | D23: =D14+Calculations!M56 -> 100.0054507 | E23: =E14+Calculations!N56 -> 0 | F23: =F14+Calculations!O56 -> 0 | G23: =G14+Calculations!P56 -> 1649.841143 | H23: =H14+Calculations!Q56 -> 29.4 | I23: =I14+Calculations!R56 -> 234 | J23: =J14+Calculations!S56 -> 262.1532361 | K23: =K14+Calculations!T56 -> 15.6 | M23: A | N23: =N14+Calculations!W56 -> 50.6 | O23: =O14+Calculations!X56 -> 276.370363 | P23: =P14+Calculations!Y56 -> 40 | Q23: =Q14+Calculations!Z56 -> 100 | R23: =R14+Calculations!AA56 -> 1524.225233 | S23: =S14+Calculations!AB56 -> 86.7 | T23: =T14+Calculations!AC56 -> 226.5 | U23: =U14+Calculations!AD56 -> 104.5316157 | V23: =V14+Calculations!AE56 -> 25.3
A24: a | B24: c | C24: =C15+Calculations!L57 -> 0 | D24: =D15+Calculations!M57 -> 527.1779788 | E24: =E15+Calculations!N57 -> 80 | F24: =F15+Calculations!O57 -> 200 | G24: =G15+Calculations!P57 -> 1361.496259 | H24: =H15+Calculations!Q57 -> 144 | I24: =I15+Calculations!R57 -> 219 | J24: =J15+Calculations!S57 -> 17.17284732 | K24: =K15+Calculations!T57 -> 35 | M24: B | N24: =N15+Calculations!W57 -> 50.6 | O24: =O15+Calculations!X57 -> 292.1328359 | P24: =P15+Calculations!Y57 -> 68 | Q24: =Q15+Calculations!Z57 -> 115.5 | R24: =R15+Calculations!AA57 -> 1370.746587 | S24: =S15+Calculations!AB57 -> 154.2 | T24: =T15+Calculations!AC57 -> 122 | U24: =U15+Calculations!AD57 -> 255.9876871 | V24: =V15+Calculations!AE57 -> 105.7
A25: b | B25: c | C25: =C16+Calculations!L58 -> 0 | D25: =D16+Calculations!M58 -> 85.62017951 | E25: =E16+Calculations!N58 -> 136 | F25: =F16+Calculations!O58 -> 231 | G25: =G16+Calculations!P58 -> 711.0258855 | H25: =H16+Calculations!Q58 -> 275 | I25: =I16+Calculations!R58 -> 0 | J25: =J16+Calculations!S58 -> 304.2502889 | K25: =K16+Calculations!T58 -> 77 | M25: C | N25: =N16+Calculations!W58 -> 543.65 | O25: =O16+Calculations!X58 -> 299.2247489 | P25: =P16+Calculations!Y58 -> 108 | Q25: =Q16+Calculations!Z58 -> 215.5 | R25: =R16+Calculations!AA58 -> 1968.665526 | S25: =S16+Calculations!AB58 -> 943.75 | T25: =T16+Calculations!AC58 -> 109.5 | U25: =U16+Calculations!AD58 -> 1112.645425 | V25: =V16+Calculations!AE58 -> 138.5
A26: b | B26: d | C26: =C17+Calculations!L59 -> 0 | D26: =D17+Calculations!M59 -> 536.7053644 | E26: =E17+Calculations!N59 -> 0 | F26: =F17+Calculations!O59 -> 0 | G26: =G17+Calculations!P59 -> 471.4706674 | H26: =H17+Calculations!Q59 -> 4 | I26: =I17+Calculations!R59 -> 10 | J26: =J17+Calculations!S59 -> 124.1179733 | K26: =K17+Calculations!T59 -> 118.8 | M26: D | N26: =N17+Calculations!W59 -> 37.95 | O26: =O17+Calculations!X59 -> 650.8148755 | P26: =P17+Calculations!Y59 -> 50 | Q26: =Q17+Calculations!Z59 -> 0 | R26: =R17+Calculations!AA59 -> 614.7307004 | S26: =S17+Calculations!AB59 -> 221.45 | T26: =T17+Calculations!AC59 -> 62.5 | U26: =U17+Calculations!AD59 -> 499.970189 | V26: =V17+Calculations!AE59 -> 87.9
A27: c | B27: e | C27: =C18+Calculations!L60 -> 1087.3 | D27: =D18+Calculations!M60 -> 160.6355409 | E27: =E18+Calculations!N60 -> 0 | F27: =F18+Calculations!O60 -> 0 | G27: =G18+Calculations!P60 -> 1885.937175 | H27: =H18+Calculations!Q60 -> 1468.5 | I27: =I18+Calculations!R60 -> 0 | J27: =J18+Calculations!S60 -> 2048.896685 | K27: =K18+Calculations!T60 -> 165 | M27: E | N27: =N18+Calculations!W60 -> 581.6 | O27: =O18+Calculations!X60 -> 127.4735897 | P27: =P18+Calculations!Y60 -> 50 | Q27: =Q18+Calculations!Z60 -> 0 | R27: =R18+Calculations!AA60 -> 1464.104388 | S27: =S18+Calculations!AB60 -> 1586.1 | T27: =T18+Calculations!AC60 -> 265.75 | U27: =U18+Calculations!AD60 -> 2435.17802 | V27: =V18+Calculations!AE60 -> 116.1
A28: d | B28: e | C28: =C19+Calculations!L61 -> 75.9 | D28: =D19+Calculations!M61 -> 118.8741098 | E28: =E19+Calculations!N61 -> 100 | F28: =F19+Calculations!O61 -> 0 | G28: =G19+Calculations!P61 -> 163.6255886 | H28: =H19+Calculations!Q61 -> 438.9 | I28: =I19+Calculations!R61 -> 115 | J28: =J19+Calculations!S61 -> 901.2992485 | K28: =K19+Calculations!T61 -> 57 | M28: F | N28: =N19+Calculations!W61 -> 0 | O28: =O19+Calculations!X61 -> 24.98358693 | P28: =P19+Calculations!Y61 -> 0 | Q28: =Q19+Calculations!Z61 -> 0 | R28: =R19+Calculations!AA61 -> 494.027567 | S28: =S19+Calculations!AB61 -> 632.4 | T28: =T19+Calculations!AC61 -> 208.25 | U28: =U19+Calculations!AD61 -> 755.8870624 | V28: =V19+Calculations!AE61 -> 5.1
A29: e | B29: f | C29: =C20+Calculations!L62 -> 0 | D29: =D20+Calculations!M62 -> 141.981376 | E29: =E20+Calculations!N62 -> 0 | F29: =F20+Calculations!O62 -> 0 | G29: =G20+Calculations!P62 -> 1193.103281 | H29: =H20+Calculations!Q62 -> 1264.8 | I29: =I20+Calculations!R62 -> 416.5 | J29: =J20+Calculations!S62 -> 1506.309721 | K29: =K20+Calculations!T62 -> 10.2
A31: Negative check NNLT + LT | C31: 11 | D31: 22 | E31: 33 | F31: 44 | G31: 55 | H31: 66 | I31: 77 | J31: 88 | K31: 00 | M31: Negative check | N31: 11 | O31: 22 | P31: 33 | Q31: 44 | R31: 55 | S31: 66 | T31: 77 | U31: 88 | V31: 00
A32: a | B32: b | C32: =Calculations!L38-C23+Calculations!L29 -> 2922.387878 | D32: =Calculations!M38-D23+Calculations!M29 -> 2813.582514 | E32: =Calculations!N38-E23+Calculations!N29 -> 1308.975763 | F32: =Calculations!O38-F23+Calculations!O29 -> 11.93762168 | G32: =Calculations!P38-G23+Calculations!P29 -> 2767.746712 | H32: =Calculations!Q38-H23+Calculations!Q29 -> 1539.58837 | I32: =Calculations!R38-I23+Calculations!R29 -> 1279.92051 | J32: =Calculations!S38-J23+Calculations!S29 -> 1423.704349 | K32: =Calculations!T38-K23+Calculations!T29 -> 997.5376201 | M32: A | N32: =Calculations!W38-N23 -> 2616.662687 | O32: =Calculations!X38-O23 -> 2390.892393 | P32: =Calculations!Y38-P23 -> 620.1506945 | Q32: =Calculations!Z38-Q23 -> 84.05202502 | R32: =Calculations!AA38-R23 -> 1143.03744 | S32: =Calculations!AB38-S23 -> 163.111352 | T32: =Calculations!AC38-T23 -> 302.0435586 | U32: =Calculations!AD38-U23 -> 242.9069246 | V32: =Calculations!AE38-V23 -> 158.7520214
A33: a | B33: c | C33: =Calculations!L39-C24+Calculations!L30 -> 2420.937497 | D33: =Calculations!M39-D24+Calculations!M30 -> 2314.759569 | E33: =Calculations!N39-E24+Calculations!N30 -> 937.3256255 | F33: =Calculations!O39-F24+Calculations!O30 -> 1162.166428 | G33: =Calculations!P39-G24+Calculations!P30 -> 2134.441232 | H33: =Calculations!Q39-H24+Calculations!Q30 -> 905.834334 | I33: =Calculations!R39-I24+Calculations!R30 -> 587.9666068 | J33: =Calculations!S39-J24+Calculations!S30 -> 255.6466484 | K33: =Calculations!T39-K24+Calculations!T30 -> 583.7664226 | M33: B | N33: =Calculations!W39-N24 -> 3639.606052 | O33: =Calculations!X39-O24 -> 3398.073318 | P33: =Calculations!Y39-P24 -> 2310.656361 | Q33: =Calculations!Z39-Q24 -> 411.6978774 | R33: =Calculations!AA39-R24 -> 2319.459355 | S33: =Calculations!AB39-S24 -> 5.386987761 | T33: =Calculations!AC39-T24 -> 243.660496 | U33: =Calculations!AD39-U24 -> 647.8253189 | V33: =Calculations!AE39-V24 -> 421.4978841
A34: b | B34: c | C34: =Calculations!L40-C25+Calculations!L31 -> 542.2789671 | D34: =Calculations!M40-D25+Calculations!M31 -> 456.6587943 | E34: =Calculations!N40-E25+Calculations!N31 -> 2501.284581 | F34: =Calculations!O40-F25+Calculations!O31 -> 724.997282 | G34: =Calculations!P40-G25+Calculations!P31 -> 311.253085 | H34: =Calculations!Q40-H25+Calculations!Q31 -> 205.4109271 | I34: =Calculations!R40-I25+Calculations!R31 -> 280 | J34: =Calculations!S40-J25+Calculations!S31 -> 1017.75872 | K34: =Calculations!T40-K25+Calculations!T31 -> 868.9972994 | M34: C | N34: =Calculations!W40-N25 -> 3049.046482 | O34: =Calculations!X40-O25 -> 3293.471685 | P34: =Calculations!Y40-P25 -> 1227.619641 | Q34: =Calculations!Z40-Q25 -> 528.4602665 | R34: =Calculations!AA40-R25 -> 1624.030903 | S34: =Calculations!AB40-S25 -> 1488.585459 | T34: =Calculations!AC40-T25 -> 162.6833034 | U34: =Calculations!AD40-U25 -> 2433.205072 | V34: =Calculations!AE40-V25 -> 605.4602749
A35: b | B35: d | C35: =Calculations!L41-C26+Calculations!L32 -> 3924.545258 | D35: =Calculations!M41-D26+Calculations!M32 -> 3789.840005 | E35: =Calculations!N41-E26+Calculations!N32 -> 1101.052377 | F35: =Calculations!O41-F26+Calculations!O32 -> 376.4608511 | G35: =Calculations!P41-G26+Calculations!P32 -> 3561.07439 | H35: =Calculations!Q41-H26+Calculations!Q32 -> 397.9746785 | I35: =Calculations!R41-I26+Calculations!R32 -> 544.6004816 | J35: =Calculations!S41-J26+Calculations!S32 -> 292.8414447 | K35: =Calculations!T41-K26+Calculations!T32 -> 593.6608488 | M35: D | N35: =Calculations!W41-N26 -> 1958.937835 | O35: =Calculations!X41-O26 -> 1346.073022 | P35: =Calculations!Y41-P26 -> 537.3409044 | Q35: =Calculations!Z41-Q26 -> 283.6786344 | R35: =Calculations!AA41-R26 -> 1382.157031 | S35: =Calculations!AB41-S26 -> 1014.086035 | T35: =Calculations!AC41-T26 -> 48.97681081 | U35: =Calculations!AD41-U26 -> 2074.197496 | V35: =Calculations!AE41-V26 -> 195.7786313
A36: c | B36: e | C36: =Calculations!L42-C27+Calculations!L33 -> 4444.876501 | D36: =Calculations!M42-D27+Calculations!M33 -> 4061.540804 | E36: =Calculations!N42-E27+Calculations!N33 -> 312.6290749 | F36: =Calculations!O42-F27+Calculations!O33 -> 465.7568227 | G36: =Calculations!P42-G27+Calculations!P33 -> 4086.239219 | H36: =Calculations!Q42-H27+Calculations!Q33 -> 4992.925657 | I36: =Calculations!R42-I27+Calculations!R33 -> 2214 | J36: =Calculations!S42-J27+Calculations!S33 -> 6204.575805 | K36: =Calculations!T42-K27+Calculations!T33 -> 2514.756828 | M36: E | N36: =Calculations!W42-N27 -> 2575.754023 | O36: =Calculations!X42-O27 -> 3029.880375 | P36: =Calculations!Y42-P27 -> 398.4140725 | Q36: =Calculations!Z42-Q27 -> 349.2649702 | R36: =Calculations!AA42-R27 -> 1693.249544 | S36: =Calculations!AB42-S27 -> 4052.404674 | T36: =Calculations!AC42-T27 -> 777.0378902 | U36: =Calculations!AD42-U27 -> 6361.751274 | V36: =Calculations!AE42-V27 -> 233.1649709
A37: d | B37: e | C37: =Calculations!L43-C28+Calculations!L34 -> 524.6304111 | D37: =Calculations!M43-D28+Calculations!M34 -> 808.3563164 | E37: =Calculations!N43-E28+Calculations!N34 -> 303.6294322 | F37: =Calculations!O43-F28+Calculations!O34 -> 520.8964177 | G37: =Calculations!P43-G28+Calculations!P34 -> 675.6048178 | H37: =Calculations!Q43-H28+Calculations!Q34 -> 3164.097391 | I37: =Calculations!R43-I28+Calculations!R34 -> 1087.25314 | J37: =Calculations!S43-J28+Calculations!S34 -> 5363.976704 | K37: =Calculations!T43-K28+Calculations!T34 -> 1331.796414 | M37: F | N37: =Calculations!W43-N28 -> 1011.650567 | O37: =Calculations!X43-O28 -> 986.6669926 | P37: =Calculations!Y43-P28 -> 255.2848189 | Q37: =Calculations!Z43-Q28 -> 20.93835004 | R37: =Calculations!AA43-R28 -> 517.6229638 | S37: =Calculations!AB43-S28 -> 1679.84315 | T37: =Calculations!AC43-T28 -> 832.3613202 | U37: =Calculations!AD43-U28 -> 2487.618011 | V37: =Calculations!AE43-V28 -> 15.83835015
A38: e | B38: f | C38: =Calculations!L44-C29+Calculations!L35 -> 2023.301134 | D38: =Calculations!M44-D29+Calculations!M35 -> 1881.319783 | E38: =Calculations!N44-E29+Calculations!N35 -> 510.5696378 | F38: =Calculations!O44-F29+Calculations!O35 -> 41.87670008 | G38: =Calculations!P44-G29+Calculations!P35 -> 3350.19778 | H38: =Calculations!Q44-H29+Calculations!Q35 -> 4796.1863 | I38: =Calculations!R44-I29+Calculations!R35 -> 3101.22264 | J38: =Calculations!S44-J29+Calculations!S35 -> 6417.200426 | K38: =Calculations!T44-K29+Calculations!T35 -> 1468.1767
A40: NN Daily Income (UIOSI) | C40: 11 | D40: 22 | E40: 33 | F40: 44 | G40: 55 | H40: 66 | I40: 77 | J40: 88 | K40: 00 | M40: NN Daily Income (UIOSI) | N40: 11 | O40: 22 | P40: 33 | Q40: 44 | R40: 55 | S40: 66 | T40: 77 | U40: 88 | V40: 00
A41: a | B41: b | C41: =Calculations!L47 -> 52.52656801 | D41: =Calculations!M47 -> 404.2606201 | E41: =Calculations!N47 -> 119.2380945 | F41: =Calculations!O47 -> 5.157846185 | G41: =Calculations!P47 -> 2269.855548 | H41: =Calculations!Q47 -> 20.88648824 | I41: =Calculations!R47 -> 114.4721454 | J41: =Calculations!S47 -> 172.3096173 | K41: =Calculations!T47 -> 9.797122633 | M41: A | N41: =Calculations!W47 -> 41.21564985 | O41: =Calculations!X47 -> 277.9413717 | P41: =Calculations!Y47 -> 66.44623386 | Q41: =Calculations!Z47 -> 60.44816376 | R41: =Calculations!AA47 -> 1560.723429 | S41: =Calculations!AB47 -> 107.8134536 | T41: =Calculations!AC47 -> 156 | U41: =Calculations!AD47 -> 90.73932776 | V41: =Calculations!AE47 -> 12.54605721
A42: a | B42: c | C42: =Calculations!L48 -> 29.90473168 | D42: =Calculations!M48 -> 151.6221234 | E42: =Calculations!N48 -> 13.65437327 | F42: =Calculations!O48 -> 115.7384813 | G42: =Calculations!P48 -> 851.5913106 | H42: =Calculations!Q48 -> 194.7404189 | I42: =Calculations!R48 -> 197.5278546 | J42: =Calculations!S48 -> 9.169038274 | K42: =Calculations!T48 -> 15.29499178 | M42: B | N42: =Calculations!W48 -> 70.19828301 | O42: =Calculations!X48 -> 443.2595451 | P42: =Calculations!Y48 -> 136.0914745 | Q42: =Calculations!Z48 -> 127.5726118 | R42: =Calculations!AA48 -> 1996.288269 | S42: =Calculations!AB48 -> 112.74835 | T42: =Calculations!AC48 -> 95.88716903 | U42: =Calculations!AD48 -> 180.60206 | V42: =Calculations!AE48 -> 122.9730998
A43: b | B43: c | C43: =Calculations!L49 -> 22.51457135 | D43: =Calculations!M49 -> 60.41136384 | E43: =Calculations!N49 -> 106.2436405 | F43: =Calculations!O49 -> 216.9234152 | G43: =Calculations!P49 -> 347.6176282 | H43: =Calculations!Q49 -> 202.683361 | I43: =Calculations!R49 -> 0 | J43: =Calculations!S49 -> 126.4755177 | K43: =Calculations!T49 -> 137.6390573 | M43: C | N43: =Calculations!W49 -> 543.139307 | O43: =Calculations!X49 -> 413.7270164 | P43: =Calculations!Y49 -> 65.13803069 | Q43: =Calculations!Z49 -> 181.360022 | R43: =Calculations!AA49 -> 1452.563279 | S43: =Calculations!AB49 -> 1063.959034 | T43: =Calculations!AC49 -> 98.76392729 | U43: =Calculations!AD49 -> 772.3942902 | V43: =Calculations!AE49 -> 147.9227129
A44: b | B44: d | C44: =Calculations!L50 -> 65.35542664 | D44: =Calculations!M50 -> 421.8471063 | E44: =Calculations!N50 -> 46.70121411 | F44: =Calculations!O50 -> 33.06396227 | G44: =Calculations!P50 -> 1375.103363 | H44: =Calculations!Q50 -> 1.926850751 | I44: =Calculations!R50 -> 77.30219264 | J44: =Calculations!S50 -> 62.41898512 | K44: =Calculations!T50 -> 98.51001966 | M44: D | N44: =Calculations!W50 -> 62.79740903 | O44: =Calculations!X50 -> 219.6426736 | P44: =Calculations!Y50 -> 33.24292209 | Q44: =Calculations!Z50 -> 31.5610549 | R44: =Calculations!AA50 -> 725.7589476 | S44: =Calculations!AB50 -> 106.1700945 | T44: =Calculations!AC50 -> 45 | U44: =Calculations!AD50 -> 780.0509012 | V44: =Calculations!AE50 -> 81.70469506
A45: c | B45: e | C45: =Calculations!L51 -> 1033.859311 | D45: =Calculations!M51 -> 615.4205454 | E45: =Calculations!N51 -> 10.37804758 | F45: =Calculations!O51 -> 30.05814752 | G45: =Calculations!P51 -> 1705.917618 | H45: =Calculations!Q51 -> 1730.494287 | I45: =Calculations!R51 -> 0 | J45: =Calculations!S51 -> 1409.144024 | K45: =Calculations!T51 -> 142.9113768 | M45: E | N45: =Calculations!W51 -> 547.0493512 | O45: =Calculations!X51 -> 316.4293932 | P45: =Calculations!Y51 -> 15.08133882 | Q45: =Calculations!Z51 -> 30.05814752 | R45: =Calculations!AA51 -> 1296.166075 | S45: =Calculations!AB51 -> 1602.181441 | T45: =Calculations!AC51 -> 288.0989037 | U45: =Calculations!AD51 -> 2396.913421 | V45: =Calculations!AE51 -> 108.6794043
A46: d | B46: e | C46: =Calculations!L52 -> 60.23939141 | D46: =Calculations!M52 -> 17.43824097 | E46: =Calculations!N52 -> 19.78463006 | F46: =Calculations!O52 -> 30.05814752 | G46: =Calculations!P52 -> 76.4145325 | H46: =Calculations!Q52 -> 210.4133383 | I46: =Calculations!R52 -> 12.69780736 | J46: =Calculations!S52 -> 1497.682817 | K46: =Calculations!T52 -> 64.89937047 | M46: F | N46: =Calculations!W52 -> 1.082253939e-11 | O46: =Calculations!X52 -> 6.842526545e-11 | P46: =Calculations!Y52 -> 1.153527985e-11 | Q46: =Calculations!Z52 -> 5.230976897e-13 | R46: =Calculations!AA52 -> 405 | S46: =Calculations!AB52 -> 631.7276276 | T46: =Calculations!AC52 -> 281.75 | U46: =Calculations!AD52 -> 943.5 | V46: =Calculations!AE52 -> 4.774030681
A47: e | B47: f | C47: =Calculations!L53 -> 2.164507879e-11 | D47: =Calculations!M53 -> 1.368505309e-10 | E47: =Calculations!N53 -> 2.30705597e-11 | F47: =Calculations!O53 -> 1.046195379e-12 | G47: =Calculations!P53 -> 810 | H47: =Calculations!Q53 -> 1263.455255 | I47: =Calculations!R53 -> 563.5 | J47: =Calculations!S53 -> 1887 | K47: =Calculations!T53 -> 9.548061362
A49: korelace finálních UIOSI plateb se simulovanými UIOSI | C49: =CORREL(C23:C29,C41:C47) -> 0.9959507777 | D49: =CORREL(D23:D29,D41:D47) -> 0.1850082752 | E49: 0.1907879706 | F49: 0.9416099344 | G49: 0.7153508276 | H49: 0.9830933666 | I49: 0.8954272863 | J49: 0.876878671 | K49: 0.8752608138 | N49: =CORREL(N41:N46,N23:N28) -> 0.9980372828 | O49: =CORREL(O41:O46,O23:O28) -> 0.2822039576 | P49: 0.5482876273 | Q49: 0.9516646986 | R49: 0.7864760546 | S49: 0.994006516 | T49: 0.8870957597 | U49: 0.9667845397 | V49: 0.9854961368
A51: korelace pouze socializovaných UIOSI plateb se simulovanými UIOSI | C51: =CORREL(C14:C20,C41:C47) ->  | D51: =CORREL(D14:D20,D41:D47) -> 0.5794523361 | G51: 0.5922676379 | J51: 0.381024429 | N51: =CORREL(N41:N46,N14:N19) ->  | O51: =CORREL(O41:O46,O14:O19) -> 0.9843329619 | R51: 0.9092556055 | U51: 0.9928510339
B55: UIOSI (soc) | C55: 11 | D55: 22 | E55: 33 | F55: 44 | G55: 55 | H55: 66 | I55: 77 | J55: 88 | K55: 00
B56: A | C56: =(C23+C24)/2 -> 50.6 | D56: =(D23+D24)/2 -> 313.5917147 | E56: 40 | F56: 100 | G56: 1505.668701 | H56: 86.7 | I56: 226.5 | J56: 139.6630417 | K56: 25.3
B57: B | C57: =(C23+C25+C26)/2 -> 50.6 | D57: =(D23+D25+D26)/2 -> 361.1654973 | E57: 68 | F57: 115.5 | G57: 1416.168848 | H57: 154.2 | I57: 122 | J57: 345.2607492 | K57: 105.7
B58: C | C58: =(C24+C25+C27)/2 -> 543.65 | D58: =(D24+D25+D27)/2 -> 386.7168496 | E58: 108 | F58: 215.5 | G58: 1979.22966 | H58: 943.75 | I58: 109.5 | J58: 1185.15991 | K58: 138.5
B59: D | C59: =(C26+C28)/2 -> 37.95 | D59: =(D26+D28)/2 -> 327.7897371 | E59: 50 | F59: 0 | G59: 317.548128 | H59: 221.45 | I59: 62.5 | J59: 512.7086109 | K59: 87.9
B60: E | C60: =(C27+C28+C29)/2 -> 581.6 | D60: =(D27+D28+D29)/2 -> 210.7455133 | E60: 50 | F60: 0 | G60: 1621.333023 | H60: 1586.1 | I60: 265.75 | J60: 2228.252827 | K60: 116.1
B61: F | C61: =C29/2 -> 0 | D61: =D29/2 -> 70.99068798 | E61: 0 | F61: 0 | G61: 596.5516407 | H61: 632.4 | I61: 208.25 | J61: 753.1548605 | K61: 5.1

Sheet Daily Optimization
A1: Net Position | I1: price | L1: From | M1: To | N1: Spread | O1: Welfare | P1: Intuitive Check
B2: zone A | C2: zone B | D2: zone C | E2: zone D | F2: zone E | G2: zone F | I2: zone A | J2: ='external data'!B12 -> 41 | L2: a | M2: b | N2: =J3-J2 -> -9.2 | O2: =N2*I12 -> 3456.767165 | P2: =IF(OR(N2=0,I12=0),1,IF(OR(AND(N2<0,I12<0),(AND(N2>0,I12>0))),1,0)) -> 1 | Q2: =IF(N2<=0,-100000,0) -> -100000 | R2: =IF(N2<0,0,100000) -> 0
A3: LTN Inclusion | B3: =Calculations!E16 -> -21 | C3: =Calculations!F16 -> -38 | D3: =Calculations!G16 -> 208 | E3: =Calculations!H16 -> -128 | F3: =Calculations!I16 -> 24 | G3: =Calculations!J16 -> -45 | I3: zone B | J3: ='external data'!B13 -> 31.8 | L3: a | M3: c | N3: =J4-J2 -> -7.2 | O3: =N3*I13 -> 0 | P3: =IF(OR(N3=0,I13=0),1,IF(OR(AND(N3<0,I13<0),(AND(N3>0,I13>0))),1,0)) -> 1 | Q3: =IF(N3<=0,-100000,0) -> -100000 | R3: =IF(N3<0,0,100000) -> 0
I4: zone C | J4: ='external data'!B14 -> 33.8 | L4: b | M4: c | N4: =J4-J3 -> 2 | O4: 1771.285195 | P4: 1 | Q4: 0 | R4: 100000
B5: MAX load | C5: Abs Final AAF | D5: Final AAF | I5: zone D | J5: ='external data'!B15 -> 41 | L5: b | M5: d | N5: =J5-J3 -> 9.2 | O5: -1957.449388 | P5: 0 | Q5: 0 | R5: 100000
A6: G | B6: =Calculations!F20 -> 220 | C6: =ABS(SUMPRODUCT(PTDF!$B3:$G3,$B$25:$G$25)) -> 125.2082771 | D6: =SUMPRODUCT(PTDF!$B3:$G3,$B$25:$G$25) -> 125.2082771 | I6: zone E | J6: ='external data'!B16 -> 42.1 | L6: c | M6: e | N6: =J6-J4 -> 8.3 | O6: 5490.711428 | P6: 1 | Q6: 0 | R6: 100000
A7: H | B7: =Calculations!F21 -> 220 | C7: =ABS(SUMPRODUCT(PTDF!$B4:$G4,$B$25:$G$25)) -> 220.0000009 | D7: =SUMPRODUCT(PTDF!$B4:$G4,$B$25:$G$25) -> 220.0000009 | I7: zone F | J7: ='external data'!B17 -> 37.6 | L7: d | M7: e | N7: =J6-J5 -> 1.1 | O7: 201.9526922 | P7: 1 | Q7: 0 | R7: 100000
A8: I | B8: =Calculations!F22 -> 280 | C8: =ABS(SUMPRODUCT(PTDF!$B5:$G5,$B$25:$G$25)) -> 164.3522494 | D8: =SUMPRODUCT(PTDF!$B5:$G5,$B$25:$G$25) -> 164.3522494 | L8: e | M8: f | N8: =J7-J6 -> -4.5 | O8: 1793.694013 | P8: 1 | Q8: -100000 | R8: 0
A9: L | B9: =Calculations!F23 -> 280 | C9: =ABS(SUMPRODUCT(PTDF!$B6:$G6,$B$25:$G$25)) -> 23.33401517 | D9: =SUMPRODUCT(PTDF!$B6:$G6,$B$25:$G$25) -> 23.33401517 | O9: =SUM(O2:O8) -> 10756.9611
A10: M | B10: =Calculations!F24 -> 280 | C10: =ABS(SUMPRODUCT(PTDF!$B7:$G7,$B$25:$G$25)) -> 105.7201871 | D10: =SUMPRODUCT(PTDF!$B7:$G7,$B$25:$G$25) -> 105.7201871
A11: O | B11: =Calculations!F25 -> 280 | C11: =ABS(SUMPRODUCT(PTDF!$B8:$G8,$B$25:$G$25)) -> 24.07978198 | D11: =SUMPRODUCT(PTDF!$B8:$G8,$B$25:$G$25) -> -24.07978198 | G11: From | H11: To | I11: Daily com.flow
A12: P | B12: =Calculations!F26 -> 220 | C12: =ABS(SUMPRODUCT(PTDF!$B9:$G9,$B$25:$G$25)) -> 219.999999 | D12: =SUMPRODUCT(PTDF!$B9:$G9,$B$25:$G$25) -> 219.999999 | G12: a | H12: b | I12: -375.7355614
A13: Q | B13: =Calculations!F27 -> 280 | C13: =ABS(SUMPRODUCT(PTDF!$B10:$G10,$B$25:$G$25)) -> 236.1248536 | D13: =SUMPRODUCT(PTDF!$B10:$G10,$B$25:$G$25) -> 236.1248536 | G13: a | H13: c | I13: 0
A14: R | B14: =Calculations!F28 -> 310 | C14: =ABS(SUMPRODUCT(PTDF!$B11:$G11,$B$25:$G$25)) -> 199.4109895 | D14: =SUMPRODUCT(PTDF!$B11:$G11,$B$25:$G$25) -> 199.4109895 | G14: b | H14: c | I14: 885.6425975
A15: U | B15: =Calculations!F29 -> 280 | C15: =ABS(SUMPRODUCT(PTDF!$B12:$G12,$B$25:$G$25)) -> 280.0000009 | D15: =SUMPRODUCT(PTDF!$B12:$G12,$B$25:$G$25) -> 280.0000009 | G15: b | H15: d | I15: -212.7662378
A16: X | B16: =Calculations!F30 -> 220 | C16: =ABS(SUMPRODUCT(PTDF!$B13:$G13,$B$25:$G$25)) -> 28.19326816 | D16: =SUMPRODUCT(PTDF!$B13:$G13,$B$25:$G$25) -> 28.19326816 | G16: c | H16: e | I16: 661.5314974
A17: AJ | B17: =Calculations!F31 -> 350 | C17: =ABS(SUMPRODUCT(PTDF!$B14:$G14,$B$25:$G$25)) -> 349.9999995 | D17: =SUMPRODUCT(PTDF!$B14:$G14,$B$25:$G$25) -> -349.9999995 | G17: d | H17: e | I17: 183.5933566
A18: AO | B18: =Calculations!F32 -> 220 | C18: =ABS(SUMPRODUCT(PTDF!$B15:$G15,$B$25:$G$25)) -> 220 | D18: =SUMPRODUCT(PTDF!$B15:$G15,$B$25:$G$25) -> -220 | G18: e | H18: f | I18: -398.5986695
A19: AP | B19: =Calculations!F33 -> 310 | C19: =ABS(SUMPRODUCT(PTDF!$B16:$G16,$B$25:$G$25)) -> 133.5986695 | D19: =SUMPRODUCT(PTDF!$B16:$G16,$B$25:$G$25) -> -133.5986695
A22: Net Position [MW]
B23: zone A | C23: zone B | D23: zone C | E23: zone D | F23: zone E | G23: zone F
A24: LTN Inclusion | B24: =B3 -> -21 | C24: =C3 -> -38 | D24: 208 | E24: -128 | F24: 24 | G24: -45
A25: Daily Inclusion | B25: =B24+I12+I13 -> -396.7355614 | C25: =C24+I14+I15-I12 -> 1010.611921 | D25: =D24+I16-I14-I13 -> -16.11110011 | E25: =+E24+I17-I15 -> 268.3595944 | F25: =+F24-I16-I17+I18 -> -1219.723523 | G25: =+G24-I18 -> 353.5986695 | I25: Přepis do zones
A27: Daily Inclusion
A28: balance
A29: zone A | B29: =B25 -> -396.7355614
A30: zone B | B30: =C25 -> 1010.611921
A31: zone C | B31: =D25 -> -16.11110011
A32: zone D | B32: =E25 -> 268.3595944
A33: zone E | B33: =F25 -> -1219.723523
A34: zone F | B34: =G25 -> 353.5986695

Sheet test 1
C1: LTA | E1: LT prize | G1: LTN | I1: LT CI | K1: LT Flow | L1: LTA-LTN | N1: DA Spread | P1: Resale costs | R1: LT CI resaleC
C2: -> | D2: <- | E2: -> | F2: <- | G2: -> | H2: <- | I2: -> | J2: <- | K2: -> | L2: -> | M2: <- | N2: -> | O2: <- | P2: -> | Q2: <- | R2: -> | S2: <- | U2: price
A3: a | B3: b | C3: 0 | D3: 0 | E3: 0.2 | F3: 0.2 | G3: 0 | H3: 0 | I3: =C3*E3 -> 0 | J3: =D3*F3 -> 0 | K3: =G3-H3 -> 0 | L3: =C3-G3 -> 0 | M3: =D3-H3 -> 0 | N3: =V4-V3 -> -0.2 | O3: =-N3 -> 0.2 | P3: =L3*MAX(0,N3) -> 0 | Q3: =M3*MAX(0,O3) -> 0 | R3: =(C3-G3)*E3 -> 0 | S3: 0 | U3: zone A | V3: 35
A4: a | B4: c | C4: 0 | D4: 0 | E4: 0.6 | F4: 0.6 | G4: 0 | H4: 0 | I4: =C4*E4 -> 0 | J4: 0 | K4: =G4-H4 -> 0 | L4: =C4-G4 -> 0 | M4: 0 | N4: =V5-V3 -> -1.2 | O4: 1.2 | P4: =L4*MAX(0,N4) -> 0 | Q4: 0 | R4: 0 | S4: 0 | U4: zone B | V4: 34.8
A5: b | B5: c | C5: 0 | D5: 0 | E5: 2 | F5: 2 | G5: 0 | H5: 0 | I5: 0 | J5: 0 | K5: 0 | L5: 0 | M5: 0 | N5: =V5-V4 -> -1 | O5: =-N5 -> 1 | P5: 0 | Q5: 0 | R5: 0 | S5: 0 | U5: zone C | V5: 33.8
A6: b | B6: d | C6: 0 | D6: 0 | E6: 0.6 | F6: 0.6 | G6: 0 | H6: 0 | I6: 0 | J6: 0 | K6: 0 | L6: 0 | M6: 0 | N6: =V6-V4 -> 0.2 | O6: -0.2 | P6: 0 | Q6: 0 | R6: 0 | S6: 0 | U6: zone D | V6: 35
A7: c | B7: e | C7: 0 | D7: 0 | E7: 10 | F7: 10 | G7: 0 | H7: 0 | I7: 0 | J7: 0 | K7: 0 | L7: 0 | M7: 0 | N7: =V7-V5 -> 8.9 | O7: -8.9 | P7: 0 | Q7: 0 | R7: 0 | S7: 0 | U7: zone E | V7: 42.7
A8: d | B8: e | C8: 0 | D8: 0 | E8: 7.7 | F8: 7.7 | G8: 0 | H8: 0 | I8: 0 | J8: 0 | K8: 0 | L8: 0 | M8: 0 | N8: =V7-V6 -> 7.7 | O8: -7.7 | P8: 0 | Q8: 0 | R8: 0 | S8: 0 | U8: zone F | V8: 30.3
A9: e | B9: f | C9: 0 | D9: 1 | E9: 0.1 | F9: 0.1 | G9: 0 | H9: 1 | I9: 0 | J9: 0.1 | K9: -1 | L9: 0 | M9: 0 | N9: =V8-V7 -> -12.4 | O9: 12.4 | P9: 0 | Q9: 0 | R9: 0 | S9: 0
A11: Kdyby uplatnil své kapacitní právo získá LT * Spread | G11: = | H11: =H9*O9 -> 12.4 | I11: → | J11: UIOSI platba | L11: → | M11: =H11/2 -> 6.2 | N11: pro TSO E a F
C13: Net Position [MW] | K13: zone A | L13: 0 | O13: Cong. Inc. Celkem | Q13: =-SUMPRODUCT(L13:L18,V3:V8) -> 12.4
D14: zone A | E14: zone B | F14: zone C | G14: zone D | H14: zone E | I14: zone F | K14: zone B | L14: 0
C15: Base Case | D15: 0 | E15: 0 | F15: 0 | G15: 0 | H15: 0 | I15: 0 | K15: zone C | L15: 0
C16: LTN Inclusion | D16: =D15+K3+K4 -> 0 | E16: =E15+K5+K6-K3 -> 0 | F16: =F15+K7-K5-K4 -> 0 | G16: =+G15+K8-K6 -> 0 | H16: =+H15-K7-K8+K9 -> -1 | I16: =+I15-K9 -> 1 | K16: zone D | L16: 0
K17: zone E | L17: -1 | N17: start | O17: end | P17: type | Q17: test 1
K18: zone F | L18: 1 | N18: A | O18: B | P18: int | Q18: =ABS(E23*N3) -> 0.001719344904
N19: A | O19: C | P19: int | Q19: 0.01031606942
B20: AAF | G20: CB | H20: test 1 | N20: B | O20: C | P20: int | Q20: 0.0136490734
G21: G | H21: =SUMPRODUCT(PTDF!B3:G3,$D$16:$I$16) -> -0.003168541828 | N21: B | O21: D | P21: int | Q21: 0.004449159583
B22: start | C22: end | D22: type | E22: test 1 | G22: H | H22: =SUMPRODUCT(PTDF!B4:G4,$D$16:$I$16) -> -0.005428182693 | N22: C | O22: E | P22: int | Q22: 0.1979876014
B23: A | C23: B | D23: int | E23: =H21+H22 -> -0.008596724521 | G23: I | H23: =SUMPRODUCT(PTDF!B5:G5,$D$16:$I$16) -> -0.007361257115 | N23: D | O23: E | P23: int | Q23: 0.1712926439
B24: A | C24: C | D24: int | E24: =H31+H24 -> 0.008596724521 | G24: L | H24: =SUMPRODUCT(PTDF!B6:G6,$D$16:$I$16) -> 0.003232133833 | N24: E | O24: F | P24: int | Q24: 12.4
B25: B | C25: C | D25: int | E25: =H23+H27+H29 -> -0.0136490734 | G25: M | H25: =SUMPRODUCT(PTDF!B7:G7,$D$16:$I$16) -> 0.01098168839 | N25: sum | Q25: =SUM(Q18:Q24) -> 12.79941389
B26: B | C26: D | D26: int | E26: =H25+H26 -> 0.02224579792 | G26: O | H26: =SUMPRODUCT(PTDF!B8:G8,$D$16:$I$16) -> 0.01126410953
B27: C | C27: E | D27: int | E27: =H28+H30 -> -0.02224579792 | G27: P | H27: =SUMPRODUCT(PTDF!B9:G9,$D$16:$I$16) -> 0.01339328034 | N27: start | O27: end | P27: type | Q27: test 1
B28: D | C28: E | D28: int | E28: =H32 -> -0.02224579792 | G28: Q | H28: =SUMPRODUCT(PTDF!B10:G10,$D$16:$I$16) -> 0.03180354077 | N28: A | O28: B | P28: int | Q28: =Q18/Q$25 -> 0.0001343299716
B29: E | C29: F | D29: int | E29: =H33+H34 -> -1 | G29: R | H29: =SUMPRODUCT(PTDF!B11:G11,$D$16:$I$16) -> -0.01968109662 | N29: A | O29: C | P29: int | Q29: =Q19/Q$25 -> 0.0008059798293
G30: U | H30: =SUMPRODUCT(PTDF!B12:G12,$D$16:$I$16) -> -0.05404933869 | N30: B | O30: C | P30: int | Q30: 0.001066382688
G31: X | H31: =SUMPRODUCT(PTDF!B13:G13,$D$16:$I$16) -> 0.005364590688 | N31: B | O31: D | P31: int | Q31: 0.0003476065092
G32: AJ | H32: =SUMPRODUCT(PTDF!B14:G14,$D$16:$I$16) -> -0.02224579792 | N32: C | O32: E | P32: int | Q32: 0.01546848966
G33: AO | H33: =SUMPRODUCT(PTDF!B15:G15,$D$16:$I$16) -> -0.4965487276 | N33: D | O33: E | P33: int | Q33: 0.0133828506
G34: AP | H34: =SUMPRODUCT(PTDF!B16:G16,$D$16:$I$16) -> -0.5034512724 | N34: E | O34: F | P34: int | Q34: 0.9687943607
N36: start | O36: end | P36: type | Q36: test 1
N37: A | O37: B | P37: int | Q37: =Q28*$Q$13 -> 0.001665691647
N38: A | O38: C | P38: int | Q38: =Q29*$Q$13 -> 0.009994149884
N39: B | O39: C | P39: int | Q39: 0.01322314533
N40: B | O40: D | P40: int | Q40: 0.004310320714
N41: C | O41: E | P41: int | Q41: 0.1918092718
N42: D | O42: E | P42: int | Q42: 0.1659473475
N43: E | O43: F | P43: int | Q43: 12.01305007
P46: zone | Q46: test 1
P47: A | Q47: =0.5*(Q37+Q38) -> 0.005829920765
P48: B | Q48: =0.5*(Q37+Q39+Q40) -> 0.009599578848
P49: C | Q49: =0.5*(Q38+Q39+Q41) -> 0.1075132835
P50: D | Q50: =0.5*(Q40+Q42) -> 0.0851288341
P51: E | Q51: =0.5*(Q41+Q42+Q43) -> 6.185403346
P52: F | Q52: =0.5*(Q43) -> 6.006525037

Sheet test 2
C1: LTA | E1: LT prize | G1: LTN | I1: LT CI | K1: LT Flow | L1: LTA-LTN | N1: DA Spread | P1: Resale costs | R1: LT CI resaleC
C2: -> | D2: <- | E2: -> | F2: <- | G2: -> | H2: <- | I2: -> | J2: <- | K2: -> | L2: -> | M2: <- | N2: -> | O2: <- | P2: -> | Q2: <- | R2: -> | S2: <- | U2: price
A3: a | B3: b | C3: 0 | D3: 0 | E3: 0.2 | F3: 0.2 | G3: 0 | H3: 0 | I3: =C3*E3 -> 0 | J3: =D3*F3 -> 0 | K3: =G3-H3 -> 0 | L3: =C3-G3 -> 0 | M3: =D3-H3 -> 0 | N3: =V4-V3 -> -0.2 | O3: =-N3 -> 0.2 | P3: =L3*MAX(0,N3) -> 0 | Q3: =M3*MAX(0,O3) -> 0 | R3: =(C3-G3)*E3 -> 0 | S3: 0 | U3: zone A | V3: 35
A4: a | B4: c | C4: 0 | D4: 10 | E4: 0.6 | F4: 0.6 | G4: 0 | H4: 10 | I4: =C4*E4 -> 0 | J4: 6 | K4: =G4-H4 -> -10 | L4: =C4-G4 -> 0 | M4: 0 | N4: =V5-V3 -> -1.2 | O4: 1.2 | P4: =L4*MAX(0,N4) -> 0 | Q4: 0 | R4: 0 | S4: 0 | U4: zone B | V4: 34.8
A5: b | B5: c | C5: 0 | D5: 0 | E5: 2 | F5: 2 | G5: 0 | H5: 0 | I5: 0 | J5: 0 | K5: 0 | L5: 0 | M5: 0 | N5: =V5-V4 -> -1 | O5: =-N5 -> 1 | P5: 0 | Q5: 0 | R5: 0 | S5: 0 | U5: zone C | V5: 33.8
A6: b | B6: d | C6: 0 | D6: 0 | E6: 0.6 | F6: 0.6 | G6: 0 | H6: 0 | I6: 0 | J6: 0 | K6: 0 | L6: 0 | M6: 0 | N6: =V6-V4 -> 0.2 | O6: -0.2 | P6: 0 | Q6: 0 | R6: 0 | S6: 0 | U6: zone D | V6: 35
A7: c | B7: e | C7: 0 | D7: 0 | E7: 10 | F7: 10 | G7: 0 | H7: 0 | I7: 0 | J7: 0 | K7: 0 | L7: 0 | M7: 0 | N7: =V7-V5 -> 8.9 | O7: -8.9 | P7: 0 | Q7: 0 | R7: 0 | S7: 0 | U7: zone E | V7: 42.7
A8: d | B8: e | C8: 0 | D8: 0 | E8: 7.7 | F8: 7.7 | G8: 0 | H8: 0 | I8: 0 | J8: 0 | K8: 0 | L8: 0 | M8: 0 | N8: =V7-V6 -> 7.7 | O8: -7.7 | P8: 0 | Q8: 0 | R8: 0 | S8: 0 | U8: zone F | V8: 30.3
A9: e | B9: f | C9: 0 | D9: 0 | E9: 0.1 | F9: 0.1 | G9: 0 | H9: 0 | I9: 0 | J9: 0 | K9: 0 | L9: 0 | M9: 0 | N9: =V8-V7 -> -12.4 | O9: 12.4 | P9: 0 | Q9: 0 | R9: 0 | S9: 0
A11: Kdyby uplatnil své kapacitní právo získá LT * Spread | G11: = | H11: =H4*O4 -> 12 | I11: → | J11: UIOSI platba | L11: → | M11: =H11/2 -> 6 | N11: pro TSO A a C
C13: Net Position [MW] | K13: zone A | L13: =D16 -> -10 | O13: Cong. Inc. Celkem | Q13: =-SUMPRODUCT(L13:L18,V3:V8) -> 12
D14: zone A | E14: zone B | F14: zone C | G14: zone D | H14: zone E | I14: zone F | K14: zone B | L14: =E16 -> 0
C15: Base Case | D15: 0 | E15: 0 | F15: 0 | G15: 0 | H15: 0 | I15: 0 | K15: zone C | L15: =F16 -> 10
C16: LTN Inclusion | D16: =D15+K3+K4 -> -10 | E16: =E15+K5+K6-K3 -> 0 | F16: =F15+K7-K5-K4 -> 10 | G16: =+G15+K8-K6 -> 0 | H16: =+H15-K7-K8+K9 -> 0 | I16: =+I15-K9 -> 0 | K16: zone D | L16: =G16 -> 0
K17: zone E | L17: =H16 -> 0 | N17: start | O17: end | P17: type | Q17: test 2
K18: zone F | L18: =I16 -> 0 | N18: A | O18: B | P18: int | Q18: =ABS(E23*N3) -> 0.9581055683
N19: A | O19: C | P19: int | Q19: 6.25136659
B20: AAF | G20: CB | H20: test 2 | N20: B | O20: C | P20: int | Q20: 4.185374315
G21: G | H21: =SUMPRODUCT(PTDF!B3:G3,$D$16:$I$16) -> 1.714578402 | N21: B | O21: D | P21: int | Q21: 0.1210307053
B22: start | C22: end | D22: type | E22: test 2 | G22: H | H22: =SUMPRODUCT(PTDF!B4:G4,$D$16:$I$16) -> 3.07594944 | N22: C | O22: E | P22: int | Q22: 5.385866386
B23: A | C23: B | D23: int | E23: =H21+H22 -> 4.790527842 | G23: I | H23: =SUMPRODUCT(PTDF!B5:G5,$D$16:$I$16) -> -0.864324782 | N23: D | O23: E | P23: int | Q23: 4.659682154
B24: A | C24: C | D24: int | E24: =H31+H24 -> 5.209472158 | G24: L | H24: =SUMPRODUCT(PTDF!B6:G6,$D$16:$I$16) -> 2.058463279 | N24: E | O24: F | P24: int | Q24: 2.995648174e-11
B25: B | C25: C | D25: int | E25: =H23+H27+H29 -> -4.185374315 | G25: M | H25: =SUMPRODUCT(PTDF!B7:G7,$D$16:$I$16) -> -0.5162919139 | N25: sum | Q25: =SUM(Q18:Q24) -> 21.56142572
B26: B | C26: D | D26: int | E26: =H25+H26 -> -0.6051535265 | G26: O | H26: =SUMPRODUCT(PTDF!B8:G8,$D$16:$I$16) -> -0.08886161264
B27: C | C27: E | D27: int | E27: =H28+H30 -> 0.6051535265 | G27: P | H27: =SUMPRODUCT(PTDF!B9:G9,$D$16:$I$16) -> -2.088549746 | N27: start | O27: end | P27: type | Q27: test 2
B28: D | C28: E | D28: int | E28: =H32 -> 0.6051535265 | G28: Q | H28: =SUMPRODUCT(PTDF!B10:G10,$D$16:$I$16) -> 0.3567832994 | N28: A | O28: B | P28: int | Q28: =Q18/Q$25 -> 0.04443609531
B29: E | C29: F | D29: int | E29: =H33+H34 -> 2.415845302e-12 | G29: R | H29: =SUMPRODUCT(PTDF!B11:G11,$D$16:$I$16) -> -1.232499787 | N29: A | O29: C | P29: int | Q29: =Q19/Q$25 -> 0.2899328955
G30: U | H30: =SUMPRODUCT(PTDF!B12:G12,$D$16:$I$16) -> 0.2483702272 | N30: B | O30: C | P30: int | Q30: 0.1941139872
G31: X | H31: =SUMPRODUCT(PTDF!B13:G13,$D$16:$I$16) -> 3.151008879 | N31: B | O31: D | P31: int | Q31: 0.005613297881
G32: AJ | H32: =SUMPRODUCT(PTDF!B14:G14,$D$16:$I$16) -> 0.6051535265 | N32: C | O32: E | P32: int | Q32: 0.2497917557
G33: AO | H33: =SUMPRODUCT(PTDF!B15:G15,$D$16:$I$16) -> 0.08236511956 | N33: D | O33: E | P33: int | Q33: 0.2161119684
G34: AP | H34: =SUMPRODUCT(PTDF!B16:G16,$D$16:$I$16) -> -0.08236511956 | N34: E | O34: F | P34: int | Q34: 1.38935533e-12
N36: start | O36: end | P36: type | Q36: test 2
N37: A | O37: B | P37: int | Q37: =Q28*$Q$13 -> 0.5332331438
N38: A | O38: C | P38: int | Q38: =Q29*$Q$13 -> 3.479194746
N39: B | O39: C | P39: int | Q39: 2.329367846
N40: B | O40: D | P40: int | Q40: 0.06735957457
N41: C | O41: E | P41: int | Q41: 2.997501069
N42: D | O42: E | P42: int | Q42: 2.593343621
N43: E | O43: F | P43: int | Q43: 1.667226396e-11
P46: zone | Q46: test 2
P47: A | Q47: =0.5*(Q37+Q38) -> 2.006213945
P48: B | Q48: =0.5*(Q37+Q39+Q40) -> 1.464980282
P49: C | Q49: =0.5*(Q38+Q39+Q41) -> 4.40303183
P50: D | Q50: =0.5*(Q40+Q42) -> 1.330351598
P51: E | Q51: =0.5*(Q41+Q42+Q43) -> 2.795422345
P52: F | Q52: =0.5*(Q43) -> 8.336131978e-12

Sheet 22
C1: LTA | E1: LT prize | G1: LTN | I1: LT CI | K1: LT Flow | L1: LTA-LTN | N1: DA Spread | P1: Resale costs | R1: LT CI resaleC
C2: -> | D2: <- | E2: -> | F2: <- | G2: -> | H2: <- | I2: -> | J2: <- | K2: -> | L2: -> | M2: <- | N2: -> | O2: <- | P2: -> | Q2: <- | R2: -> | S2: <- | U2: price
A3: a | B3: b | C3: 0 | D3: 0 | E3: 0.2 | F3: 10 | G3: 0 | H3: 0 | I3: =C3*E3 -> 0 | J3: =D3*F3 -> 0 | K3: =G3-H3 -> 0 | L3: =C3-G3 -> 0 | M3: =D3-H3 -> 0 | N3: =V4-V3 -> -9.2 | O3: =-N3 -> 9.2 | P3: =G3*MAX(0,N3) -> 0 | Q3: =H3*MAX(0,O3) -> 0 | R3: =(C3-G3)*E3 -> 0 | S3: 0 | U3: zone A | V3: 41
A4: a | B4: c | C4: 0 | D4: 65 | E4: 0.6 | F4: 5 | G4: 0 | H4: 65 | I4: =C4*E4 -> 0 | J4: 325 | K4: =G4-H4 -> -65 | L4: =C4-G4 -> 0 | M4: 0 | N4: =V5-V3 -> -7.2 | O4: 7.2 | P4: =G4*MAX(0,N4) -> 0 | Q4: 468 | R4: 0 | S4: 0 | U4: zone B | V4: 31.8
A5: b | B5: c | C5: 0 | D5: 0 | E5: 2 | F5: 1 | G5: 0 | H5: 0 | I5: 0 | J5: 0 | K5: 0 | L5: 0 | M5: 0 | N5: =V5-V4 -> 2 | O5: =-N5 -> -2 | P5: 0 | Q5: 0 | R5: 0 | S5: 0 | U5: zone C | V5: 33.8
A6: b | B6: d | C6: 120 | D6: 0 | E6: 0.6 | F6: 3 | G6: 120 | H6: 0 | I6: 72 | J6: 0 | K6: 120 | L6: 0 | M6: 0 | N6: =V6-V4 -> 9.2 | O6: -9.2 | P6: 1104 | Q6: 0 | R6: 0 | S6: 0 | U6: zone D | V6: 41
A7: c | B7: e | C7: 0 | D7: 0 | E7: 10 | F7: 2 | G7: 0 | H7: 0 | I7: 0 | J7: 0 | K7: 0 | L7: 0 | M7: 0 | N7: =V7-V5 -> 8.3 | O7: -8.3 | P7: 0 | Q7: 0 | R7: 0 | S7: 0 | U7: zone E | V7: 42.1
A8: d | B8: e | C8: 90 | D8: 0 | E8: 7.7 | F8: 3.3 | G8: 90 | H8: 0 | I8: 693 | J8: 0 | K8: 90 | L8: 0 | M8: 0 | N8: =V7-V6 -> 1.1 | O8: -1.1 | P8: 99 | Q8: 0 | R8: 0 | S8: 0 | U8: zone F | V8: 37.6
A9: e | B9: f | C9: 0 | D9: 0 | E9: 0.1 | F9: 14 | G9: 0 | H9: 0 | I9: 0 | J9: 0 | K9: 0 | L9: 0 | M9: 0 | N9: =V8-V7 -> -4.5 | O9: 4.5 | P9: 0 | Q9: 0 | R9: 0 | S9: 0
A11: Kdyby uplatnil své kapacitní právo získá LT * Spread | G11: = | H11: =SUM(P3:Q9) -> 1671
C13: Net Position [MW] | K13: zone A | L13: =D16 -> -65 | O13: Cong. Inc. Celkem | Q13: =-SUMPRODUCT(L13:L18,V3:V8) -> 1671 | R13: =#REF!+#REF!+#REF! -> 
D14: zone A | E14: zone B | F14: zone C | G14: zone D | H14: zone E | I14: zone F | K14: zone B | L14: =E16 -> 120
C15: Base Case | D15: 0 | E15: 0 | F15: 0 | G15: 0 | H15: 0 | I15: 0 | K15: zone C | L15: =F16 -> 65
C16: LTN Inclusion | D16: =D15+K3+K4 -> -65 | E16: =E15+K5+K6-K3 -> 120 | F16: =F15+K7-K5-K4 -> 65 | G16: =+G15+K8-K6 -> -30 | H16: =+H15-K7-K8+K9 -> -90 | I16: =+I15-K9 -> 0 | K16: zone D | L16: =G16 -> -30
K17: zone E | L17: =H16 -> -90 | N17: start | O17: end | P17: type | Q17: test 1 | U17: a | V17: b | W17: =C3-G3 -> 0 | X17: =D3-H3 -> 0
K18: zone F | L18: =I16 -> 0 | N18: A | O18: B | P18: int | Q18: =ABS(E23*N3) -> 404.2606201 | U18: a | V18: c | W18: =C4-G4 -> 0 | X18: 0
N19: A | O19: C | P19: int | Q19: 151.6221234 | U19: b | V19: c | W19: 0 | X19: 0
B20: AAF | G20: CB | H20: test 1 | N20: B | O20: C | P20: int | Q20: 60.41136384 | U20: b | V20: d | W20: 0 | X20: 0
G21: G | H21: =SUMPRODUCT(PTDF!B3:G3,$D$16:$I$16) -> 15.8636096 | N21: B | O21: D | P21: int | Q21: 421.8471063 | U21: c | V21: e | W21: 0 | X21: 0
B22: start | C22: end | D22: type | E22: test 1 | G22: H | H22: =SUMPRODUCT(PTDF!B4:G4,$D$16:$I$16) -> 28.07776215 | N22: C | O22: E | P22: int | Q22: 615.4205454 | U22: d | V22: e | W22: 0 | X22: 0
B23: A | C23: B | D23: int | E23: =H21+H22 -> 43.94137174 | G23: I | H23: =SUMPRODUCT(PTDF!B5:G5,$D$16:$I$16) -> 10.96666992 | N23: D | O23: E | P23: int | Q23: 17.43824097 | U23: e | V23: f | W23: 0 | X23: 0
B24: A | C24: C | D24: int | E24: =H31+H24 -> 21.05862826 | G24: L | H24: =SUMPRODUCT(PTDF!B6:G6,$D$16:$I$16) -> 8.56645495 | N24: E | O24: F | P24: int | Q24: 1.368505309e-10
B25: B | C25: C | D25: int | E25: =H23+H27+H29 -> 30.20568192 | G25: M | H25: =SUMPRODUCT(PTDF!B7:G7,$D$16:$I$16) -> 32.84268873 | N25: sum | Q25: =SUM(Q18:Q24) -> 1671
B26: B | C26: D | D26: int | E26: =H25+H26 -> 45.85294633 | G26: O | H26: =SUMPRODUCT(PTDF!B8:G8,$D$16:$I$16) -> 13.01025761 | U26: 0 | V26: 101.2 | X26: 0 | Y26: 11
B27: C | C27: E | D27: int | E27: =H28+H30 -> 74.14705367 | G27: P | H27: =SUMPRODUCT(PTDF!B9:G9,$D$16:$I$16) -> 11.31913826 | N27: start | O27: end | P27: type | Q27: test 1 | U27: 0 | V27: 0 | X27: 0 | Y27: 0
B28: D | C28: E | D28: int | E28: =H32 -> -15.85294633 | G28: Q | H28: =SUMPRODUCT(PTDF!B10:G10,$D$16:$I$16) -> 33.15742152 | N28: A | O28: B | P28: int | Q28: =Q18/Q$25 -> 0.2419273609 | U28: 0 | V28: 0 | X28: 0 | Y28: 0
B29: E | C29: F | D29: int | E29: =H33+H34 -> 3.041122909e-11 | G29: R | H29: =SUMPRODUCT(PTDF!B11:G11,$D$16:$I$16) -> 7.919873735 | N29: A | O29: C | P29: int | Q29: =Q19/Q$25 -> 0.09073735693 | U29: 0 | V29: 0 | X29: 0 | Y29: 0
G30: U | H30: =SUMPRODUCT(PTDF!B12:G12,$D$16:$I$16) -> 40.98963214 | N30: B | O30: C | P30: int | Q30: 0.03615282097 | U30: 1087.3 | V30: 0 | X30: 131 | Y30: 0
G31: X | H31: =SUMPRODUCT(PTDF!B13:G13,$D$16:$I$16) -> 12.49217331 | N31: B | O31: D | P31: int | Q31: 0.2524518889 | U31: 75.9 | V31: 0 | X31: 69 | Y31: 0
G32: AJ | H32: =SUMPRODUCT(PTDF!B14:G14,$D$16:$I$16) -> -15.85294633 | N32: C | O32: E | P32: int | Q32: 0.3682947609 | U32: 0 | V32: 0 | X32: 0 | Y32: 0
G33: AO | H33: =SUMPRODUCT(PTDF!B15:G15,$D$16:$I$16) -> -1.329927632 | N33: D | O33: E | P33: int | Q33: 0.01043581147
G34: AP | H34: =SUMPRODUCT(PTDF!B16:G16,$D$16:$I$16) -> 1.329927632 | N34: E | O34: F | P34: int | Q34: 8.189738534e-14
N36: start | O36: end | P36: type | Q36: test 1
N37: A | O37: B | P37: int | Q37: =Q28*$Q$13 -> 404.2606201
N38: A | O38: C | P38: int | Q38: =Q29*$Q$13 -> 151.6221234
N39: B | O39: C | P39: int | Q39: 60.41136384
N40: B | O40: D | P40: int | Q40: 421.8471063
N41: C | O41: E | P41: int | Q41: 615.4205454
N42: D | O42: E | P42: int | Q42: 17.43824097
N43: E | O43: F | P43: int | Q43: 1.368505309e-10
P45: všechny NNLT | S45: NNLT postupně
P46: zone | Q46: test 1 | S46: zone | T46: test 1
P47: A | Q47: =0.5*(Q37+Q38) -> 277.9413717 | S47: A | T47: =#REF!+#REF!+#REF! -> 
P48: B | Q48: =0.5*(Q37+Q39+Q40) -> 443.2595451 | S48: B | T48: =#REF!+#REF!+#REF! -> 
P49: C | Q49: =0.5*(Q38+Q39+Q41) -> 413.7270164 | S49: C | T49: =#REF!+#REF!+#REF! -> 
P50: D | Q50: =0.5*(Q40+Q42) -> 219.6426736 | S50: D | T50: =#REF!+#REF!+#REF! -> 
P51: E | Q51: =0.5*(Q41+Q42+Q43) -> 316.4293932 | S51: E | T51: =#REF!+#REF!+#REF! -> 
P52: F | Q52: =0.5*(Q43) -> 6.842526545e-11 | S52: F | T52: =#REF!+#REF!+#REF! -> 

Sheet 11
C1: LTA | E1: LT prize | G1: LTN | I1: LT CI | K1: LT Flow | L1: LTA-LTN | N1: DA Spread | P1: Resale costs | R1: LT CI resaleC
C2: -> | D2: <- | E2: -> | F2: <- | G2: -> | H2: <- | I2: -> | J2: <- | K2: -> | L2: -> | M2: <- | N2: -> | O2: <- | P2: -> | Q2: <- | R2: -> | S2: <- | U2: price
A3: a | B3: b | C3: 0 | D3: 11 | E3: 0.2 | F3: 10 | G3: 0 | H3: 11 | I3: =C3*E3 -> 0 | J3: =D3*F3 -> 110 | K3: =G3-H3 -> -11 | L3: =C3-G3 -> 0 | M3: =D3-H3 -> 0 | N3: =V4-V3 -> -9.2 | O3: =-N3 -> 9.2 | P3: =G3*MAX(0,N3) -> 0 | Q3: =H3*MAX(0,O3) -> 101.2 | R3: =(C3-G3)*E3 -> 0 | S3: 0 | U3: zone A | V3: 41
A4: a | B4: c | C4: 0 | D4: 0 | E4: 0.6 | F4: 5 | G4: 0 | H4: 0 | I4: =C4*E4 -> 0 | J4: 0 | K4: =G4-H4 -> 0 | L4: =C4-G4 -> 0 | M4: 0 | N4: =V5-V3 -> -7.2 | O4: 7.2 | P4: =G4*MAX(0,N4) -> 0 | Q4: =H4*MAX(0,O4) -> 0 | R4: 0 | S4: 0 | U4: zone B | V4: 31.8
A5: b | B5: c | C5: 0 | D5: 0 | E5: 2 | F5: 1 | G5: 0 | H5: 0 | I5: 0 | J5: 0 | K5: 0 | L5: 0 | M5: 0 | N5: =V5-V4 -> 2 | O5: =-N5 -> -2 | P5: 0 | Q5: 0 | R5: 0 | S5: 0 | U5: zone C | V5: 33.8
A6: b | B6: d | C6: 0 | D6: 0 | E6: 0.6 | F6: 3 | G6: 0 | H6: 0 | I6: 0 | J6: 0 | K6: 0 | L6: 0 | M6: 0 | N6: =V6-V4 -> 9.2 | O6: -9.2 | P6: 0 | Q6: 0 | R6: 0 | S6: 0 | U6: zone D | V6: 41
A7: c | B7: e | C7: 131 | D7: 0 | E7: 10 | F7: 2 | G7: 131 | H7: 0 | I7: 1310 | J7: 0 | K7: 131 | L7: 0 | M7: 0 | N7: =V7-V5 -> 8.3 | O7: -8.3 | P7: 1087.3 | Q7: 0 | R7: 0 | S7: 0 | U7: zone E | V7: 42.1
A8: d | B8: e | C8: 69 | D8: 0 | E8: 7.7 | F8: 3.3 | G8: 69 | H8: 0 | I8: 531.3 | J8: 0 | K8: 69 | L8: 0 | M8: 0 | N8: =V7-V6 -> 1.1 | O8: -1.1 | P8: 75.9 | Q8: 0 | R8: 0 | S8: 0 | U8: zone F | V8: 37.6
A9: e | B9: f | C9: 0 | D9: 0 | E9: 0.1 | F9: 14 | G9: 0 | H9: 0 | I9: 0 | J9: 0 | K9: 0 | L9: 0 | M9: 0 | N9: =V8-V7 -> -4.5 | O9: 4.5 | P9: 0 | Q9: 0 | R9: 0 | S9: 0
A11: Kdyby uplatnil své kapacitní právo získá LT * Spread | G11: = | H11: =SUM(P3:Q9) -> 1264.4
C13: Net Position [MW] | K13: zone A | L13: =D16 -> -11 | O13: Cong. Inc. Celkem | Q13: =-SUMPRODUCT(L13:L18,V3:V8) -> 1264.4 | R13: =#REF!+#REF!+#REF! -> 
D14: zone A | E14: zone B | F14: zone C | G14: zone D | H14: zone E | I14: zone F | K14: zone B | L14: =E16 -> 11
C15: Base Case | D15: 0 | E15: 0 | F15: 0 | G15: 0 | H15: 0 | I15: 0 | K15: zone C | L15: =F16 -> 131
C16: LTN Inclusion | D16: =D15+K3+K4 -> -11 | E16: =E15+K5+K6-K3 -> 11 | F16: =F15+K7-K5-K4 -> 131 | G16: =+G15+K8-K6 -> 69 | H16: =+H15-K7-K8+K9 -> -200 | I16: =+I15-K9 -> 0 | K16: zone D | L16: =G16 -> 69
K17: zone E | L17: =H16 -> -200 | N17: start | O17: end | P17: type | Q17: test 1 | U17: a | V17: b | W17: =C3-G3 -> 0 | X17: =D3-H3 -> 0
K18: zone F | L18: =I16 -> 0 | N18: A | O18: B | P18: int | Q18: =ABS(E23*N3) -> 58.5827189 | U18: a | V18: c | W18: =C4-G4 -> 0 | X18: 0
N19: A | O19: C | P19: int | Q19: 33.35265478 | U19: b | V19: c | W19: =C5-G5 -> 0 | X19: 0
B20: AAF | G20: CB | H20: test 1 | N20: B | O20: C | P20: int | Q20: 25.11043182 | U20: b | V20: d | W20: =C6-G6 -> 0 | X20: 0
G21: G | H21: =SUMPRODUCT(PTDF!B3:G3,$D$16:$I$16) -> 2.290771261 | N21: B | O21: D | P21: int | Q21: 72.89070526 | U21: c | V21: e | W21: =C7-G7 -> 0 | X21: 0
B22: start | C22: end | D22: type | E22: test 1 | G22: H | H22: =SUMPRODUCT(PTDF!B4:G4,$D$16:$I$16) -> 4.076915575 | N22: C | O22: E | P22: int | Q22: 1153.060093 | U22: d | V22: e | W22: =C8-G8 -> 0 | X22: 0
B23: A | C23: B | D23: int | E23: =H21+H22 -> 6.367686837 | G23: I | H23: =SUMPRODUCT(PTDF!B5:G5,$D$16:$I$16) -> -1.563441217 | N23: D | O23: E | P23: int | Q23: 67.18480698 | U23: e | V23: f | W23: =C9-G9 -> 0 | X23: 0
B24: A | C24: C | D24: int | E24: =H31+H24 -> 4.632313163 | G24: L | H24: =SUMPRODUCT(PTDF!B6:G6,$D$16:$I$16) -> 1.851451637 | N24: E | O24: F | P24: int | Q24: 2.414068945e-11
B25: B | C25: C | D25: int | E25: =H23+H27+H29 -> 12.55521591 | G25: M | H25: =SUMPRODUCT(PTDF!B7:G7,$D$16:$I$16) -> -6.718373792 | N25: sum | Q25: =SUM(Q18:Q24) -> 1410.181411
B26: B | C26: D | D26: int | E26: =H25+H26 -> -7.922902745 | G26: O | H26: =SUMPRODUCT(PTDF!B8:G8,$D$16:$I$16) -> -1.204528953 | U26: 0 | V26: 101.2 | X26: 0 | Y26: 11
B27: C | C27: E | D27: int | E27: =H28+H30 -> 138.9229027 | G27: P | H27: =SUMPRODUCT(PTDF!B9:G9,$D$16:$I$16) -> 11.09733013 | N27: start | O27: end | P27: type | Q27: test 1 | U27: 0 | V27: 0 | X27: 0 | Y27: 0
B28: D | C28: E | D28: int | E28: =H32 -> -61.07709725 | G28: Q | H28: =SUMPRODUCT(PTDF!B10:G10,$D$16:$I$16) -> 55.24390432 | N28: A | O28: B | P28: int | Q28: =Q18/Q$25 -> 0.04154268271 | U28: 0 | V28: 0 | X28: 0 | Y28: 0
B29: E | C29: F | D29: int | E29: =H33+H34 -> -5.364597655e-12 | G29: R | H29: =SUMPRODUCT(PTDF!B11:G11,$D$16:$I$16) -> 3.021326998 | N29: A | O29: C | P29: int | Q29: =Q19/Q$25 -> 0.02365132211 | U29: 0 | V29: 0 | X29: 0 | Y29: 0
G30: U | H30: =SUMPRODUCT(PTDF!B12:G12,$D$16:$I$16) -> 83.67899843 | N30: B | O30: C | P30: int | Q30: 0.01780652591 | U30: 1087.3 | V30: 0 | X30: 131 | Y30: 0
G31: X | H31: =SUMPRODUCT(PTDF!B13:G13,$D$16:$I$16) -> 2.780861526 | N31: B | O31: D | P31: int | Q31: 0.05168888536 | U31: 75.9 | V31: 0 | X31: 69 | Y31: 0
G32: AJ | H32: =SUMPRODUCT(PTDF!B14:G14,$D$16:$I$16) -> -61.07709725 | N32: C | O32: E | P32: int | Q32: 0.8176679143 | U32: 0 | V32: 0 | X32: 0 | Y32: 0
G33: AO | H33: =SUMPRODUCT(PTDF!B15:G15,$D$16:$I$16) -> -5.412408972 | N33: D | O33: E | P33: int | Q33: 0.04764266957
G34: AP | H34: =SUMPRODUCT(PTDF!B16:G16,$D$16:$I$16) -> 5.412408972 | N34: E | O34: F | P34: int | Q34: 1.711885383e-14
N36: start | O36: end | P36: type | Q36: test 1
N37: A | O37: B | P37: int | Q37: =Q28*$Q$13 -> 52.52656801
N38: A | O38: C | P38: int | Q38: =Q29*$Q$13 -> 29.90473168
N39: B | O39: C | P39: int | Q39: 22.51457135
N40: B | O40: D | P40: int | Q40: 65.35542664
N41: C | O41: E | P41: int | Q41: 1033.859311
N42: D | O42: E | P42: int | Q42: 60.23939141
N43: E | O43: F | P43: int | Q43: 2.164507879e-11
P46: zone | Q46: test 1 | S46: zone | T46: test 1
P47: A | Q47: =0.5*(Q37+Q38) -> 41.21564985 | S47: A | T47: =#REF!+#REF!+#REF! -> 
P48: B | Q48: =0.5*(Q37+Q39+Q40) -> 70.19828301 | S48: B | T48: =#REF!+#REF!+#REF! -> 
P49: C | Q49: =0.5*(Q38+Q39+Q41) -> 543.139307 | S49: C | T49: =#REF!+#REF!+#REF! -> 
P50: D | Q50: =0.5*(Q40+Q42) -> 62.79740903 | S50: D | T50: =#REF!+#REF!+#REF! -> 
P51: E | Q51: =0.5*(Q41+Q42+Q43) -> 547.0493512 | S51: E | T51: =#REF!+#REF!+#REF! -> 
P52: F | Q52: =0.5*(Q43) -> 1.082253939e-11 | S52: F | T52: =#REF!+#REF!+#REF! -> 

Sheet 33
C1: LTA | E1: LT prize | G1: LTN | I1: LT CI | K1: LT Flow | L1: LTA-LTN | N1: DA Spread | P1: Resale costs | R1: LT CI resaleC
C2: -> | D2: <- | E2: -> | F2: <- | G2: -> | H2: <- | I2: -> | J2: <- | K2: -> | L2: -> | M2: <- | N2: -> | O2: <- | P2: -> | Q2: <- | R2: -> | S2: <- | U2: price
A3: a | B3: b | C3: 0 | D3: 0 | E3: 0.2 | F3: 10 | G3: 0 | H3: 0 | I3: =C3*E3 -> 0 | J3: =D3*F3 -> 0 | K3: =G3-H3 -> 0 | L3: =C3-G3 -> 0 | M3: =D3-H3 -> 0 | N3: =V4-V3 -> -3.8 | O3: =-N3 -> 3.8 | P3: =G3*MAX(0,N3) -> 0 | Q3: =H3*MAX(0,O3) -> 0 | R3: =(C3-G3)*E3 -> 0 | S3: 0 | U3: zone A | V3: 34.2
A4: a | B4: c | C4: 0 | D4: 200 | E4: 0.6 | F4: 5 | G4: 0 | H4: 200 | I4: =C4*E4 -> 0 | J4: 1000 | K4: =G4-H4 -> -200 | L4: =C4-G4 -> 0 | M4: 0 | N4: =V5-V3 -> -0.4 | O4: 0.4 | P4: =G4*MAX(0,N4) -> 0 | Q4: 80 | R4: 0 | S4: 0 | U4: zone B | V4: 30.4
A5: b | B5: c | C5: 40 | D5: 0 | E5: 2 | F5: 1 | G5: 40 | H5: 0 | I5: 80 | J5: 0 | K5: 40 | L5: 0 | M5: 0 | N5: =V5-V4 -> 3.4 | O5: =-N5 -> -3.4 | P5: 136 | Q5: 0 | R5: 0 | S5: 0 | U5: zone C | V5: 33.8
A6: b | B6: d | C6: 0 | D6: 0 | E6: 0.6 | F6: 3 | G6: 0 | H6: 0 | I6: 0 | J6: 0 | K6: 0 | L6: 0 | M6: 0 | N6: =V6-V4 -> 3.6 | O6: -3.6 | P6: 0 | Q6: 0 | R6: 0 | S6: 0 | U6: zone D | V6: 34
A7: c | B7: e | C7: 0 | D7: 0 | E7: 10 | F7: 2 | G7: 0 | H7: 0 | I7: 0 | J7: 0 | K7: 0 | L7: 0 | M7: 0 | N7: =V7-V5 -> -0.8 | O7: 0.8 | P7: 0 | Q7: 0 | R7: 0 | S7: 0 | U7: zone E | V7: 33
A8: d | B8: e | C8: 0 | D8: 100 | E8: 7.7 | F8: 3.3 | G8: 0 | H8: 100 | I8: 0 | J8: 330 | K8: -100 | L8: 0 | M8: 0 | N8: =V7-V6 -> -1 | O8: 1 | P8: 0 | Q8: 100 | R8: 0 | S8: 0 | U8: zone F | V8: 31.8
A9: e | B9: f | C9: 0 | D9: 0 | E9: 0.1 | F9: 14 | G9: 0 | H9: 0 | I9: 0 | J9: 0 | K9: 0 | L9: 0 | M9: 0 | N9: =V8-V7 -> -1.2 | O9: 1.2 | P9: 0 | Q9: 0 | R9: 0 | S9: 0
A11: Kdyby uplatnil své kapacitní právo získá LT * Spread | G11: = | H11: =SUM(P3:Q9) -> 316
C13: Net Position [MW] | K13: zone A | L13: =D16 -> -200 | O13: Cong. Inc. Celkem | Q13: =-SUMPRODUCT(L13:L18,V3:V8) -> 316
D14: zone A | E14: zone B | F14: zone C | G14: zone D | H14: zone E | I14: zone F | K14: zone B | L14: =E16 -> 40
C15: Base Case | D15: 0 | E15: 0 | F15: 0 | G15: 0 | H15: 0 | I15: 0 | K15: zone C | L15: =F16 -> 160
C16: LTN Inclusion | D16: =D15+K3+K4 -> -200 | E16: =E15+K5+K6-K3 -> 40 | F16: =F15+K7-K5-K4 -> 160 | G16: =+G15+K8-K6 -> -100 | H16: =+H15-K7-K8+K9 -> 100 | I16: =+I15-K9 -> 0 | K16: zone D | L16: =G16 -> -100
K17: zone E | L17: =H16 -> 100 | N17: start | O17: end | P17: type | Q17: test 1 | U17: a | V17: b | W17: =C3-G3 -> 0 | X17: =D3-H3 -> 0
K18: zone F | L18: =I16 -> 0 | N18: A | O18: B | P18: int | Q18: =ABS(E23*N3) -> 364.0058752 | U18: a | V18: c | W18: =C4-G4 -> 0 | X18: 0
N19: A | O19: C | P19: int | Q19: 41.68359209 | U19: b | V19: c | W19: 0 | X19: 0
B20: AAF | G20: CB | H20: test 1 | N20: B | O20: C | P20: int | Q20: 324.3368617 | U20: b | V20: d | W20: 0 | X20: 0
G21: G | H21: =SUMPRODUCT(PTDF!B3:G3,$D$16:$I$16) -> 34.28436716 | N21: B | O21: D | P21: int | Q21: 142.5678294 | U21: c | V21: e | W21: 0 | X21: 0
B22: start | C22: end | D22: type | E22: test 1 | G22: H | H22: =SUMPRODUCT(PTDF!B4:G4,$D$16:$I$16) -> 61.50665261 | N22: C | O22: E | P22: int | Q22: 31.68173987 | U22: d | V22: e | W22: 0 | X22: 0
B23: A | C23: B | D23: int | E23: =H21+H22 -> 95.79101978 | G23: I | H23: =SUMPRODUCT(PTDF!B5:G5,$D$16:$I$16) -> -15.71477544 | N23: D | O23: E | P23: int | Q23: 60.39782516 | U23: e | V23: f | W23: 0 | X23: 0
B24: A | C24: C | D24: int | E24: =H31+H24 -> 104.2089802 | G24: L | H24: =SUMPRODUCT(PTDF!B6:G6,$D$16:$I$16) -> 41.17661098 | N24: E | O24: F | P24: int | Q24: 7.042899597e-11
B25: B | C25: C | D25: int | E25: =H23+H27+H29 -> -95.39319462 | G25: M | H25: =SUMPRODUCT(PTDF!B7:G7,$D$16:$I$16) -> 23.40943944 | N25: sum | Q25: =SUM(Q18:Q24) -> 964.6737234
B26: B | C26: D | D26: int | E26: =H25+H26 -> 39.60217484 | G26: O | H26: =SUMPRODUCT(PTDF!B8:G8,$D$16:$I$16) -> 16.1927354 | U26: 0 | V26: 101.2 | X26: 0 | Y26: 11
B27: C | C27: E | D27: int | E27: =H28+H30 -> -39.60217484 | G27: P | H27: =SUMPRODUCT(PTDF!B9:G9,$D$16:$I$16) -> -48.08092065 | N27: start | O27: end | P27: type | Q27: test 1 | U27: 0 | V27: 0 | X27: 0 | Y27: 0
B28: D | C28: E | D28: int | E28: =H32 -> 60.39782516 | G28: Q | H28: =SUMPRODUCT(PTDF!B10:G10,$D$16:$I$16) -> -11.11408669 | N28: A | O28: B | P28: int | Q28: =Q18/Q$25 -> 0.3773357419 | U28: 0 | V28: 0 | X28: 0 | Y28: 0
B29: E | C29: F | D29: int | E29: =H33+H34 -> 5.869082997e-11 | G29: R | H29: =SUMPRODUCT(PTDF!B11:G11,$D$16:$I$16) -> -31.59749853 | N29: A | O29: C | P29: int | Q29: =Q19/Q$25 -> 0.04321004198 | U29: 0 | V29: 0 | X29: 0 | Y29: 0
G30: U | H30: =SUMPRODUCT(PTDF!B12:G12,$D$16:$I$16) -> -28.48808815 | N30: B | O30: C | P30: int | Q30: 0.3362140523 | U30: 1087.3 | V30: 0 | X30: 131 | Y30: 0
G31: X | H31: =SUMPRODUCT(PTDF!B13:G13,$D$16:$I$16) -> 63.03236924 | N31: B | O31: D | P31: int | Q31: 0.1477886522 | U31: 75.9 | V31: 0 | X31: 69 | Y31: 0
G32: AJ | H32: =SUMPRODUCT(PTDF!B14:G14,$D$16:$I$16) -> 60.39782516 | N32: C | O32: E | P32: int | Q32: 0.03284192272 | U32: 0 | V32: 0 | X32: 0 | Y32: 0
G33: AO | H33: =SUMPRODUCT(PTDF!B15:G15,$D$16:$I$16) -> 7.13383086 | N33: D | O33: E | P33: int | Q33: 0.06260958881
G34: AP | H34: =SUMPRODUCT(PTDF!B16:G16,$D$16:$I$16) -> -7.13383086 | N34: E | O34: F | P34: int | Q34: 7.300810031e-14
N36: start | O36: end | P36: type | Q36: test 1 | U36: start | V36: end
N37: A | O37: B | P37: int | Q37: =Q28*$Q$13 -> 119.2380945 | T37: =#REF!+#REF!+#REF! ->  | U37: A | V37: B
N38: A | O38: C | P38: int | Q38: =Q29*$Q$13 -> 13.65437327 | T38: =#REF!+#REF!+#REF! ->  | U38: A | V38: C
N39: B | O39: C | P39: int | Q39: 106.2436405 | T39: =#REF!+#REF!+#REF! ->  | U39: B | V39: C
N40: B | O40: D | P40: int | Q40: 46.70121411 | T40: =#REF!+#REF!+#REF! ->  | U40: B | V40: D
N41: C | O41: E | P41: int | Q41: 10.37804758 | T41: =#REF!+#REF!+#REF! ->  | U41: C | V41: E
N42: D | O42: E | P42: int | Q42: 19.78463006 | T42: =#REF!+#REF!+#REF! ->  | U42: D | V42: E
N43: E | O43: F | P43: int | Q43: 2.30705597e-11 | T43: =#REF!+#REF!+#REF! ->  | U43: E | V43: F
P46: zone | Q46: test 1 | S46: zone | T46: test 1
P47: A | Q47: =0.5*(Q37+Q38) -> 66.44623386 | S47: A | T47: =#REF!+#REF!+#REF! -> 
P48: B | Q48: =0.5*(Q37+Q39+Q40) -> 136.0914745 | S48: B | T48: =#REF!+#REF!+#REF! -> 
P49: C | Q49: =0.5*(Q38+Q39+Q41) -> 65.13803069 | S49: C | T49: =#REF!+#REF!+#REF! -> 
P50: D | Q50: =0.5*(Q40+Q42) -> 33.24292209 | S50: D | T50: =#REF!+#REF!+#REF! -> 
P51: E | Q51: =0.5*(Q41+Q42+Q43) -> 15.08133882 | S51: E | T51: =#REF!+#REF!+#REF! -> 
P52: F | Q52: =0.5*(Q43) -> 1.153527985e-11 | S52: F | T52: =#REF!+#REF!+#REF! -> 

Sheet 77
C1: LTA | E1: LT prize | G1: LTN | I1: LT CI | K1: LT Flow | L1: LTA-LTN | N1: DA Spread | P1: Resale costs | R1: LT CI resaleC
C2: -> | D2: <- | E2: -> | F2: <- | G2: -> | H2: <- | I2: -> | J2: <- | K2: -> | L2: -> | M2: <- | N2: -> | O2: <- | P2: -> | Q2: <- | R2: -> | S2: <- | U2: price
A3: a | B3: b | C3: 156 | D3: 0 | E3: 0.2 | F3: 10 | G3: 44 | H3: 0 | I3: =C3*E3 -> 31.2 | J3: =D3*F3 -> 0 | K3: =G3-H3 -> 44 | L3: =C3-G3 -> 112 | M3: =D3-H3 -> 0 | N3: =V4-V3 -> 1.5 | O3: =-N3 -> -1.5 | P3: =G3*MAX(0,N3) -> 66 | Q3: =H3*MAX(0,O3) -> 0 | R3: =(C3-G3)*E3 -> 22.4 | S3: 0 | U3: zone A | V3: 20
A4: a | B4: c | C4: 146 | D4: 0 | E4: 0.6 | F4: 5 | G4: 164 | H4: 0 | I4: =C4*E4 -> 87.6 | J4: 0 | K4: =G4-H4 -> 164 | L4: =C4-G4 -> -18 | M4: 0 | N4: =V5-V3 -> 1.5 | O4: -1.5 | P4: =G4*MAX(0,N4) -> 246 | Q4: 0 | R4: -10.8 | S4: 0 | U4: zone B | V4: 21.5
A5: b | B5: c | C5: 105 | D5: 0 | E5: 2 | F5: 1 | G5: 135 | H5: 0 | I5: 210 | J5: 0 | K5: 135 | L5: -30 | M5: 0 | N5: =V5-V4 -> 0 | O5: =-N5 -> 0 | P5: 0 | Q5: 0 | R5: -60 | S5: 0 | U5: zone C | V5: 21.5
A6: b | B6: d | C6: 20 | D6: 0 | E6: 0.6 | F6: 3 | G6: 160 | H6: 0 | I6: 12 | J6: 0 | K6: 160 | L6: -140 | M6: 0 | N6: =V6-V4 -> 0.5 | O6: -0.5 | P6: 80 | Q6: 0 | R6: -84 | S6: 0 | U6: zone D | V6: 22
A7: c | B7: e | C7: 165 | D7: 0 | E7: 10 | F7: 2 | G7: 10 | H7: 0 | I7: 1650 | J7: 0 | K7: 10 | L7: 155 | M7: 0 | N7: =V7-V5 -> 0 | O7: 0 | P7: 0 | Q7: 0 | R7: 1550 | S7: 0 | U7: zone E | V7: 21.5
A8: d | B8: e | C8: 0 | D8: 230 | E8: 7.7 | F8: 3.3 | G8: 0 | H8: 20 | I8: 0 | J8: 759 | K8: -20 | L8: 0 | M8: 210 | N8: =V7-V6 -> -0.5 | O8: 0.5 | P8: 0 | Q8: 10 | R8: 0 | S8: 693 | U8: zone F | V8: 26.4
A9: e | B9: f | C9: 85 | D9: 0 | E9: 0.1 | F9: 14 | G9: 115 | H9: 0 | I9: 8.5 | J9: 0 | K9: 115 | L9: -30 | M9: 0 | N9: =V8-V7 -> 4.9 | O9: -4.9 | P9: 563.5 | Q9: 0 | R9: -3 | S9: 0
A11: Kdyby uplatnil své kapacitní právo získá LT * Spread | G11: = | H11: =SUM(P3:Q9) -> 965.5
C13: Net Position [MW] | K13: zone A | L13: =D16 -> 208 | O13: Cong. Inc. Celkem | Q13: =-SUMPRODUCT(L13:L18,V3:V8) -> 965.5
D14: zone A | E14: zone B | F14: zone C | G14: zone D | H14: zone E | I14: zone F | K14: zone B | L14: =E16 -> 251
C15: Base Case | D15: 0 | E15: 0 | F15: 0 | G15: 0 | H15: 0 | I15: 0 | K15: zone C | L15: =F16 -> -289
C16: LTN Inclusion | D16: =D15+K3+K4 -> 208 | E16: =E15+K5+K6-K3 -> 251 | F16: =F15+K7-K5-K4 -> -289 | G16: =+G15+K8-K6 -> -180 | H16: =+H15-K7-K8+K9 -> 125 | I16: =+I15-K9 -> -115 | K16: zone D | L16: =G16 -> -180
K17: zone E | L17: =H16 -> 125 | N17: start | O17: end | P17: type | Q17: test 1 | U17: a | V17: b | W17: =C3-G3 -> 112 | X17: =D3-H3 -> 0
K18: zone F | L18: =I16 -> -115 | N18: A | O18: B | P18: int | Q18: =ABS(E23*N3) -> 114.4721454 | U18: a | V18: c | W18: =C4-G4 -> -18 | X18: 0
N19: A | O19: C | P19: int | Q19: 197.5278546 | U19: b | V19: c | W19: -30 | X19: 0
B20: AAF | G20: CB | H20: test 1 | N20: B | O20: C | P20: int | Q20: 0 | U20: b | V20: d | W20: -140 | X20: 0
G21: G | H21: =SUMPRODUCT(PTDF!B3:G3,$D$16:$I$16) -> -27.06502264 | N21: B | O21: D | P21: int | Q21: 77.30219264 | U21: c | V21: e | W21: 155 | X21: 0
B22: start | C22: end | D22: type | E22: test 1 | G22: H | H22: =SUMPRODUCT(PTDF!B4:G4,$D$16:$I$16) -> -49.24974096 | N22: C | O22: E | P22: int | Q22: 0 | U22: d | V22: e | W22: 0 | X22: 210
B23: A | C23: B | D23: int | E23: =H21+H22 -> -76.31476361 | G23: I | H23: =SUMPRODUCT(PTDF!B5:G5,$D$16:$I$16) -> 50.09334837 | N23: D | O23: E | P23: int | Q23: 12.69780736 | U23: e | V23: f | W23: -30 | X23: 0
B24: A | C24: C | D24: int | E24: =H31+H24 -> -131.6852364 | G24: L | H24: =SUMPRODUCT(PTDF!B6:G6,$D$16:$I$16) -> -51.58680866 | N24: E | O24: F | P24: int | Q24: 563.5
B25: B | C25: C | D25: int | E25: =H23+H27+H29 -> 172.7103783 | G25: M | H25: =SUMPRODUCT(PTDF!B7:G7,$D$16:$I$16) -> 110.8618715 | N25: sum | Q25: =SUM(Q18:Q24) -> 965.5
B26: B | C26: D | D26: int | E26: =H25+H26 -> 154.6043853 | G26: O | H26: =SUMPRODUCT(PTDF!B8:G8,$D$16:$I$16) -> 43.74251381 | U26: 0 | V26: 101.2 | X26: 0 | Y26: 11
B27: C | C27: E | D27: int | E27: =H28+H30 -> 15.39561471 | G27: P | H27: =SUMPRODUCT(PTDF!B9:G9,$D$16:$I$16) -> 75.11668625 | N27: start | O27: end | P27: type | Q27: test 1 | U27: 0 | V27: 0 | X27: 0 | Y27: 0
B28: D | C28: E | D28: int | E28: =H32 -> 25.39561471 | G28: Q | H28: =SUMPRODUCT(PTDF!B10:G10,$D$16:$I$16) -> 6.657645075 | N28: A | O28: B | P28: int | Q28: =Q18/Q$25 -> 0.1185625535 | U28: 0 | V28: 0 | X28: 0 | Y28: 0
B29: E | C29: F | D29: int | E29: =H33+H34 -> 115 | G29: R | H29: =SUMPRODUCT(PTDF!B11:G11,$D$16:$I$16) -> 47.50034371 | N29: A | O29: C | P29: int | Q29: =Q19/Q$25 -> 0.2045860741 | U29: 0 | V29: 0 | X29: 0 | Y29: 0
G30: U | H30: =SUMPRODUCT(PTDF!B12:G12,$D$16:$I$16) -> 8.737969639 | N30: B | O30: C | P30: int | Q30: 0 | U30: 1087.3 | V30: 0 | X30: 131 | Y30: 0
G31: X | H31: =SUMPRODUCT(PTDF!B13:G13,$D$16:$I$16) -> -80.09842774 | N31: B | O31: D | P31: int | Q31: 0.08006441496 | U31: 75.9 | V31: 0 | X31: 69 | Y31: 0
G32: AJ | H32: =SUMPRODUCT(PTDF!B14:G14,$D$16:$I$16) -> 25.39561471 | N32: C | O32: E | P32: int | Q32: 0 | U32: 0 | V32: 0 | X32: 0 | Y32: 0
G33: AO | H33: =SUMPRODUCT(PTDF!B15:G15,$D$16:$I$16) -> 59.59766508 | N33: D | O33: E | P33: int | Q33: 0.01315153533
G34: AP | H34: =SUMPRODUCT(PTDF!B16:G16,$D$16:$I$16) -> 55.40233492 | N34: E | O34: F | P34: int | Q34: 0.5836354221
N36: start | O36: end | P36: type | Q36: test 1
N37: A | O37: B | P37: int | Q37: =Q28*$Q$13 -> 114.4721454
N38: A | O38: C | P38: int | Q38: =Q29*$Q$13 -> 197.5278546
N39: B | O39: C | P39: int | Q39: 0
N40: B | O40: D | P40: int | Q40: 77.30219264
N41: C | O41: E | P41: int | Q41: 0
N42: D | O42: E | P42: int | Q42: 12.69780736
N43: E | O43: F | P43: int | Q43: 563.5
P46: zone | Q46: test 1
P47: A | Q47: =0.5*(Q37+Q38) -> 156
P48: B | Q48: =0.5*(Q37+Q39+Q40) -> 95.88716903
P49: C | Q49: =0.5*(Q38+Q39+Q41) -> 98.76392729
P50: D | Q50: =0.5*(Q40+Q42) -> 45
P51: E | Q51: =0.5*(Q41+Q42+Q43) -> 288.0989037
P52: F | Q52: =0.5*(Q43) -> 281.75
